Workbook

Sheet Admin
B4: Process Year
B5: 2025 | C5: I1
B7: First True Up Month
B8: =B5*100+1 -> 202501 | C8: I2 | D8: I3
B10: Second True Up Month
B11: =B8+1 -> 202502 | C11: I4 | D11: I5
B13: Third True Up Month
B14: =B11+1 -> 202503 | C14: I6 | D14: I7
B16: Fourth True Up Month
B17: =B14+1 -> 202504 | C17: I8 | D17: I9
B19: Fifth True Up Month
B20: =B17+1 -> 202505 | C20: I10 | D20: I11
B22: Sixth True Up Month
B23: =B20+1 -> 202506 | C23: I12 | D23: I13
B25: Seventh True Up Month
B26: =B23+1 -> 202507 | C26: I14 | D26: I15
B28: Eighth True Up Month
B29: =B26+1 -> 202508 | C29: I16 | D29: I17
B31: Ninth True Up Month
B32: =B29+1 -> 202509 | C32: I18 | D32: I19
B34: Tenth True Up Month
B35: =B32+1 -> 202510 | C35: I20 | D35: I21
B37: Eleventh True Up Month
B38: =B35+1 -> 202511 | C38: I22 | D38: I23
B40: Twelveth True Up Month
B41: =B38+1 -> 202512 | C41: I24 | D41: I25

Sheet IESO Submission
A1: =Admin!B5 -> 2025 | C1: Payments to | F1: Payments from | I1: Number of
C2: IESO | F2: IESO | I2: Customers:
A3: Regulated Price Plan - Conventional | C3: Box 1 | F3: Box 2 | I3: Box 3
A5: First Tier as defined by the SSS Code | B5: $ | C5: =PaymentToIESO('I1 Reconciliation'!$AA$6) ->  | E5: $ | F5: =PaymentFromIESO('I1 Reconciliation'!$AA$6) -> 
B6: kWh | C6: =PaymentToIESOkWh('I1 Reconciliation'!K6,'I1 Reconciliation'!K19) -> 0 | E6: kWh | F6: =PaymentfromIESOkWh('I1 Reconciliation'!$K$6,'I1 Reconciliation'!$K$19) -> 699112.5056
H7: # | I7: 0
A8: Second Tier as defined by the SSS Code | B8: $ | C8: =PaymentToIESO('I1 Reconciliation'!$AA$7) ->  | E8: $ | F8: =PaymentFromIESO('I1 Reconciliation'!$AA$7) -> 
B9: kWh | C9: =PaymentToIESOkWh('I1 Reconciliation'!K7,'I1 Reconciliation'!K20) -> 0 | E9: kWh | F9: =PaymentfromIESOkWh('I1 Reconciliation'!$K$7,'I1 Reconciliation'!$K$20) -> 306410.268
A11: Regulated Price Plan - Smart Meters
A13: Off Peak - TOU | B13: $ | C13: =PaymentToIESO('I1 Reconciliation'!$AA$8) ->  | E13: $ | F13: =PaymentFromIESO('I1 Reconciliation'!$AA$8) -> 
B14: kWh | C14: =PaymentToIESOkWh('I1 Reconciliation'!K8,'I1 Reconciliation'!K21) -> 0 | E14: kWh | F14: =PaymentfromIESOkWh('I1 Reconciliation'!$K$8,'I1 Reconciliation'!$K$21) -> 1419627.824
H15: # | I15: 0
A16: Mid Peak - TOU | B16: $ | C16: =PaymentToIESO('I1 Reconciliation'!$AA$9) ->  | E16: $ | F16: =PaymentFromIESO('I1 Reconciliation'!$AA$9) -> 
B17: kWh | C17: =PaymentToIESOkWh('I1 Reconciliation'!K9,'I1 Reconciliation'!K22) -> 0 | E17: kWh | F17: =PaymentfromIESOkWh('I1 Reconciliation'!$K$9,'I1 Reconciliation'!$K$22) -> 4834407.203
A19: On Peak - TOU | B19: $ | C19: =PaymentToIESO('I1 Reconciliation'!$AA$10) ->  | E19: $ | F19: =PaymentFromIESO('I1 Reconciliation'!$AA$10) -> 
B20: kWh | C20: =PaymentToIESOkWh('I1 Reconciliation'!K10,'I1 Reconciliation'!K23) -> 0 | E20: kWh | F20: =PaymentfromIESOkWh('I1 Reconciliation'!$K$10,'I1 Reconciliation'!$K$23) -> 1414063.314
A22: SubTotal RPP For Settlement | B22: $ | C22: =SUM(C5,C8,C13,C16,C19) ->  | E22: $ | F22: =SUM(F5,F8,F13,F16,F19) -> 
A24: Total RPP For Settlement | E24: $ | F24: =C22-F22 -> 
A27: SubTotal RPP kWh For Settlement Reported | B27: kWh | C27: =SUM(C6,C9,C14,C17,C20) -> 0 | E27: kWh | F27: =SUM(F6,F9,F14,F17,F20) -> 8673621.115
A29: Total RPP kWh For Settlement Reported | E29: kWh | F29: =C27+F27 -> 8673621.115

Sheet I1 Reconciliation
C2: =Admin!$B$8 -> 202501 | D2: =Admin!$B$8 -> 202501 | E2: =C2+1 -> 202502 | F2: =D2+1 -> 202502 | G2: =E2+1 -> 202503 | H2: 202503 | I2: 202504 | J2: 202504 | K2: 202505 | L2: 202505 | M2: 202506 | N2: 202506 | O2: 202507 | P2: 202507 | Q2: 202508 | R2: 202508 | S2: 202509 | T2: 202509 | U2: 202510 | V2: 202510 | W2: 202511 | X2: 202511 | Y2: 202512 | Z2: 202512 | AA2: =Admin!B5 -> 2025 | AB2: All
C3: =A4 & "Input "& C2 & " Trueup Sett" -> Input 202501 Trueup Sett | D3: =D4 & " Input Rev " & D2 & " Init" -> I3 Input Rev 202501 Init | E3: =C4 & "Input "& E2 & " Trueup Sett" -> I2Input 202502 Trueup Sett | F3: =F4 & " Input Rev " & F2 & " Init" -> I5 Input Rev 202502 Init | G3: =E4 & "Input "& G2 & " Trueup Sett" -> I4Input 202503 Trueup Sett | H3: =H4 & " Input Rev " & H2 & " Init" -> I7 Input Rev 202503 Init | I3: =G4 & "Input "& I2 & " Trueup Sett" -> I6Input 202504 Trueup Sett | J3: =J4 & " Input Rev " & J2 & " Init" -> I9 Input Rev 202504 Init | K3: =I4 & "Input "& K2 & " Trueup Sett" -> I8Input 202505 Trueup Sett | L3: =L4 & " Input Rev " & L2 & " Init" -> I11 Input Rev 202505 Init | M3: =K4 & "Input "& M2 & " Trueup Sett" -> I10Input 202506 Trueup Sett | N3: =N4 & " Input Rev " & N2 & " Init" -> I13 Input Rev 202506 Init | O3: =M4 & "Input "& O2 & " Trueup Sett" -> I12Input 202507 Trueup Sett | P3: =P4 & " Input Rev " & P2 & " Init" -> I15 Input Rev 202507 Init | Q3: =O4 & "Input "& Q2 & " Trueup Sett" -> I14Input 202508 Trueup Sett | R3: =R4 & " Input Rev " & R2 & " Init" -> I17 Input Rev 202508 Init | S3: =Q4 & "Input "& S2 & " Trueup Sett" -> I16Input 202509 Trueup Sett | T3: =T4 & " Input Rev " & T2 & " Init" -> I19 Input Rev 202509 Init | U3: =S4 & "Input "& U2 & " Trueup Sett" -> I18Input 202510 Trueup Sett | V3: =V4 & " Input Rev " & V2 & " Init" -> I21 Input Rev 202510 Init | W3: =U4 & "Input "& W2 & " Trueup Sett" -> I20Input 202511 Trueup Sett | X3: =X4 & " Input Rev " & X2 & " Init" -> I23 Input Rev 202511 Init | Y3: =W4 & "Input "& Y2 & " Trueup Sett" -> I22Input 202512 Trueup Sett | Z3: =Z4 & " Input Rev " & Z2 & " Init" -> I25 Input Rev 202512 Init | AA3: Total IESO Settlement | AB3: Total IESO Settlement
C4: I2 | D4: I3 | E4: I4 | F4: I5 | G4: I6 | H4: I7 | I4: I8 | J4: I9 | K4: I10 | L4: I11 | M4: I12 | N4: I13 | O4: I14 | P4: I15 | Q4: I16 | R4: I17 | S4: I18 | T4: I19 | U4: I20 | V4: I21 | W4: I22 | X4: I23 | Y4: I24 | Z4: I25
B5: RPP Revenue Prices
B6: RPPT1 | C6: ='I2 Input 01 Trueup Sett '!Z6 -> -18423.5627 | D6: ='I3 Input Rev 01 Init'!C6 -> -4947.9 | E6: ='I4 Input 02 Trueup Sett'!Z6 -> 9827.88172 | F6: ='I5 Input Rev 02 Init'!C6 -> -84243.31575 | G6: ='I6 Input 03 Trueup Sett'!Z6 -> -26358.3281 | H6: ='I7 Input Rev 03 Init'!C6 -> 4842.98 | I6: ='I8 Input 04 Trueup Sett'!Z6 -> -15849.74717 | J6: ='I9 Input Rev 04 Init'!C6 -> -77263.18 | K6: ='I10 Input 05 Trueup Sett'!Z6 -> -46221.57136 | L6: ='I11 Input Rev 05 Init'!C6 -> 14185.24 | M6: ='I12 Input 06 Trueup Sett'!Z6 -> -16755.52961 | N6: ='I13 Input Rev 06 Init'!C6 -> 28195.4 | O6: ='I14 Input 07 Trueup Sett'!Z6 ->  | P6: ='I15 Input Rev 07 Init'!C6 -> -44067.23 | Q6: ='I16 Input 08 Trueup Sett'!Z6 ->  | R6: ='I17 Input Rev 08 Init'!C6 -> -40421.13 | S6: ='I18 Input 09 Trueup Sett'!Z6 ->  | T6: ='I19 Input Rev 09 Init'!C6 -> 0 | U6: ='I20 Input 10 Trueup Sett'!Z6 ->  | V6: ='I21 Input Rev 10 Init'!C6 -> 0 | W6: ='I22 Input 11 Trueup Sett'!Z6 ->  | X6: ='I23 Input Rev 11 Init'!C6 -> 0 | Y6: ='I24 Input 12 Trueup Sett'!Z6 ->  | Z6: ='I25 Input Rev 12 Init'!C6 -> 0 | AA6: =SUM(C6:Z6) ->  | AB6: =SUM(AA6:AA6) -> 
B7: RPPT2 | C7: ='I2 Input 01 Trueup Sett '!Z7 -> -504.103869 | D7: ='I3 Input Rev 01 Init'!C7 -> 6930.64 | E7: ='I4 Input 02 Trueup Sett'!Z7 -> 14791.73543 | F7: ='I5 Input Rev 02 Init'!C7 -> -14587.08511 | G7: ='I6 Input 03 Trueup Sett'!Z7 -> -4562.63654 | H7: ='I7 Input Rev 03 Init'!C7 -> 12441.46 | I7: ='I8 Input 04 Trueup Sett'!Z7 -> -399.8306034 | J7: ='I9 Input Rev 04 Init'!C7 -> -20910.35 | K7: ='I10 Input 05 Trueup Sett'!Z7 -> -15049.55558 | L7: ='I11 Input Rev 05 Init'!C7 -> 4144.59 | M7: ='I12 Input 06 Trueup Sett'!Z7 -> -2361.763945 | N7: ='I13 Input Rev 06 Init'!C7 -> 18878.04 | O7: ='I14 Input 07 Trueup Sett'!Z7 ->  | P7: ='I15 Input Rev 07 Init'!C7 -> -13348.17 | Q7: ='I16 Input 08 Trueup Sett'!Z7 ->  | R7: ='I17 Input Rev 08 Init'!C7 -> -13886.94 | S7: ='I18 Input 09 Trueup Sett'!Z7 ->  | T7: ='I19 Input Rev 09 Init'!C7 -> 0 | U7: ='I20 Input 10 Trueup Sett'!Z7 ->  | V7: ='I21 Input Rev 10 Init'!C7 -> 0 | W7: ='I22 Input 11 Trueup Sett'!Z7 ->  | X7: ='I23 Input Rev 11 Init'!C7 -> 0 | Y7: ='I24 Input 12 Trueup Sett'!Z7 ->  | Z7: ='I25 Input Rev 12 Init'!C7 -> 0 | AA7: =SUM(C7:Z7) -> 
B8: RPPTOUMID | C8: ='I2 Input 01 Trueup Sett '!Z8 -> 25797.49854 | D8: ='I3 Input Rev 01 Init'!C8 -> -97820.63 | E8: ='I4 Input 02 Trueup Sett'!Z8 -> 70768.67645 | F8: ='I5 Input Rev 02 Init'!C8 -> 1057143.151 | G8: ='I6 Input 03 Trueup Sett'!Z8 -> 111.6657304 | H8: ='I7 Input Rev 03 Init'!C8 -> 54955.11 | I8: ='I8 Input 04 Trueup Sett'!Z8 -> 17604.79721 | J8: ='I9 Input Rev 04 Init'!C8 -> -96329.18 | K8: ='I10 Input 05 Trueup Sett'!Z8 -> -52717.87916 | L8: ='I11 Input Rev 05 Init'!C8 -> 58343.51 | M8: ='I12 Input 06 Trueup Sett'!Z8 -> 5335.737878 | N8: ='I13 Input Rev 06 Init'!C8 -> 119737.96 | O8: ='I14 Input 07 Trueup Sett'!Z8 ->  | P8: ='I15 Input Rev 07 Init'!C8 -> -53584.32 | Q8: ='I16 Input 08 Trueup Sett'!Z8 ->  | R8: ='I17 Input Rev 08 Init'!C8 -> -56317.96 | S8: ='I18 Input 09 Trueup Sett'!Z8 ->  | T8: ='I19 Input Rev 09 Init'!C8 -> 0 | U8: ='I20 Input 10 Trueup Sett'!Z8 ->  | V8: ='I21 Input Rev 10 Init'!C8 -> 0 | W8: ='I22 Input 11 Trueup Sett'!Z8 ->  | X8: ='I23 Input Rev 11 Init'!C8 -> 0 | Y8: ='I24 Input 12 Trueup Sett'!Z8 ->  | Z8: ='I25 Input Rev 12 Init'!C8 -> 0
B9: RPPTOUOFF | C9: ='I2 Input 01 Trueup Sett '!Z9 -> -239323.8299 | D9: ='I3 Input Rev 01 Init'!C9 -> 41021.99 | E9: ='I4 Input 02 Trueup Sett'!Z9 -> -40980.96105 | F9: ='I5 Input Rev 02 Init'!C9 -> -2050846.903 | G9: ='I6 Input 03 Trueup Sett'!Z9 -> -291508.7577 | H9: ='I7 Input Rev 03 Init'!C9 -> -31155.32 | I9: ='I8 Input 04 Trueup Sett'!Z9 -> -188566.2593 | J9: ='I9 Input Rev 04 Init'!C9 -> -552958.51 | K9: ='I10 Input 05 Trueup Sett'!Z9 -> -401905.8416 | L9: ='I11 Input Rev 05 Init'!C9 -> -64576.41 | M9: ='I12 Input 06 Trueup Sett'!Z9 -> -229911.9201 | N9: ='I13 Input Rev 06 Init'!C9 -> 75479.05 | O9: ='I14 Input 07 Trueup Sett'!Z9 ->  | P9: ='I15 Input Rev 07 Init'!C9 -> -480581.19 | Q9: ='I16 Input 08 Trueup Sett'!Z9 ->  | R9: ='I17 Input Rev 08 Init'!C9 -> -456734.43 | S9: ='I18 Input 09 Trueup Sett'!Z9 ->  | T9: ='I19 Input Rev 09 Init'!C9 -> 0 | U9: ='I20 Input 10 Trueup Sett'!Z9 ->  | V9: ='I21 Input Rev 10 Init'!C9 -> 0 | W9: ='I22 Input 11 Trueup Sett'!Z9 ->  | X9: ='I23 Input Rev 11 Init'!C9 -> 0 | Y9: ='I24 Input 12 Trueup Sett'!Z9 ->  | Z9: ='I25 Input Rev 12 Init'!C9 -> 0
B10: RPPTOUON | C10: ='I2 Input 01 Trueup Sett '!Z10 -> 107288.692 | D10: ='I3 Input Rev 01 Init'!C10 -> 105354.2 | E10: ='I4 Input 02 Trueup Sett'!Z10 -> 140681.3211 | F10: ='I5 Input Rev 02 Init'!C10 -> 328272.5694 | G10: ='I6 Input 03 Trueup Sett'!Z10 -> 59956.59739 | H10: ='I7 Input Rev 03 Init'!C10 -> 108087.36 | I10: ='I8 Input 04 Trueup Sett'!Z10 -> 76762.32307 | J10: ='I9 Input Rev 04 Init'!C10 -> -40015.91 | K10: ='I10 Input 05 Trueup Sett'!Z10 -> -1604.148 | L10: ='I11 Input Rev 05 Init'!C10 -> 112525.49 | M10: ='I12 Input 06 Trueup Sett'!Z10 -> 69861.77296 | N10: ='I13 Input Rev 06 Init'!C10 -> 217349.81 | O10: ='I14 Input 07 Trueup Sett'!Z10 ->  | P10: ='I15 Input Rev 07 Init'!C10 -> 37237.77 | Q10: ='I16 Input 08 Trueup Sett'!Z10 ->  | R10: ='I17 Input Rev 08 Init'!C10 -> -13776.32 | S10: ='I18 Input 09 Trueup Sett'!Z10 ->  | T10: ='I19 Input Rev 09 Init'!C10 -> 0 | U10: ='I20 Input 10 Trueup Sett'!Z10 ->  | V10: ='I21 Input Rev 10 Init'!C10 -> 0 | W10: ='I22 Input 11 Trueup Sett'!Z10 ->  | X10: ='I23 Input Rev 11 Init'!C10 -> 0 | Y10: ='I24 Input 12 Trueup Sett'!Z10 ->  | Z10: ='I25 Input Rev 12 Init'!C10 -> 0
B11: RPPULOMID | C11: ='I2 Input 01 Trueup Sett '!Z11 -> 57.38222637 | D11: ='I3 Input Rev 01 Init'!C11 -> -76.88 | E11: ='I4 Input 02 Trueup Sett'!Z11 -> 173.5946001 | F11: ='I5 Input Rev 02 Init'!C11 -> 659.3616619 | G11: ='I6 Input 03 Trueup Sett'!Z11 -> 0.328074574 | H11: ='I7 Input Rev 03 Init'!C11 -> 137.9 | I11: ='I8 Input 04 Trueup Sett'!Z11 -> 45.59261621 | J11: ='I9 Input Rev 04 Init'!C11 -> -249.39 | K11: ='I10 Input 05 Trueup Sett'!Z11 -> -122.5810355 | L11: ='I11 Input Rev 05 Init'!C11 -> 160.05 | M11: ='I12 Input 06 Trueup Sett'!Z11 -> 12.95641014 | N11: ='I13 Input Rev 06 Init'!C11 -> 295.79 | O11: ='I14 Input 07 Trueup Sett'!Z11 ->  | P11: ='I15 Input Rev 07 Init'!C11 -> -122.7 | Q11: ='I16 Input 08 Trueup Sett'!Z11 ->  | R11: ='I17 Input Rev 08 Init'!C11 -> -150.06 | S11: ='I18 Input 09 Trueup Sett'!Z11 ->  | T11: ='I19 Input Rev 09 Init'!C11 -> 0 | V11: ='I21 Input Rev 10 Init'!C11 -> 0 | X11: ='I23 Input Rev 11 Init'!C11 -> 0 | Z11: ='I25 Input Rev 12 Init'!C11 -> 0 | AB11: 0
B12: RPPULOOFF | C12: ='I2 Input 01 Trueup Sett '!Z12 -> -153.4771248 | D12: ='I3 Input Rev 01 Init'!C12 -> 452.32 | E12: ='I4 Input 02 Trueup Sett'!Z12 -> -23.47220319 | F12: ='I5 Input Rev 02 Init'!C12 -> -2627.615969 | G12: ='I6 Input 03 Trueup Sett'!Z12 -> -154.3553157 | H12: ='I7 Input Rev 03 Init'!C12 -> -15.56 | I12: ='I8 Input 04 Trueup Sett'!Z12 -> -92.80039382 | J12: ='I9 Input Rev 04 Init'!C12 -> -262.11 | K12: ='I10 Input 05 Trueup Sett'!Z12 -> -207.2670573 | L12: ='I11 Input Rev 05 Init'!C12 -> -34.07 | M12: ='I12 Input 06 Trueup Sett'!Z12 -> -121.6331263 | N12: ='I13 Input Rev 06 Init'!C12 -> 38.17 | O12: ='I14 Input 07 Trueup Sett'!Z12 ->  | P12: ='I15 Input Rev 07 Init'!C12 -> -250.78 | Q12: ='I16 Input 08 Trueup Sett'!Z12 ->  | R12: ='I17 Input Rev 08 Init'!C12 -> -348.08 | S12: ='I18 Input 09 Trueup Sett'!Z12 ->  | T12: ='I19 Input Rev 09 Init'!C12 -> 0 | V12: ='I21 Input Rev 10 Init'!C12 -> 0 | X12: ='I23 Input Rev 11 Init'!C12 -> 0 | Z12: ='I25 Input Rev 12 Init'!C12 -> 0 | AB12: 0
B13: RPPULOON | C13: ='I2 Input 01 Trueup Sett '!Z13 -> 422.9942814 | D13: ='I3 Input Rev 01 Init'!C13 -> 122.09 | E13: ='I4 Input 02 Trueup Sett'!Z13 -> 449.2041246 | F13: ='I5 Input Rev 02 Init'!C13 -> 2427.922118 | G13: ='I6 Input 03 Trueup Sett'!Z13 -> 314.0094898 | H13: ='I7 Input Rev 03 Init'!C13 -> 324.81 | I13: ='I8 Input 04 Trueup Sett'!Z13 -> 309.0880802 | J13: ='I9 Input Rev 04 Init'!C13 -> 161.18 | K13: ='I10 Input 05 Trueup Sett'!Z13 -> 198.1853601 | L13: ='I11 Input Rev 05 Init'!C13 -> 335.9 | M13: ='I12 Input 06 Trueup Sett'!Z13 -> 357.5964139 | N13: ='I13 Input Rev 06 Init'!C13 -> 664.07 | O13: ='I14 Input 07 Trueup Sett'!Z13 ->  | P13: ='I15 Input Rev 07 Init'!C13 -> 433.01 | Q13: ='I16 Input 08 Trueup Sett'!Z13 ->  | R13: ='I17 Input Rev 08 Init'!C13 -> 231.08 | S13: ='I18 Input 09 Trueup Sett'!Z13 ->  | T13: ='I19 Input Rev 09 Init'!C13 -> 0 | V13: ='I21 Input Rev 10 Init'!C13 -> 0 | X13: ='I23 Input Rev 11 Init'!C13 -> 0 | Z13: ='I25 Input Rev 12 Init'!C13 -> 0 | AB13: 0
B14: RPPULOOVN | C14: ='I2 Input 01 Trueup Sett '!Z14 -> -989.6800123 | D14: ='I3 Input Rev 01 Init'!C14 -> -622.54 | E14: ='I4 Input 02 Trueup Sett'!Z14 -> -589.447413 | F14: ='I5 Input Rev 02 Init'!C14 -> -3361.175882 | G14: ='I6 Input 03 Trueup Sett'!Z14 -> -1073.127886 | H14: ='I7 Input Rev 03 Init'!C14 -> -726.15 | I14: ='I8 Input 04 Trueup Sett'!Z14 -> -874.6806023 | J14: ='I9 Input Rev 04 Init'!C14 -> -1574.18 | K14: ='I10 Input 05 Trueup Sett'!Z14 -> -1444.823883 | L14: ='I11 Input Rev 05 Init'!C14 -> -914.59 | M14: ='I12 Input 06 Trueup Sett'!Z14 -> -1034.154901 | N14: ='I13 Input Rev 06 Init'!C14 -> -449.23 | O14: ='I14 Input 07 Trueup Sett'!Z14 ->  | P14: ='I15 Input Rev 07 Init'!C14 -> -1463.4 | Q14: ='I16 Input 08 Trueup Sett'!Z14 ->  | R14: ='I17 Input Rev 08 Init'!C14 -> -1322.68 | S14: ='I18 Input 09 Trueup Sett'!Z14 ->  | T14: ='I19 Input Rev 09 Init'!C14 -> 0 | V14: ='I21 Input Rev 10 Init'!C14 -> 0 | X14: ='I23 Input Rev 11 Init'!C14 -> 0 | Z14: ='I25 Input Rev 12 Init'!C14 -> 0 | AB14: 0
B15: Total RPP For Settlement | C15: =SUM(C6:C14) -> -125828.0865 | D15: =SUM(D6:D14) -> 50413.29 | E15: 195098.5328 | F15: -767163.0915 | G15: -263274.6049 | H15: 148892.59 | I15: -111061.5171 | J15: -789401.63 | K15: -519075.4823 | L15: 124169.71 | M15: -174616.938 | N15: 460189.06 | P15: -555747.01 | R15: -582726.52 | T15: 0 | V15: 0 | X15: 0 | Z15: 0 | AB15: =SUM(AB6:AB14) -> 
D16: =C15+D15 -> -75414.79653 | F16: =E15+F15 -> -572064.5588 | H16: =G15+H15 -> -114382.0149 | J16: =I15+J15 -> -900463.1471 | L16: =K15+L15 -> -394905.7723 | N16: =M15+N15 -> 285572.122 | P16: =O15+P15 ->  | R16: =Q15+R15 ->  | T16: =S15+T15 ->  | V16: =U15+V15 ->  | X16: =W15+X15 ->  | Z16: =Y15+Z15 -> 
B18: Total RPP kWh For Settlement Reported
B19: Tier 1 | C19: ='I2 Input 01 Trueup Sett '!V6 -> 1033738.471 | D19: =-'I3 Input Rev 01 Init'!B6 -> -772328.35 | E19: ='I4 Input 02 Trueup Sett'!V6 -> 928050.3527 | F19: =-'I5 Input Rev 02 Init'!B6 -> -1771294 | G19: ='I6 Input 03 Trueup Sett'!V6 -> 911468.0056 | H19: =-'I7 Input Rev 03 Init'!B6 -> -841524.16 | I19: ='I8 Input 04 Trueup Sett'!V6 -> 861578.4266 | J19: =-'I9 Input Rev 04 Init'!B6 -> -808352.89 | K19: ='I10 Input 05 Trueup Sett'!V6 -> 699112.5056 | L19: =-'I11 Input Rev 05 Init'!B6 -> -778372.85 | M19: ='I12 Input 06 Trueup Sett'!V6 -> 684823.9221 | N19: =-'I13 Input Rev 06 Init'!B6 -> -857272.18 | O19: ='I14 Input 07 Trueup Sett'!V6 ->  | P19: =-'I15 Input Rev 07 Init'!B6 -> -715750.12 | Q19: ='I16 Input 08 Trueup Sett'!V6 ->  | R19: =-'I17 Input Rev 08 Init'!B6 -> -641849.3 | S19: ='I18 Input 09 Trueup Sett'!V6 ->  | T19: =-'I19 Input Rev 09 Init'!B6 -> 0 | U19: ='I20 Input 10 Trueup Sett'!V6 ->  | V19: =-'I21 Input Rev 10 Init'!B6 -> 0 | W19: ='I22 Input 11 Trueup Sett'!V6 ->  | X19: =-'I23 Input Rev 11 Init'!B6 -> 0 | Y19: ='I24 Input 12 Trueup Sett'!V6 ->  | Z19: =-'I25 Input Rev 12 Init'!B6 -> 0 | AA19: =SUM(C19:Z19) ->  | AB19: =SUM(AA19:AA19) -> 
B20: Tier 2 | C20: ='I2 Input 01 Trueup Sett '!V7 -> 612926.482 | D20: =-'I3 Input Rev 01 Init'!B7 -> -458369.91 | E20: ='I4 Input 02 Trueup Sett'!V7 -> 536124.4428 | F20: =-'I5 Input Rev 02 Init'!B7 -> -1023331.32 | G20: ='I6 Input 03 Trueup Sett'!V7 -> 382797.5144 | H20: =-'I7 Input Rev 03 Init'!B7 -> -353258.88 | I20: ='I8 Input 04 Trueup Sett'!V7 -> 286427.132 | J20: =-'I9 Input Rev 04 Init'!B7 -> -266755.87 | K20: ='I10 Input 05 Trueup Sett'!V7 -> 306410.268 | L20: =-'I11 Input Rev 05 Init'!B7 -> -349411.11 | M20: ='I12 Input 06 Trueup Sett'!V7 -> 316297.4179 | N20: =-'I13 Input Rev 06 Init'!B7 -> -392890.32 | O20: ='I14 Input 07 Trueup Sett'!V7 ->  | P20: =-'I15 Input Rev 07 Init'!B7 -> -419404.92 | Q20: ='I16 Input 08 Trueup Sett'!V7 ->  | R20: =-'I17 Input Rev 08 Init'!B7 -> -294738.37 | S20: ='I18 Input 09 Trueup Sett'!V7 ->  | T20: =-'I19 Input Rev 09 Init'!B7 -> 0 | U20: ='I20 Input 10 Trueup Sett'!V7 ->  | V20: =-'I21 Input Rev 10 Init'!B7 -> 0 | W20: ='I22 Input 11 Trueup Sett'!V7 ->  | X20: =-'I23 Input Rev 11 Init'!B7 -> 0 | Y20: ='I24 Input 12 Trueup Sett'!V7 ->  | Z20: =-'I25 Input Rev 12 Init'!B7 -> 0 | AA20: =SUM(C20:Z20) -> 
B21: TOU Off-peak | C21: ='I2 Input 01 Trueup Sett '!V8 -> 2165318.364 | D21: =-'I3 Input Rev 01 Init'!B8 -> -5211389.96 | E21: ='I4 Input 02 Trueup Sett'!V8 -> 1778509.39 | F21: =-'I5 Input Rev 02 Init'!B8 -> -12551327.14 | G21: ='I6 Input 03 Trueup Sett'!V8 -> 1610999.681 | H21: =-'I7 Input Rev 03 Init'!B8 -> -5463418.16 | I21: ='I8 Input 04 Trueup Sett'!V8 -> 1591415.702 | J21: =-'I9 Input Rev 04 Init'!B8 -> -4958850.87 | K21: ='I10 Input 05 Trueup Sett'!V8 -> 1419627.824 | L21: =-'I11 Input Rev 05 Init'!B8 -> -5361725.3 | M21: ='I12 Input 06 Trueup Sett'!V8 -> 1661383.294 | N21: =-'I13 Input Rev 06 Init'!B8 -> -6698765.41 | O21: ='I14 Input 07 Trueup Sett'!V8 ->  | P21: =-'I15 Input Rev 07 Init'!B8 -> -6353847.23 | Q21: ='I16 Input 08 Trueup Sett'!V8 ->  | R21: =-'I17 Input Rev 08 Init'!B8 -> -5579029.84 | S21: ='I18 Input 09 Trueup Sett'!V8 ->  | T21: =-'I19 Input Rev 09 Init'!B8 -> 0 | U21: ='I20 Input 10 Trueup Sett'!V8 ->  | V21: =-'I21 Input Rev 10 Init'!B8 -> 0 | W21: ='I22 Input 11 Trueup Sett'!V8 ->  | X21: =-'I23 Input Rev 11 Init'!B8 -> 0 | Y21: ='I24 Input 12 Trueup Sett'!V8 ->  | Z21: =-'I25 Input Rev 12 Init'!B8 -> 0
B22: TOU Mid-peak | C22: ='I2 Input 01 Trueup Sett '!V9 -> 7021304.968 | D22: =-'I3 Input Rev 01 Init'!B9 -> -1608820.16 | E22: ='I4 Input 02 Trueup Sett'!V9 -> 6600533.927 | F22: =-'I5 Input Rev 02 Init'!B9 -> -3383008.86 | G22: ='I6 Input 03 Trueup Sett'!V9 -> 6087108.366 | H22: =-'I7 Input Rev 03 Init'!B9 -> -1489855.02 | I22: ='I8 Input 04 Trueup Sett'!V9 -> 5294479.019 | J22: =-'I9 Input Rev 04 Init'!B9 -> -1495784.54 | K22: ='I10 Input 05 Trueup Sett'!V9 -> 4834407.203 | L22: =-'I11 Input Rev 05 Init'!B9 -> -1573892.18 | M22: ='I12 Input 06 Trueup Sett'!V9 -> 5373200.85 | N22: =-'I13 Input Rev 06 Init'!B9 -> -2071820.44 | O22: ='I14 Input 07 Trueup Sett'!V9 ->  | P22: =-'I15 Input Rev 07 Init'!B9 -> -1986125.84 | Q22: ='I16 Input 08 Trueup Sett'!V9 ->  | R22: =-'I17 Input Rev 08 Init'!B9 -> -1484416.41 | S22: ='I18 Input 09 Trueup Sett'!V9 ->  | T22: =-'I19 Input Rev 09 Init'!B9 -> 0 | U22: ='I20 Input 10 Trueup Sett'!V9 ->  | V22: =-'I21 Input Rev 10 Init'!B9 -> 0 | W22: ='I22 Input 11 Trueup Sett'!V9 ->  | X22: =-'I23 Input Rev 11 Init'!B9 -> 0 | Y22: ='I24 Input 12 Trueup Sett'!V9 ->  | Z22: =-'I25 Input Rev 12 Init'!B9 -> 0
B23: TOU On-peak | C23: ='I2 Input 01 Trueup Sett '!V10 -> 2239134.237 | D23: =-'I3 Input Rev 01 Init'!B10 -> -1662502.24 | E23: ='I4 Input 02 Trueup Sett'!V10 -> 1856159.621 | F23: =-'I5 Input Rev 02 Init'!B10 -> -3530939.3 | G23: ='I6 Input 03 Trueup Sett'!V10 -> 1662280.486 | H23: =-'I7 Input Rev 03 Init'!B10 -> -1531554.13 | I23: ='I8 Input 04 Trueup Sett'!V10 -> 1631066.036 | J23: =-'I9 Input Rev 04 Init'!B10 -> -1527706.42 | K23: ='I10 Input 05 Trueup Sett'!V10 -> 1414063.314 | L23: =-'I11 Input Rev 05 Init'!B10 -> -1567590.04 | M23: ='I12 Input 06 Trueup Sett'!V10 -> 1781668.357 | N23: =-'I13 Input Rev 06 Init'!B10 -> -2220857.4 | O23: ='I14 Input 07 Trueup Sett'!V10 ->  | P23: =-'I15 Input Rev 07 Init'!B10 -> -2250788.46 | Q23: ='I16 Input 08 Trueup Sett'!V10 ->  | R23: =-'I17 Input Rev 08 Init'!B10 -> -1679073.25 | S23: ='I18 Input 09 Trueup Sett'!V10 ->  | T23: =-'I19 Input Rev 09 Init'!B10 -> 0 | U23: ='I20 Input 10 Trueup Sett'!V10 ->  | V23: =-'I21 Input Rev 10 Init'!B10 -> 0 | W23: ='I22 Input 11 Trueup Sett'!V10 ->  | X23: =-'I23 Input Rev 11 Init'!B10 -> 0 | Y23: ='I24 Input 12 Trueup Sett'!V10 ->  | Z23: =-'I25 Input Rev 12 Init'!B10 -> 0
B24: RPPULOMID | C24: ='I2 Input 01 Trueup Sett '!V11 -> 4810.075514 | D24: =-'I3 Input Rev 01 Init'!B11 -> -3368.87 | E24: ='I4 Input 02 Trueup Sett'!V11 -> 4364.998754 | F24: =-'I5 Input Rev 02 Init'!B11 -> -8331.72 | G24: ='I6 Input 03 Trueup Sett'!V11 -> 4175.373319 | H24: =-'I7 Input Rev 03 Init'!B11 -> -3854.97 | I24: ='I8 Input 04 Trueup Sett'!V11 -> 4127.036695 | J24: =-'I9 Input Rev 04 Init'!B11 -> -3872.08 | K24: ='I10 Input 05 Trueup Sett'!V11 -> 3306.257946 | L24: =-'I11 Input Rev 05 Init'!B11 -> -3682.08 | M24: ='I12 Input 06 Trueup Sett'!V11 -> 4059.721738 | N24: =-'I13 Input Rev 06 Init'!B11 -> -5082.02 | P24: =-'I15 Input Rev 07 Init'!B11 -> -5094.42 | R24: =-'I17 Input Rev 08 Init'!B11 -> -4192 | T24: =-'I19 Input Rev 09 Init'!B11 -> 0 | V24: =-'I21 Input Rev 10 Init'!B11 -> 0 | W24: ='I22 Input 11 Trueup Sett'!V11 ->  | X24: =-'I23 Input Rev 11 Init'!B11 -> 0 | Y24: ='I24 Input 12 Trueup Sett'!V11 ->  | Z24: =-'I25 Input Rev 12 Init'!B11 -> 0
B25: RPPULOOFF | C25: ='I2 Input 01 Trueup Sett '!V12 -> 4503.746975 | D25: =-'I3 Input Rev 01 Init'!B12 -> -1819.24 | E25: ='I4 Input 02 Trueup Sett'!V12 -> 3766.475632 | F25: =-'I5 Input Rev 02 Init'!B12 -> -7189.28 | G25: ='I6 Input 03 Trueup Sett'!V12 -> 3361.23372 | H25: =-'I7 Input Rev 03 Init'!B12 -> -3103.3 | I25: ='I8 Input 04 Trueup Sett'!V12 -> 2654.521511 | J25: =-'I9 Input Rev 04 Init'!B12 -> -2490.53 | K25: ='I10 Input 05 Trueup Sett'!V12 -> 2495.181116 | L25: =-'I11 Input Rev 05 Init'!B12 -> -2778.81 | M25: ='I12 Input 06 Trueup Sett'!V12 -> 2842.023616 | N25: =-'I13 Input Rev 06 Init'!B12 -> -3557.68 | P25: =-'I15 Input Rev 07 Init'!B12 -> -3303.15 | R25: =-'I17 Input Rev 08 Init'!B12 -> -3875.24 | T25: =-'I19 Input Rev 09 Init'!B12 -> 0 | V25: =-'I21 Input Rev 10 Init'!B12 -> 0 | W25: ='I22 Input 11 Trueup Sett'!V12 ->  | X25: =-'I23 Input Rev 11 Init'!B12 -> 0 | Y25: ='I24 Input 12 Trueup Sett'!V12 ->  | Z25: =-'I25 Input Rev 12 Init'!B12 -> 0
B26: RPPULOON | C26: ='I2 Input 01 Trueup Sett '!V13 -> 2432.098352 | D26: =-'I3 Input Rev 01 Init'!B13 -> -3598.01 | E26: ='I4 Input 02 Trueup Sett'!V13 -> 2226.308206 | F26: =-'I5 Input Rev 02 Init'!B13 -> -4249.48 | G26: ='I6 Input 03 Trueup Sett'!V13 -> 1937.314168 | H26: =-'I7 Input Rev 03 Init'!B13 -> -1788.65 | I26: ='I8 Input 04 Trueup Sett'!V13 -> 1786.281029 | J26: =-'I9 Input Rev 04 Init'!B13 -> -1675.93 | K26: ='I10 Input 05 Trueup Sett'!V13 -> 1586.480499 | L26: =-'I11 Input Rev 05 Init'!B13 -> -1766.82 | M26: ='I12 Input 06 Trueup Sett'!V13 -> 2164.621402 | N26: =-'I13 Input Rev 06 Init'!B13 -> -2709.7 | P26: =-'I15 Input Rev 07 Init'!B13 -> -2757.4 | R26: =-'I17 Input Rev 08 Init'!B13 -> -2165.07 | T26: =-'I19 Input Rev 09 Init'!B13 -> 0 | V26: =-'I21 Input Rev 10 Init'!B13 -> 0 | W26: ='I22 Input 11 Trueup Sett'!V13 ->  | X26: =-'I23 Input Rev 11 Init'!B13 -> 0 | Y26: ='I24 Input 12 Trueup Sett'!V13 ->  | Z26: =-'I25 Input Rev 12 Init'!B13 -> 0
B27: RPPULOOVN | C27: ='I2 Input 01 Trueup Sett '!V14 -> 12058.32817 | D27: =-'I3 Input Rev 01 Init'!B14 -> -9019.8 | E27: ='I4 Input 02 Trueup Sett'!V14 -> 10869.00318 | F27: =-'I5 Input Rev 02 Init'!B14 -> -20746.28 | G27: ='I6 Input 03 Trueup Sett'!V14 -> 11425.75511 | H27: =-'I7 Input Rev 03 Init'!B14 -> -10548.97 | I27: ='I8 Input 04 Trueup Sett'!V14 -> 10544.49996 | J27: =-'I9 Input Rev 04 Init'!B14 -> -9893.09 | K27: ='I10 Input 05 Trueup Sett'!V14 -> 11023.28069 | L27: =-'I11 Input Rev 05 Init'!B14 -> -12276.3 | M27: ='I12 Input 06 Trueup Sett'!V14 -> 11388.7413 | N27: =-'I13 Input Rev 06 Init'!B14 -> -14256.59 | P27: =-'I15 Input Rev 07 Init'!B14 -> -12048.83 | R27: =-'I17 Input Rev 08 Init'!B14 -> -10318.38 | T27: =-'I19 Input Rev 09 Init'!B14 -> 0 | V27: =-'I21 Input Rev 10 Init'!B14 -> 0 | W27: ='I22 Input 11 Trueup Sett'!V14 ->  | X27: =-'I23 Input Rev 11 Init'!B14 -> 0 | Y27: ='I24 Input 12 Trueup Sett'!V14 ->  | Z27: =-'I25 Input Rev 12 Init'!B14 -> 0
B28: Total RPP For Settlement | C28: =SUM(C19:C27) -> 13096226.77 | D28: -9731216.54 | E28: 11720604.52 | F28: -22300417.38 | G28: 10675553.73 | H28: -9698906.24 | I28: 9684078.656 | J28: -9075382.22 | K28: 8692032.315 | L28: -9651495.49 | M28: 9837828.949 | N28: -12267211.74 | P28: -11749120.37 | R28: -9699657.86 | T28: 0 | V28: 0 | W28: =SUM(W19:W27) ->  | X28: =SUM(X19:X27) -> 0 | Y28: =SUM(Y19:Y27) ->  | Z28: =SUM(Z19:Z27) -> 0 | AA28: =SUM(AA19:AA27) -> 
D29: =C28+D28 -> 3365010.231 | F29: =E28+F28 -> -10579812.86 | H29: =G28+H28 -> 976647.4904 | J29: =I28+J28 -> 608696.436 | L29: =K28+L28 -> -959463.1752 | N29: =M28+N28 -> -2429382.791 | P29: =O28+P28 ->  | R29: =Q28+R28 ->  | T29: =S28+T28 ->  | V29: =U28+V28 ->  | X29: =W28+X28 ->  | Z29: =Y28+Z28 -> 

Sheet I1a ER Summary
AR3: MAB
B4: kWh Volumes | C4: $ RPP Revenue | D4: $ RPP Energy | E4: $ GA | F4: $ RPP Settlement | G4: Rev RPP Settlement | H4: Net RPP Sett | J4: IESO Energy kWh | K4: IESO Energy Cost | L4: FIT/mFIT kWh | M4: FIT/mFIT kWh | N4: Total Energy kWh | O4: Total Energy Cost | Q4: CT 148 | S4: Wholesale kWh | T4: Retail kWh | U4: Diff kWh | V4: Diff % | X4: RPP kWh | Y4: COP kWh | Z4: Diff kWh | AA4: Diff % | AC4: RPP/WHSL | AE4: Energy Purchases | AF4: Energy Revenue | AG4: RPP Revenue | AH4: Non RPP Revenue | AJ4: RPP kWh | AK4: Non RPP kWh | AL4: Total kWh | AN4: Class A kWh | AP4: Non RPP Class B | AR4: Class B | AS4: Diff
A5: =Admin!B8 -> 202501 | B5: =IFERROR('I2 Input 01 Trueup Sett '!V15,0) -> 13096226.77 | C5: =IFERROR('I2 Input 01 Trueup Sett '!W15,0) -> 1317093.648 | D5: =IFERROR('I2 Input 01 Trueup Sett '!X15,0) -> 904797.7763 | E5: =IFERROR('I2 Input 01 Trueup Sett '!Y15,0) -> 538123.958 | F5: =IFERROR('I2 Input 01 Trueup Sett '!Z15,0) -> -125828.0865 | G5: =IFERROR('I3 Input Rev 01 Init'!C10,0) -> 105354.2 | H5: =F5+G5 -> -20473.88653 | J5: =IFERROR('I2 Input 01 Trueup Sett '!C10,0) -> 23880567.14 | K5: =IFERROR('I2 Input 01 Trueup Sett '!D10,0) -> 1635320.1 | L5: =N5-J5 -> 134598.23 | M5: =O5-K5 -> 7475.64 | N5: =IFERROR('I2 Input 01 Trueup Sett '!C11,0) -> 24015165.37 | O5: ='I2 Input 01 Trueup Sett '!D11 -> 1642795.74 | Q5: =IFERROR('I2 Input 01 Trueup Sett '!B78,0) -> 820989.85 | S5: =IFERROR('I2 Input 01 Trueup Sett '!$C$11,0) -> 24015165.37 | T5: =IFERROR('I2 Input 01 Trueup Sett '!$C$35,0) -> 23756047.78 | U5: =S5-T5 -> 259117.5921 | V5: =IFERROR(T5/S5-1,0) -> -0.0107897484 | X5: =SUM('I2 Input 01 Trueup Sett '!C20:C30) -> 12926562.31 | Y5: ='I2 Input 01 Trueup Sett '!C47 -> 12941916.18 | Z5: =X5-Y5 -> -15353.86296 | AA5: =IFERROR(Y5/X5-1,0) -> 0.001187776192 | AC5: =IFERROR(X5/S5,0) -> 0.5382666376 | AE5: ='I2 Input 01 Trueup Sett '!D11 -> 1642795.74 | AF5: ='I2 Input 01 Trueup Sett '!D35 -> 2069235.339 | AG5: =C5 -> 1317093.648 | AH5: =AF5-AG5 -> 752141.6911 | AJ5: =X5 -> 12926562.31 | AK5: =T5-X5 -> 10829485.46 | AL5: =SUM(AJ5:AK5) -> 23756047.78 | AN5: ='I2 Input 01 Trueup Sett '!B70 -> 4014142.02 | AP5: =AK5-AN5 -> 6815343.443 | AR5: 6766968.728 | AS5: =AP5-AR5 -> 48374.71543 | AU5: =X5 -> 12926562.31 | AV5: ='I2 Input 01 Trueup Sett '!V15 -> 13096226.77 | AW5: =AV5/AU5-1 -> 0.01312525727
A6: =A5+1 -> 202502 | B6: =IFERROR('I4 Input 02 Trueup Sett'!V15,0) -> 11720604.52 | C6: =IFERROR('I4 Input 02 Trueup Sett'!W15,0) -> 1158930.119 | D6: =IFERROR('I4 Input 02 Trueup Sett'!X15,0) -> 928669.7726 | E6: =IFERROR('I4 Input 02 Trueup Sett'!Y15,0) -> 35161.81356 | F6: =IFERROR('I4 Input 02 Trueup Sett'!Z15,0) -> 195098.5328 | G6: =IFERROR('I5 Input Rev 02 Init'!C12,0) -> -2627.615969 | H6: =F6+G6 -> 192470.9168 | J6: =IFERROR('I4 Input 02 Trueup Sett'!C10,0) -> 21535701.93 | K6: =IFERROR('I4 Input 02 Trueup Sett'!D10,0) -> 1697767.23 | L6: =N6-J6 -> 38983.96 | M6: =O6-K6 -> 2410.1 | N6: =IFERROR('I4 Input 02 Trueup Sett'!C11,0) -> 21574685.89 | O6: ='I4 Input 02 Trueup Sett'!D11 -> 1700177.33 | Q6: =IFERROR('I4 Input 02 Trueup Sett'!B78,0) -> 53228.67 | S6: =IFERROR('I4 Input 02 Trueup Sett'!C11,0) -> 21574685.89 | T6: =IFERROR('I4 Input 02 Trueup Sett'!C35,0) -> 21284532.74 | U6: =S6-T6 -> 290153.1466 | V6: -0.01344877733 | X6: =SUM('I4 Input 02 Trueup Sett'!C20:C30) -> 11529614.4 | Y6: ='I4 Input 02 Trueup Sett'!C47 -> 11551438.95 | Z6: =X6-Y6 -> -21824.54859 | AA6: 0.001892912272 | AC6: 0.5344047398 | AE6: ='I4 Input 02 Trueup Sett'!D11 -> 1700177.33 | AF6: ='I4 Input 02 Trueup Sett'!D35 -> 1901753.651 | AG6: 1158930.119 | AH6: =AF6-AG6 -> 742823.5325 | AJ6: =X6 -> 11529614.4 | AK6: =T6-X6 -> 9754918.345 | AL6: =SUM(AJ6:AK6) -> 21284532.74 | AN6: ='I4 Input 02 Trueup Sett'!B70 -> 3768684.81 | AP6: =AK6-AN6 -> 5986233.535 | AR6: 6189134.882 | AS6: -202901.3475 | AU6: =X6 -> 11529614.4 | AV6: ='I4 Input 02 Trueup Sett'!V15 -> 11720604.52 | AW6: =AV6/AU6-1 -> 0.01656517844
A7: =A6+1 -> 202503 | B7: =IFERROR('I6 Input 03 Trueup Sett'!V15,0) -> 10675553.73 | C7: =IFERROR('I6 Input 03 Trueup Sett'!W15,0) -> 1038389.963 | D7: =IFERROR('I6 Input 03 Trueup Sett'!X15,0) -> 527050.7045 | E7: =IFERROR('I6 Input 03 Trueup Sett'!Y15,0) -> 774613.8638 | F7: =IFERROR('I6 Input 03 Trueup Sett'!Z15,0) -> -263274.6049 | G7: =IFERROR('I7 Input Rev 03 Init'!C12,0) -> -15.56 | H7: =F7+G7 -> -263290.1649 | J7: =IFERROR('I6 Input 03 Trueup Sett'!C10,0) -> 20195256.39 | K7: =IFERROR('I6 Input 03 Trueup Sett'!D10,0) -> 1001822.74 | L7: 489285.89 | M7: 20482.51 | N7: =IFERROR('I6 Input 03 Trueup Sett'!C11,0) -> 20684542.28 | O7: ='I6 Input 03 Trueup Sett'!D11 -> 1022305.25 | Q7: =IFERROR('I6 Input 03 Trueup Sett'!B78,0) -> 1206475.83 | S7: =IFERROR('I6 Input 03 Trueup Sett'!C11,0) -> 20684542.28 | T7: =IFERROR('I6 Input 03 Trueup Sett'!C35,0) -> 21245986.6 | U7: -561444.3178 | V7: 0.02714318307 | X7: =SUM('I6 Input 03 Trueup Sett'!C20:C30) -> 11036027.22 | Y7: ='I6 Input 03 Trueup Sett'!C47 -> 10900986.08 | Z7: 135041.1386 | AA7: -0.0122363905 | AC7: 0.5335398323 | AE7: ='I6 Input 03 Trueup Sett'!D11 -> 1022305.25 | AF7: ='I6 Input 03 Trueup Sett'!D35 -> 1570709.355 | AG7: 1038389.963 | AH7: 532319.3916 | AJ7: 11036027.22 | AK7: 10209959.38 | AL7: 21245986.6 | AN7: ='I6 Input 03 Trueup Sett'!B70 -> 4057164.24 | AP7: 6152795.138 | AR7: 6799351.878 | AS7: -646556.7399 | AU7: 11036027.22 | AV7: ='I6 Input 03 Trueup Sett'!V15 -> 10675553.73 | AW7: =AV7/AU7-1 -> -0.03266333819
A8: 202504 | B8: =IFERROR('I8 Input 04 Trueup Sett'!V15,0) -> 9684078.656 | C8: =IFERROR('I8 Input 04 Trueup Sett'!W15,0) -> 963791.7173 | D8: =IFERROR('I8 Input 04 Trueup Sett'!X15,0) -> 405199.1953 | E8: =IFERROR('I8 Input 04 Trueup Sett'!Y15,0) -> 669654.0391 | F8: =IFERROR('I8 Input 04 Trueup Sett'!Z15,0) -> -111061.5171 | G8: =IFERROR('I9 Input Rev 04 Init'!C12,0) -> -262.11 | H8: -111323.6271 | J8: =IFERROR('I8 Input 04 Trueup Sett'!C10,0) -> 18636926.91 | K8: =IFERROR('I8 Input 04 Trueup Sett'!D10,0) -> 779391.87 | L8: 688880.94 | M8: 23370.6 | N8: =IFERROR('I8 Input 04 Trueup Sett'!C11,0) -> 19325807.85 | O8: ='I8 Input 04 Trueup Sett'!D11 -> 802762.47 | Q8: =IFERROR('I8 Input 04 Trueup Sett'!B78,0) -> 1061923.87 | S8: =IFERROR('I8 Input 04 Trueup Sett'!C11,0) -> 19325807.85 | T8: =IFERROR('I8 Input 04 Trueup Sett'!C35,0) -> 19063626.09 | U8: 262181.7584 | V8: -0.01356640615 | X8: =SUM('I8 Input 04 Trueup Sett'!C20:C30) -> 9518775.708 | Y8: ='I8 Input 04 Trueup Sett'!C47 -> 9504276.877 | Z8: 14498.83037 | AA8: -0.001523182268 | AC8: 0.4925421893 | AE8: ='I8 Input 04 Trueup Sett'!D11 -> 802762.47 | AF8: ='I8 Input 04 Trueup Sett'!D35 -> 1338732.761 | AG8: 963791.7173 | AH8: 374941.0436 | AJ8: 9518775.708 | AK8: 9544850.384 | AL8: 19063626.09 | AN8: ='I8 Input 04 Trueup Sett'!B70 -> 3966198.14 | AP8: 5578652.244 | AR8: 5857784.718 | AS8: -279132.4738 | AU8: 9518775.708 | AV8: ='I8 Input 04 Trueup Sett'!V15 -> 9684078.656 | AW8: =AV8/AU8-1 -> 0.01736598838
A9: 202505 | B9: =IFERROR('I10 Input 05 Trueup Sett'!V15,0) -> 8692032.315 | C9: =IFERROR('I10 Input 05 Trueup Sett'!W15,0) -> 864106.1887 | D9: =IFERROR('I10 Input 05 Trueup Sett'!X15,0) -> 210365.7508 | E9: =IFERROR('I10 Input 05 Trueup Sett'!Y15,0) -> 1172815.92 | F9: =IFERROR('I10 Input 05 Trueup Sett'!Z15,0) -> -519075.4823 | G9: =IFERROR('I11 Input Rev 05 Init'!C12,0) -> -34.07 | H9: -519109.5523 | J9: =IFERROR('I10 Input 05 Trueup Sett'!C10,0) -> 17630647.47 | K9: =IFERROR('I10 Input 05 Trueup Sett'!D10,0) -> 429918.47 | L9: 750813.65 | M9: 18935.15 | N9: =IFERROR('I10 Input 05 Trueup Sett'!C11,0) -> 18381461.12 | O9: ='I10 Input 05 Trueup Sett'!D11 -> 448853.62 | Q9: =IFERROR('I10 Input 05 Trueup Sett'!B78,0) -> 1946730.07 | S9: =IFERROR('I10 Input 05 Trueup Sett'!C11,0) -> 18381461.12 | T9: =IFERROR('I10 Input 05 Trueup Sett'!C35,0) -> 18157879.3 | U9: 223581.8222 | V9: -0.01216344124 | X9: =SUM('I10 Input 05 Trueup Sett'!C20:C30) -> 8557250.743 | Y9: ='I10 Input 05 Trueup Sett'!C47 -> 8612299.072 | Z9: -55048.32932 | AA9: 0.006432945694 | AC9: 0.465537026 | AE9: ='I10 Input 05 Trueup Sett'!D11 -> 448853.62 | AF9: ='I10 Input 05 Trueup Sett'!D35 -> 1088684.138 | AG9: 864106.1887 | AH9: 224577.9493 | AJ9: 8557250.743 | AK9: 9600628.555 | AL9: 18157879.3 | AN9: ='I10 Input 05 Trueup Sett'!B70 -> 3962721.26 | AP9: 5637907.295 | AR9: 6011389.318 | AS9: -373482.0227 | AU9: 8557250.743 | AV9: ='I10 Input 05 Trueup Sett'!V15 -> 8692032.315 | AW9: 0.01575056942
A10: 202506 | B10: =IFERROR('I12 Input 06 Trueup Sett'!V15,0) -> 9837828.949 | C10: =IFERROR('I12 Input 06 Trueup Sett'!W15,0) -> 992683.775 | D10: =IFERROR('I12 Input 06 Trueup Sett'!X15,0) -> 579785.5682 | E10: =IFERROR('I12 Input 06 Trueup Sett'!Y15,0) -> 587515.1448 | F10: =IFERROR('I12 Input 06 Trueup Sett'!Z15,0) -> -174616.938 | G10: =IFERROR('I13 Input Rev 06 Init'!C12,0) -> 38.17 | H10: -174578.768 | J10: =IFERROR('I12 Input 06 Trueup Sett'!C10,0) -> 19120592.23 | K10: =IFERROR('I12 Input 06 Trueup Sett'!D10,0) -> 1054412.74 | L10: 847981.32 | M10: 46753.29 | N10: =IFERROR('I12 Input 06 Trueup Sett'!C11,0) -> 19968573.55 | O10: ='I12 Input 06 Trueup Sett'!D11 -> 1101166.03 | Q10: =IFERROR('I12 Input 06 Trueup Sett'!B78,0) -> 944341.28 | S10: =IFERROR('I12 Input 06 Trueup Sett'!C11,0) -> 19968573.55 | T10: =IFERROR('I12 Input 06 Trueup Sett'!C35,0) -> 19793943.48 | U10: 174630.0674 | V10: -0.008745244971 | X10: =SUM('I12 Input 06 Trueup Sett'!C20:C30) -> 9729746.599 | Y10: ='I12 Input 06 Trueup Sett'!C47 -> 9763120.215 | Z10: -33373.61615 | AA10: 0.003430060157 | AC10: 0.4872529615 | AE10: ='I12 Input 06 Trueup Sett'!D11 -> 1101166.03 | AF10: ='I12 Input 06 Trueup Sett'!D35 -> 1520976.712 | AG10: 992683.775 | AH10: 528292.9365 | AJ10: 9729746.599 | AK10: 10064196.88 | AL10: 19793943.48 | AN10: ='I12 Input 06 Trueup Sett'!B70 -> 4073464.62 | AP10: 5990732.264 | AR10: 6142902.903 | AS10: -152170.639 | AU10: 9729746.599 | AV10: =IFERROR('I12 Input 06 Trueup Sett'!V15,0) -> 9837828.949 | AW10: =IFERROR(AV10/AU10-1,0) -> 0.01110844453
A11: 202507 | B11: =IFERROR('I14 Input 07 Trueup Sett'!V15,0) -> 0 | C11: =IFERROR('I14 Input 07 Trueup Sett'!W15,0) -> 0 | D11: =IFERROR('I14 Input 07 Trueup Sett'!X15,0) -> 0 | E11: =IFERROR('I14 Input 07 Trueup Sett'!Y15,0) -> 0 | F11: =IFERROR('I14 Input 07 Trueup Sett'!Z15,0) -> 0 | G11: =IFERROR('I15 Input Rev 07 Init'!C12,0) -> -250.78 | H11: -250.78 | J11: =IFERROR('I14 Input 07 Trueup Sett'!C10,0) -> 0 | K11: =IFERROR('I14 Input 07 Trueup Sett'!D10,0) -> 0 | L11: 0 | M11: 0 | N11: =IFERROR('I14 Input 07 Trueup Sett'!C11,0) -> 0 | O11: ='I14 Input 07 Trueup Sett'!D11 -> 0 | Q11: =IFERROR('I14 Input 07 Trueup Sett'!B78,0) -> 0 | S11: =IFERROR('I14 Input 07 Trueup Sett'!C11,0) -> 0 | T11: =IFERROR('I14 Input 07 Trueup Sett'!C35,0) -> 0 | U11: 0 | V11: 0 | X11: =SUM('I14 Input 07 Trueup Sett'!C20:C30) -> 0 | Y11: ='I14 Input 07 Trueup Sett'!C47 -> 0 | Z11: 0 | AA11: 0 | AC11: 0 | AE11: ='I14 Input 07 Trueup Sett'!D11 -> 0 | AF11: ='I14 Input 07 Trueup Sett'!D35 -> 0 | AG11: 0 | AH11: 0 | AJ11: 0 | AK11: 0 | AL11: 0 | AN11: ='I14 Input 07 Trueup Sett'!B70 -> 0 | AP11: 0 | AR11: 6625667.557 | AS11: -6625667.557 | AU11: 0 | AV11: =IFERROR('I14 Input 07 Trueup Sett'!V15,0) -> 0 | AW11: 0
A12: 202508 | B12: =IFERROR('I16 Input 08 Trueup Sett'!V15,0) -> 0 | C12: =IFERROR('I16 Input 08 Trueup Sett'!W15,0) -> 0 | D12: =IFERROR('I16 Input 08 Trueup Sett'!X15,0) -> 0 | E12: =IFERROR('I16 Input 08 Trueup Sett'!Y15,0) -> 0 | F12: =IFERROR('I16 Input 08 Trueup Sett'!Z15,0) -> 0 | G12: =IFERROR('I17 Input Rev 08 Init'!C12,0) -> -348.08 | H12: -348.08 | J12: =IFERROR('I16 Input 08 Trueup Sett'!C10,0) -> 0 | K12: =IFERROR('I16 Input 08 Trueup Sett'!D10,0) -> 0 | L12: 0 | M12: 0 | N12: =IFERROR('I16 Input 08 Trueup Sett'!C11,0) -> 0 | O12: ='I16 Input 08 Trueup Sett'!D11 -> 0 | Q12: =IFERROR('I16 Input 08 Trueup Sett'!B78,0) -> 0 | S12: =IFERROR('I16 Input 08 Trueup Sett'!C11,0) -> 0 | T12: =IFERROR('I16 Input 08 Trueup Sett'!C35,0) -> 0 | U12: 0 | V12: 0 | X12: =SUM('I16 Input 08 Trueup Sett'!C20:C30) -> 0 | Y12: ='I16 Input 08 Trueup Sett'!C47 -> 0 | Z12: 0 | AA12: 0 | AC12: 0 | AE12: ='I16 Input 08 Trueup Sett'!D11 -> 0 | AF12: ='I16 Input 08 Trueup Sett'!D35 -> 0 | AG12: 0 | AH12: 0 | AJ12: 0 | AK12: 0 | AL12: 0 | AN12: ='I16 Input 08 Trueup Sett'!B70 -> 0 | AP12: 0 | AR12: 6475196.01 | AS12: -6475196.01 | AU12: 0 | AV12: =IFERROR('I16 Input 08 Trueup Sett'!V15,0) -> 0 | AW12: 0
A13: 202509 | B13: =IFERROR('I18 Input 09 Trueup Sett'!V15,0) -> 0 | C13: =IFERROR('I18 Input 09 Trueup Sett'!W15,0) -> 0 | D13: =IFERROR('I18 Input 09 Trueup Sett'!X15,0) -> 0 | E13: =IFERROR('I18 Input 09 Trueup Sett'!Y15,0) -> 0 | F13: =IFERROR('I18 Input 09 Trueup Sett'!Z15,0) -> 0 | G13: =IFERROR('I19 Input Rev 09 Init'!C12,0) -> 0 | H13: 0 | J13: =IFERROR('I18 Input 09 Trueup Sett'!C10,0) -> 0 | K13: =IFERROR('I18 Input 09 Trueup Sett'!D10,0) -> 0 | L13: 0 | M13: 0 | N13: =IFERROR('I18 Input 09 Trueup Sett'!C11,0) -> 0 | O13: ='I18 Input 09 Trueup Sett'!D11 -> 0 | Q13: =IFERROR('I18 Input 09 Trueup Sett'!B78,0) -> 0 | S13: =IFERROR('I18 Input 09 Trueup Sett'!C11,0) -> 0 | T13: =IFERROR('I18 Input 09 Trueup Sett'!C35,0) -> 0 | U13: 0 | V13: 0 | X13: =SUM('I18 Input 09 Trueup Sett'!C20:C30) -> 0 | Y13: ='I18 Input 09 Trueup Sett'!C47 -> 0 | Z13: 0 | AA13: 0 | AC13: 0 | AE13: ='I18 Input 09 Trueup Sett'!D11 -> 0 | AF13: ='I18 Input 09 Trueup Sett'!D35 -> 0 | AG13: 0 | AH13: 0 | AJ13: 0 | AK13: 0 | AL13: 0 | AN13: ='I18 Input 09 Trueup Sett'!B70 -> 0 | AP13: 0 | AR13: 6202121.122 | AS13: -6202121.122 | AU13: 0 | AV13: =IFERROR('I18 Input 09 Trueup Sett'!V15,0) -> 0 | AW13: 0
A14: 202510 | B14: =IFERROR('I20 Input 10 Trueup Sett'!V15,0) -> 0 | C14: =IFERROR('I20 Input 10 Trueup Sett'!W15,0) -> 0 | D14: =IFERROR('I20 Input 10 Trueup Sett'!X15,0) -> 0 | E14: =IFERROR('I20 Input 10 Trueup Sett'!Y15,0) -> 0 | F14: =IFERROR('I20 Input 10 Trueup Sett'!Z15,0) -> 0 | G14: =IFERROR('I21 Input Rev 10 Init'!C12,0) -> 0 | H14: 0 | J14: =IFERROR('I20 Input 10 Trueup Sett'!C10,0) -> 0 | K14: =IFERROR('I20 Input 10 Trueup Sett'!D10,0) -> 0 | L14: 0 | M14: 0 | N14: =IFERROR('I18 Input 09 Trueup Sett'!C12,0) -> 0 | O14: ='I20 Input 10 Trueup Sett'!D11 -> 0 | Q14: =IFERROR('I20 Input 10 Trueup Sett'!B78,0) -> 0 | S14: =IFERROR('I20 Input 10 Trueup Sett'!C11,0) -> 0 | T14: =IFERROR('I20 Input 10 Trueup Sett'!C35,0) -> 0 | U14: 0 | V14: 0 | X14: =SUM('I20 Input 10 Trueup Sett'!C20:C30) -> 0 | Y14: ='I20 Input 10 Trueup Sett'!C47 -> 0 | Z14: 0 | AA14: 0 | AC14: 0 | AE14: ='I20 Input 10 Trueup Sett'!D11 -> 0 | AF14: ='I20 Input 10 Trueup Sett'!D35 -> 0 | AG14: 0 | AH14: 0 | AJ14: 0 | AK14: 0 | AL14: 0 | AN14: ='I20 Input 10 Trueup Sett'!B70 -> 0 | AP14: 0 | AR14: 6145165.96 | AS14: -6145165.96 | AU14: 0 | AV14: =IFERROR('I20 Input 10 Trueup Sett'!V15,0) -> 0 | AW14: 0
A15: 202511 | B15: =IFERROR('I22 Input 11 Trueup Sett'!V15,0) -> 0 | C15: =IFERROR('I22 Input 11 Trueup Sett'!W15,0) -> 0 | D15: =IFERROR('I22 Input 11 Trueup Sett'!X15,0) -> 0 | E15: =IFERROR('I22 Input 11 Trueup Sett'!Y15,0) -> 0 | F15: =IFERROR('I22 Input 11 Trueup Sett'!Z15,0) -> 0 | G15: =IFERROR('I23 Input Rev 11 Init'!C12,0) -> 0 | H15: 0 | J15: =IFERROR('I22 Input 11 Trueup Sett'!C10,0) -> 0 | K15: =IFERROR('I22 Input 11 Trueup Sett'!D10,0) -> 0 | L15: 0 | M15: 0 | N15: =IFERROR('I22 Input 11 Trueup Sett'!C11,0) -> 0 | O15: ='I22 Input 11 Trueup Sett'!D11 -> 0 | Q15: =IFERROR('I22 Input 11 Trueup Sett'!B78,0) -> 0 | S15: =IFERROR('I22 Input 11 Trueup Sett'!C11,0) -> 0 | T15: =IFERROR('I22 Input 11 Trueup Sett'!C31,0) -> 0 | U15: 0 | V15: 0 | X15: =SUM('I22 Input 11 Trueup Sett'!C20:C30) -> 0 | Y15: ='I22 Input 11 Trueup Sett'!C45 -> 0 | Z15: 0 | AA15: 0 | AC15: 0 | AE15: ='I22 Input 11 Trueup Sett'!D11 -> 0 | AF15: ='I22 Input 11 Trueup Sett'!D31 -> 0 | AG15: 0 | AH15: 0 | AJ15: 0 | AK15: 0 | AL15: 0 | AN15: ='I22 Input 11 Trueup Sett'!B70 -> 0 | AP15: 0 | AR15: 6209418.74 | AS15: -6209418.74 | AU15: 0 | AV15: =IFERROR('I22 Input 11 Trueup Sett'!V15,0) -> 0 | AW15: 0
A16: 202512 | B16: =IFERROR('I24 Input 12 Trueup Sett'!V15,0) -> 0 | C16: =IFERROR('I24 Input 12 Trueup Sett'!W15,0) -> 0 | D16: =IFERROR('I24 Input 12 Trueup Sett'!X15,0) -> 0 | E16: =IFERROR('I24 Input 12 Trueup Sett'!Y15,0) -> 0 | F16: =IFERROR('I24 Input 12 Trueup Sett'!Z15,0) -> 0 | G16: =IFERROR('I25 Input Rev 12 Init'!C12,0) -> 0 | H16: 0 | J16: =IFERROR('I24 Input 12 Trueup Sett'!C10,0) -> 0 | K16: =IFERROR('I24 Input 12 Trueup Sett'!D10,0) -> 0 | L16: 0 | M16: 0 | N16: =IFERROR('I24 Input 12 Trueup Sett'!C11,0) -> 0 | O16: ='I24 Input 12 Trueup Sett'!D11 -> 0 | Q16: =IFERROR('I24 Input 12 Trueup Sett'!B78,0) -> 0 | S16: =IFERROR('I24 Input 12 Trueup Sett'!C11,0) -> 0 | T16: =IFERROR('I24 Input 12 Trueup Sett'!C31,0) -> 0 | U16: 0 | V16: 0 | X16: =SUM('I24 Input 12 Trueup Sett'!C20:C30) -> 0 | Y16: ='I24 Input 12 Trueup Sett'!C45 -> 0 | Z16: 0 | AA16: 0 | AC16: 0 | AE16: ='I24 Input 12 Trueup Sett'!D11 -> 0 | AF16: ='I24 Input 12 Trueup Sett'!D31 -> 0 | AG16: 0 | AH16: 0 | AJ16: 0 | AK16: 0 | AL16: 0 | AN16: ='I24 Input 12 Trueup Sett'!B70 -> 0 | AP16: 0 | AR16: 6004138.1 | AS16: -6004138.1 | AU16: 0 | AV16: =IFERROR('I24 Input 12 Trueup Sett'!V15,0) -> 0 | AW16: 0
B17: =SUM(B5:B16) -> 63706324.94 | C17: 6334995.411 | D17: 3555868.768 | E17: 3777884.739 | F17: =SUM(F5:F16) -> -998758.096 | G17: =SUM(G5:G16) -> 101854.154 | H17: =SUM(H5:H16) -> -896903.942 | J17: 120999692.1 | K17: 6598633.15 | L17: 2950543.99 | M17: 119427.29 | N17: =IFERROR(SUM(N5:N16),0) -> 123950236.1 | O17: 6718060.44 | Q17: 6033689.57 | S17: =SUM(S5:S16) -> 123950236.1 | T17: 123302016 | U17: 648220.0689 | V17: =T17/S17-1 -> -0.005229679987 | X17: =SUM(X5:X16) -> 63297976.98 | Y17: 63274037.37 | Z17: 23939.61196 | AA17: =Y17/X17-1 -> -0.0003782050091 | AC17: =X17/S17 -> 0.5106725005 | AE17: =SUM(AE5:AE16) -> 6718060.44 | AF17: 9490091.956 | AG17: 6334995.411 | AH17: 3155096.545 | AJ17: =SUM(AJ5:AJ16) -> 63297976.98 | AK17: 60004039.01 | AL17: 123302016 | AN17: 23842375.09 | AP17: =SUM(AP5:AP16) -> 36161663.92 | AR17: =SUM(AR5:AR16) -> 75429239.92 | AS17: =SUM(AS5:AS16) -> -39267576 | AU17: =SUM(AU5:AU16) -> 63297976.98 | AV17: =SUM(AV5:AV16) -> 63706324.94 | AW17: 0.006451200759
A20: 4705 GA | B20: ='Rec1 1588 Commodity'!F23 -> 0
A22: 4707 GA | B22: ='Rec2 1589 Class B'!J23 -> 0
A24: Should Be $0 | B24: =SUM(B20:B23) -> 0
A26: (Owed To)/Owed From IESO | B26: =-H17 -> 896903.942
A28: (Owed To)/Owed From Power Consumer | B28: ='Rec1 1588 Commodity'!L20 -> 7095.127801
A30: (Owed To)/Owed From Class B | B30: ='Rec2 1589 Class B'!K20 -> -262310.3595
A32: (Owed To)/Owed From | B32: =SUM(B26:B31) -> 641688.7104
A35: Unresolved Difference as % of Expected GA Payments to IESO | B35: ='Rev3 GA Analysis '!D67 -> 0.005034055258
A37: Account 1588 as % of Account 4705 | B37: ='Rev3 GA Analysis '!G99 -> 0.0007470767648

Sheet I1b RPP Rates
A3: RPP Rates | P3: RPP Rates Split
B4: =Admin!B8 -> 202501 | C4: =B4+1 -> 202502 | D4: =C4+1 -> 202503 | E4: 202504 | F4: 202505 | G4: 202506 | H4: 202507 | I4: 202508 | J4: 202509 | K4: 202510 | L4: 202511 | M4: 202512 | Q4: =B4 -> 202501 | R4: =Q4+1 -> 202502 | S4: =R4+1 -> 202503 | T4: =S4+1 -> 202504 | U4: =T4+1 -> 202505 | V4: =U4+1 -> 202506 | W4: =V4+1 -> 202507 | X4: =W4+1 -> 202508 | Y4: =X4+1 -> 202509 | Z4: =Y4+1 -> 202510 | AA4: =Z4+1 -> 202511 | AB4: =AA4+1 -> 202512
A5: RPPT1 | B5: ='I2 Input 01 Trueup Sett '!Q6 -> 0.09299976136 | C5: ='I4 Input 02 Trueup Sett'!Q6 -> 0.09300002524 | D5: ='I6 Input 03 Trueup Sett'!Q6 -> 0.09299989629 | E5: ='I8 Input 04 Trueup Sett'!Q6 -> 0.09299998273 | F5: ='I10 Input 05 Trueup Sett'!Q6 -> 0.09299971563 | G5: ='I12 Input 06 Trueup Sett'!Q6 -> 0.09300025041 | H5: ='I14 Input 07 Trueup Sett'!Q6 ->  | I5: ='I16 Input 08 Trueup Sett'!Q6 ->  | J5: ='I18 Input 09 Trueup Sett'!Q6 ->  | K5: ='I20 Input 10 Trueup Sett'!Q6 ->  | L5: ='I22 Input 11 Trueup Sett'!Q6 ->  | M5: ='I24 Input 12 Trueup Sett'!Q6 ->  | P5: RPPT1 | Q5: ='I2 Input 01 Trueup Sett '!L18 -> 0.07893406927 | R5: ='I4 Input 02 Trueup Sett'!L18 -> 0.07918109951 | S5: ='I6 Input 03 Trueup Sett'!L18 -> 0.08537899097 | T5: ='I8 Input 04 Trueup Sett'!L18 -> 0.08896854901 | U5: ='I10 Input 05 Trueup Sett'!L18 -> 0.08043142044 | V5: ='I12 Input 06 Trueup Sett'!L18 -> 0.06961128575 | W5: ='I14 Input 07 Trueup Sett'!L18 ->  | X5: ='I16 Input 08 Trueup Sett'!L18 ->  | Y5: ='I18 Input 09 Trueup Sett'!L18 ->  | Z5: ='I20 Input 10 Trueup Sett'!L18 ->  | AA5: ='I22 Input 11 Trueup Sett'!L18 ->  | AB5: ='I24 Input 12 Trueup Sett'!L18 -> 
A6: RPPT2 | B6: ='I2 Input 01 Trueup Sett '!Q7 -> 0.109999574 | C6: ='I4 Input 02 Trueup Sett'!Q7 -> 0.1100003258 | D6: ='I6 Input 03 Trueup Sett'!Q7 -> 0.1099992502 | E6: ='I8 Input 04 Trueup Sett'!Q7 -> 0.110000233 | F6: ='I10 Input 05 Trueup Sett'!Q7 -> 0.1099986527 | G6: ='I12 Input 06 Trueup Sett'!Q7 -> 0.110000258 | H6: ='I14 Input 07 Trueup Sett'!Q7 ->  | I6: ='I16 Input 08 Trueup Sett'!Q7 ->  | J6: ='I18 Input 09 Trueup Sett'!Q7 ->  | K6: ='I20 Input 10 Trueup Sett'!Q7 ->  | L6: ='I22 Input 11 Trueup Sett'!Q7 ->  | M6: ='I24 Input 12 Trueup Sett'!Q7 ->  | P6: RPPT2 | Q6: ='I2 Input 01 Trueup Sett '!L19 -> 0.04680176151 | R6: ='I4 Input 02 Trueup Sett'!L19 -> 0.04574204701 | S6: ='I6 Input 03 Trueup Sett'!L19 -> 0.03585739195 | T6: ='I8 Input 04 Trueup Sett'!L19 -> 0.02957711747 | U6: ='I10 Input 05 Trueup Sett'!L19 -> 0.0352518556 | V6: ='I12 Input 06 Trueup Sett'!L19 -> 0.03215114021 | W6: ='I14 Input 07 Trueup Sett'!L19 ->  | X6: ='I16 Input 08 Trueup Sett'!L19 ->  | Y6: ='I18 Input 09 Trueup Sett'!L19 ->  | Z6: ='I20 Input 10 Trueup Sett'!L19 ->  | AA6: ='I22 Input 11 Trueup Sett'!L19 ->  | AB6: ='I24 Input 12 Trueup Sett'!L19 -> 
A7: RPPTOUMID | B7: ='I2 Input 01 Trueup Sett '!Q8 -> 0.1219998447 | C7: ='I4 Input 02 Trueup Sett'!Q8 -> 0.1219997474 | D7: ='I6 Input 03 Trueup Sett'!Q8 -> 0.1220003211 | E7: ='I8 Input 04 Trueup Sett'!Q8 -> 0.121999726 | F7: ='I10 Input 05 Trueup Sett'!Q8 -> 0.1219996179 | G7: ='I12 Input 06 Trueup Sett'!Q8 -> 0.1220003787 | H7: ='I14 Input 07 Trueup Sett'!Q8 ->  | I7: ='I16 Input 08 Trueup Sett'!Q8 ->  | J7: ='I18 Input 09 Trueup Sett'!Q8 ->  | K7: ='I20 Input 10 Trueup Sett'!Q8 ->  | L7: ='I22 Input 11 Trueup Sett'!Q8 ->  | M7: ='I24 Input 12 Trueup Sett'!Q8 ->  | P7: RPPTOUMID | Q7: ='I2 Input 01 Trueup Sett '!L20 -> 0.1653391012 | R7: ='I4 Input 02 Trueup Sett'!L20 -> 0.151742121 | S7: ='I6 Input 03 Trueup Sett'!L20 -> 0.1509054914 | T7: ='I8 Input 04 Trueup Sett'!L20 -> 0.164333207 | U7: ='I10 Input 05 Trueup Sett'!L20 -> 0.1633251893 | V7: ='I12 Input 06 Trueup Sett'!L20 -> 0.1688770259 | W7: ='I14 Input 07 Trueup Sett'!L20 ->  | X7: ='I16 Input 08 Trueup Sett'!L20 ->  | Y7: ='I18 Input 09 Trueup Sett'!L20 ->  | Z7: ='I20 Input 10 Trueup Sett'!L20 ->  | AA7: ='I22 Input 11 Trueup Sett'!L20 ->  | AB7: ='I24 Input 12 Trueup Sett'!L20 -> 
A8: RPPTOUOFF | B8: ='I2 Input 01 Trueup Sett '!Q9 -> 0.07600051551 | C8: ='I4 Input 02 Trueup Sett'!Q9 -> 0.07600000788 | D8: ='I6 Input 03 Trueup Sett'!Q9 -> 0.07404147675 | E8: ='I8 Input 04 Trueup Sett'!Q9 -> 0.07532173609 | F8: ='I10 Input 05 Trueup Sett'!Q9 -> 0.07600015594 | G8: ='I12 Input 06 Trueup Sett'!Q9 -> 0.07600012186 | H8: ='I14 Input 07 Trueup Sett'!Q9 ->  | I8: ='I16 Input 08 Trueup Sett'!Q9 ->  | J8: ='I18 Input 09 Trueup Sett'!Q9 ->  | K8: ='I20 Input 10 Trueup Sett'!Q9 ->  | L8: ='I22 Input 11 Trueup Sett'!Q9 ->  | M8: ='I24 Input 12 Trueup Sett'!Q9 ->  | P8: RPPTOUOFF | Q8: ='I2 Input 01 Trueup Sett '!L21 -> 0.536131902 | R8: ='I4 Input 02 Trueup Sett'!L21 -> 0.563156441 | S8: ='I6 Input 03 Trueup Sett'!L21 -> 0.5701913475 | T8: ='I8 Input 04 Trueup Sett'!L21 -> 0.5467199522 | U8: ='I10 Input 05 Trueup Sett'!L21 -> 0.5561883605 | V8: ='I12 Input 06 Trueup Sett'!L21 -> 0.546177503 | W8: ='I14 Input 07 Trueup Sett'!L21 ->  | X8: ='I16 Input 08 Trueup Sett'!L21 ->  | Y8: ='I18 Input 09 Trueup Sett'!L21 ->  | Z8: ='I20 Input 10 Trueup Sett'!L21 ->  | AA8: ='I22 Input 11 Trueup Sett'!L21 ->  | AB8: ='I24 Input 12 Trueup Sett'!L21 -> 
A9: RPPTOUON | B9: ='I2 Input 01 Trueup Sett '!Q10 -> 0.1580011498 | C9: ='I4 Input 02 Trueup Sett'!Q10 -> 0.1580003494 | D9: ='I6 Input 03 Trueup Sett'!Q10 -> 0.1579998878 | E9: ='I8 Input 04 Trueup Sett'!Q10 -> 0.1580000465 | F9: ='I10 Input 05 Trueup Sett'!Q10 -> 0.1580001934 | G9: ='I12 Input 06 Trueup Sett'!Q10 -> 0.15800019 | H9: ='I14 Input 07 Trueup Sett'!Q10 ->  | I9: ='I16 Input 08 Trueup Sett'!Q10 ->  | J9: ='I18 Input 09 Trueup Sett'!Q10 ->  | K9: ='I20 Input 10 Trueup Sett'!Q10 ->  | L9: ='I22 Input 11 Trueup Sett'!Q10 ->  | M9: ='I24 Input 12 Trueup Sett'!Q10 ->  | P9: RPPTOUON | Q9: ='I2 Input 01 Trueup Sett '!L22 -> 0.1709755242 | R9: ='I4 Input 02 Trueup Sett'!L22 -> 0.1583672257 | S9: ='I6 Input 03 Trueup Sett'!L22 -> 0.1557090647 | T9: ='I8 Input 04 Trueup Sett'!L22 -> 0.1684275907 | U9: ='I10 Input 05 Trueup Sett'!L22 -> 0.1626850043 | V9: ='I12 Input 06 Trueup Sett'!L22 -> 0.1811038153 | W9: ='I14 Input 07 Trueup Sett'!L22 ->  | X9: ='I16 Input 08 Trueup Sett'!L22 ->  | Y9: ='I18 Input 09 Trueup Sett'!L22 ->  | Z9: ='I20 Input 10 Trueup Sett'!L22 ->  | AA9: ='I22 Input 11 Trueup Sett'!L22 ->  | AB9: ='I24 Input 12 Trueup Sett'!L22 -> 
A10: RPPULOMID | B10: ='I2 Input 01 Trueup Sett '!Q11 -> 0.1220049042 | C10: ='I4 Input 02 Trueup Sett'!Q11 -> 0.1219995017 | D10: ='I6 Input 03 Trueup Sett'!Q11 -> 0.1220009435 | E10: ='I8 Input 04 Trueup Sett'!Q11 -> 0.1219990189 | F10: ='I10 Input 05 Trueup Sett'!Q11 -> 0.1219942304 | G10: ='I12 Input 06 Trueup Sett'!Q11 -> 0.1219963538 | H10: ='I14 Input 07 Trueup Sett'!Q11 ->  | I10: ='I16 Input 08 Trueup Sett'!Q11 ->  | J10: ='I18 Input 09 Trueup Sett'!Q11 ->  | K10: ='I20 Input 10 Trueup Sett'!Q11 ->  | L10: ='I22 Input 11 Trueup Sett'!Q11 ->  | M10: ='I24 Input 12 Trueup Sett'!Q11 ->  | P10: RPPULOMID | Q10: ='I2 Input 01 Trueup Sett '!AF11 -> 0 | R10: ='I4 Input 02 Trueup Sett'!AF11 -> 0 | S10: ='I6 Input 03 Trueup Sett'!AF11 -> 0 | T10: ='I8 Input 04 Trueup Sett'!AF11 -> 0 | U10: ='I10 Input 05 Trueup Sett'!AF11 -> 0 | V10: ='I12 Input 06 Trueup Sett'!AF11 -> 0 | W10: ='I14 Input 07 Trueup Sett'!AF11 -> 0 | X10: ='I16 Input 08 Trueup Sett'!AF11 -> 0 | Y10: ='I18 Input 09 Trueup Sett'!AF11 -> 0 | Z10: ='I20 Input 10 Trueup Sett'!AF11 -> 0 | AA10: ='I22 Input 11 Trueup Sett'!AF11 -> 0 | AB10: ='I24 Input 12 Trueup Sett'!AF11 -> 0
A11: RPPULOOFF | B11: ='I2 Input 01 Trueup Sett '!Q12 -> 0.07599766206 | C11: ='I4 Input 02 Trueup Sett'!Q12 -> 0.07599794809 | D11: ='I6 Input 03 Trueup Sett'!Q12 -> 0.07600014941 | E11: ='I8 Input 04 Trueup Sett'!Q12 -> 0.07599235017 | F11: ='I10 Input 05 Trueup Sett'!Q12 -> 0.07600275189 | G11: ='I12 Input 06 Trueup Sett'!Q12 -> 0.0760068308 | H11: ='I14 Input 07 Trueup Sett'!Q12 ->  | I11: ='I16 Input 08 Trueup Sett'!Q12 ->  | J11: ='I18 Input 09 Trueup Sett'!Q12 ->  | K11: ='I20 Input 10 Trueup Sett'!Q12 ->  | L11: ='I22 Input 11 Trueup Sett'!Q12 ->  | M11: ='I24 Input 12 Trueup Sett'!Q12 ->  | P11: RPPULOOFF | Q11: ='I2 Input 01 Trueup Sett '!AF12 -> 0 | R11: ='I4 Input 02 Trueup Sett'!AF12 -> 0 | S11: ='I6 Input 03 Trueup Sett'!AF12 -> 0 | T11: ='I8 Input 04 Trueup Sett'!AF12 -> 0 | U11: ='I10 Input 05 Trueup Sett'!AF12 -> 0 | V11: ='I12 Input 06 Trueup Sett'!AF12 -> 0 | W11: ='I14 Input 07 Trueup Sett'!AF12 -> 0 | X11: ='I16 Input 08 Trueup Sett'!AF12 -> 0 | Y11: ='I18 Input 09 Trueup Sett'!AF12 -> 0 | Z11: ='I20 Input 10 Trueup Sett'!AF12 -> 0 | AA11: ='I22 Input 11 Trueup Sett'!AF12 -> 0 | AB11: ='I24 Input 12 Trueup Sett'!AF12 -> 0
A12: RPPULOON | B12: ='I2 Input 01 Trueup Sett '!Q13 -> 0.2839968508 | C12: ='I4 Input 02 Trueup Sett'!Q13 -> 0.2840006839 | D12: ='I6 Input 03 Trueup Sett'!Q13 -> 0.28400733 | E12: ='I8 Input 04 Trueup Sett'!Q13 -> 0.2839861259 | F12: ='I10 Input 05 Trueup Sett'!Q13 -> 0.2839910877 | G12: ='I12 Input 06 Trueup Sett'!Q13 -> 0.2840053437 | H12: ='I14 Input 07 Trueup Sett'!Q13 ->  | I12: ='I16 Input 08 Trueup Sett'!Q13 ->  | J12: ='I18 Input 09 Trueup Sett'!Q13 ->  | K12: ='I20 Input 10 Trueup Sett'!Q13 ->  | L12: ='I22 Input 11 Trueup Sett'!Q13 ->  | M12: ='I24 Input 12 Trueup Sett'!Q13 ->  | P12: RPPULOON | Q12: ='I2 Input 01 Trueup Sett '!AF13 -> 0 | R12: ='I4 Input 02 Trueup Sett'!AF13 -> 0 | S12: ='I6 Input 03 Trueup Sett'!AF13 -> 0 | T12: ='I8 Input 04 Trueup Sett'!AF13 -> 0 | U12: ='I10 Input 05 Trueup Sett'!AF13 -> 0 | V12: ='I12 Input 06 Trueup Sett'!AF13 -> 0 | W12: ='I14 Input 07 Trueup Sett'!AF13 -> 0 | X12: ='I16 Input 08 Trueup Sett'!AF13 -> 0 | Y12: ='I18 Input 09 Trueup Sett'!AF13 -> 0 | Z12: ='I20 Input 10 Trueup Sett'!AF13 -> 0 | AA12: ='I22 Input 11 Trueup Sett'!AF13 -> 0 | AB12: ='I24 Input 12 Trueup Sett'!AF13 -> 0
A13: RPPULOOVN | B13: ='I2 Input 01 Trueup Sett '!Q14 -> 0.02800091773 | C13: ='I4 Input 02 Trueup Sett'!Q14 -> 0.02799785631 | D13: ='I6 Input 03 Trueup Sett'!Q14 -> 0.02800053484 | E13: ='I8 Input 04 Trueup Sett'!Q14 -> 0.02800035892 | F13: ='I10 Input 05 Trueup Sett'!Q14 -> 0.02799946555 | G13: ='I12 Input 06 Trueup Sett'!Q14 -> 0.02799987926 | H13: ='I14 Input 07 Trueup Sett'!Q14 ->  | I13: ='I16 Input 08 Trueup Sett'!Q14 ->  | J13: ='I18 Input 09 Trueup Sett'!Q14 ->  | K13: ='I20 Input 10 Trueup Sett'!Q14 ->  | L13: ='I22 Input 11 Trueup Sett'!Q14 ->  | M13: ='I24 Input 12 Trueup Sett'!Q14 ->  | P13: RPPULOOVN | Q13: ='I2 Input 01 Trueup Sett '!AF14 -> 0 | R13: ='I4 Input 02 Trueup Sett'!AF14 -> 0 | S13: ='I6 Input 03 Trueup Sett'!AF14 -> 0 | T13: ='I8 Input 04 Trueup Sett'!AF14 -> 0 | U13: ='I10 Input 05 Trueup Sett'!AF14 -> 0 | V13: ='I12 Input 06 Trueup Sett'!AF14 -> 0 | W13: ='I14 Input 07 Trueup Sett'!AF14 -> 0 | X13: ='I16 Input 08 Trueup Sett'!AF14 -> 0 | Y13: ='I18 Input 09 Trueup Sett'!AF14 -> 0 | Z13: ='I20 Input 10 Trueup Sett'!AF14 -> 0 | AA13: ='I22 Input 11 Trueup Sett'!AF14 -> 0 | AB13: ='I24 Input 12 Trueup Sett'!AF14 -> 0
Q14: =SUM(Q5:Q13) -> 0.9981823582 | R14: =SUM(R5:R13) -> 0.9981889342 | S14: 0.9980422864 | T14: 0.9980264164 | U14: 0.9978818302 | V14: 0.9979207701

Sheet I2 Input 01 Trueup Sett (hidden)
A1: Date: | B1: =Admin!B8 -> 202501 | C1: Trueup | K1: ="Data for 1st True up of RPP Settlement based on Actual IESO Invoice" -> Data for 1st True up of RPP Settlement based on Actual IESO Invoice | P1: For Reconciliation
A3: Wholesale Electricty | B3: Year | C3: 2025 | E3: Rate | P3: Estimated RPP Revenue and GA
A4: Redshift Wholesale Report.xlsm | B4: dateref | C4: 202501 | K4: Wholesale Volume data per IESO Power Bill: | L4: GA RPP/non-RPP Ratios | M4: GA Volumes | N4: Energy Volumes | P4: =B1 -> 202501
K5: AQEW | M5: =C10 -> 23880567.14 | N5: =+M5 -> 23880567.14 | P5: RPP Revenue Prices | Q5: RPP Rate | R5: Estimated RPP Energy Price | S5: GA actual IESO billed | T5: Total Commodity | U5: Difference | V5: kWh Volumes | W5: $ Estimated RPP Revenue | X5: $ Estimated RPP Energy | Y5: $ Estimated GA | Z5: $ Estimated RPP Settlement
B6: Wholesale | K6: Embedded Generation | M6: =SUM(C8:C9) -> 134598.23 | N6: =+M6 -> 134598.23 | P6: RPPT1 | Q6: =E20 -> 0.09299976136 | R6: =E44 -> 0.06973202803 | S6: =$L$32 -> 0.04109 | T6: =R6+S6 -> 0.110822028 | U6: =+Q6-T6 -> -0.01782226667 | V6: =M18 -> 1033738.471 | W6: =Q6*V6 -> 96137.43113 | X6: =R6*V6 -> 72084.68005 | Y6: =+V6*S6 -> 42476.31378 | Z6: =W6-X6-Y6 -> -18423.5627
B7: Source | C7: kWh | D7: Total Cost | K7: Class A customer Volumes for GA (TLF included) | M7: =-B70 -> -4014142.02 | P7: RPPT2 | Q7: =E21 -> 0.109999574 | R7: =R6 -> 0.06973202803 | S7: =$L$32 -> 0.04109 | T7: =R7+S7 -> 0.110822028 | U7: =+Q7-T7 -> -0.0008224540525 | V7: =M19 -> 612926.482 | W7: =Q7*V7 -> 67421.65189 | X7: =R7*V7 -> 42740.60662 | Y7: =+V7*S7 -> 25185.14914 | Z7: =W7-X7-Y7 -> -504.103869
B8: FIT | C8: 125866.97 | D8: 6986.75 | E8: =D8/C8 -> 0.05550900288 | M8: =+M5+M6+M7 -> 20001023.35 | N8: =+N5+N6+N7 -> 24015165.37 | P8: RPPTOUMID | Q8: =E23 -> 0.1219998447 | R8: =E45 -> 0.06899589294 | S8: 0.04109 | T8: 0.1100858929 | U8: 0.01191395176 | V8: 2165318.364 | W8: 264168.5041 | X8: 149398.074 | Y8: 88972.93157 | Z8: 25797.49854
B9: microFIT | C9: 8731.26 | D9: 488.89 | E9: =D9/C9 -> 0.055993064 | P9: RPPTOUOFF | Q9: =E24 -> 0.07600051551 | R9: =R8 -> 0.06899589294 | S9: 0.04109 | T9: 0.1100858929 | U9: -0.03408537743 | V9: 7021304.968 | W9: 533622.7971 | X9: 484441.2058 | Y9: 288505.4211 | Z9: -239323.8299
B10: WHOLESALE | C10: 23880567.14 | D10: 1635320.1 | E10: =D10/C10 -> 0.06847911486 | K10: Estimated Retail Volume Revenue Data (TLF Included) | L10: RPP/non-RPP Ratios | M10: GA Volumes | N10: Energy Volumes | P10: RPPTOUON | Q10: 0.1580011498 | R10: =R9 -> 0.06899589294 | S10: 0.04109 | T10: 0.1100858929 | U10: 0.04791525681 | V10: 2239134.237 | W10: 353785.784 | X10: 154491.0661 | Y10: 92006.02582 | Z10: 107288.692
B11: Grand Total | C11: 24015165.37 | D11: 1642795.74 | K11: Estimated Retail Revenue Data (Net of Retail Billed/Unbilled) | M11: =+M15 -> 20001023.35 | N11: =+N15 -> 24015165.37 | P11: RPPULOMID | Q11: =E27 -> 0.1220049042 | R11: =E46 -> 0.06898531466 | S11: 0.04109 | T11: 0.1100753147 | U11: 0.01192958951 | V11: 4810.075514 | W11: 586.8528021 | X11: 331.8245729 | Y11: 197.6460029 | Z11: 57.38222637
P12: RPPULOOFF | Q12: =E28 -> 0.07599766206 | R12: =R11 -> 0.06898531466 | S12: 0.04109 | T12: 0.1100753147 | U12: -0.0340776526 | V12: 4503.746975 | W12: 342.2742406 | X12: 310.6924022 | Y12: 185.0589632 | Z12: -153.4771248
K13: Estimated RPP Sales Quantities | L13: =SUM(C20:C30)/(C35-B70) -> 0.6547778352 | M13: =M8*L13 -> 13096226.77 | N13: =M13 -> 13096226.77 | P13: RPPULOON | Q13: 0.2839968508 | R13: =R12 -> 0.06898531466 | S13: 0.04109 | T13: 0.1100753147 | U13: 0.1739215362 | V13: 2432.098352 | W13: 690.7082727 | X13: 167.7790701 | Y13: 99.93492126 | Z13: 422.9942814
A14: RPP Revenue Volume and Price Data | K14: Estimated non-RPP Sales Quantities | L14: =1-L13 -> 0.3452221648 | M14: =M8*L14 -> 6904796.579 | N14: =N8-N13 -> 10918938.6 | P14: RPPULOOVN | Q14: 0.02800091773 | R14: 0.06898531466 | S14: 0.04109 | T14: 0.1100753147 | U14: -0.08207439693 | V14: 12058.32817 | W14: 337.644255 | X14: 831.8475629 | Y14: 495.4767044 | Z14: -989.6800123
A15: ER Summary.xlsm | B15: bill_year | C15: 2025 | K15: Estimated Retail Revenue kWh Volumes | L15: =+L13+L14 -> 1 | M15: =+M13+M14 -> 20001023.35 | N15: =+N13+N14 -> 24015165.37 | V15: =SUM(V6:V14) -> 13096226.77 | W15: =SUM(W6:W14) -> 1317093.648 | X15: =SUM(X6:X14) -> 904797.7763 | Y15: =SUM(Y6:Y14) -> 538123.958 | Z15: =SUM(Z6:Z14) -> -125828.0865
B16: bill_month | C16: 1 | Z16: =W15-X15-Y15-Z15 -> 0
K17: Estimated RPP Revenue Volume and Price Data | L17: Actual % | M17: kWh Volumes
B18: Row Labels | C18: usagebilled | D18: amountbilled | E18: Rate | K18: RPPT1 | L18: =C20/SUM($C$20:$C$30) -> 0.07893406927 | M18: =$M$13*L18 -> 1033738.471
B19: RPPTIER | K19: RPPT2 | L19: =C21/SUM($C$20:$C$30) -> 0.04680176151 | M19: =$M$13*L19 -> 612926.482
B20: RPPT1 | C20: 1020346.165 | D20: 94891.94987 | E20: =D20/C20 -> 0.09299976136 | K20: RPPTOUMID | L20: =C23/SUM($C$20:$C$30) -> 0.1653391012 | M20: 2165318.364 | P20: Actual RPP Revenue and GA
B21: RPPT2 | C21: 604985.8866 | D21: 66548.18978 | E21: =D21/C21 -> 0.109999574 | K21: RPPTOUOFF | L21: =C24/SUM($C$20:$C$30) -> 0.536131902 | M21: 7021304.968 | P21: =P4 -> 202501
B22: RPPTOU | K22: RPPTOUON | L22: 0.1709755242 | M22: 2239134.237 | P22: RPP Revenue Prices | Q22: RPP Rate | R22: Estimated RPP Energy Price | S22: GA actual IESO billed | T22: Total Commodity | U22: Difference | V22: kWh Volumes | W22: $ Estimated RPP Revenue | X22: $ Estimated RPP Energy | Y22: $ Estimated GA | Z22: $ Estimated RPP Settlement
B23: RPPTOUMID | C23: 2137266.195 | D23: 260746.1439 | E23: 0.1219998447 | K23: RPPULOMID | L23: =C27/SUM($C$20:$C$30) -> 0.0003672871277 | M23: 4810.075514 | P23: =P6 -> RPPT1 | Q23: =Q6 -> 0.09299976136 | R23: =R6 -> 0.06973202803 | S23: 0.04109 | T23: =R23+S23 -> 0.110822028 | U23: =+Q23-T23 -> -0.01782226667 | V23: =C20 -> 1020346.165 | W23: =Q23*V23 -> 94891.94987 | X23: =R23*V23 -> 71150.80739 | Y23: =+V23*S23 -> 41926.02393 | Z23: =W23-X23-Y23 -> -18184.88145
B24: RPPTOUOFF | C24: 6930342.44 | D24: 526709.5981 | E24: 0.07600051551 | K24: RPPULOOFF | L24: =C28/SUM($C$20:$C$30) -> 0.0003438965324 | M24: 4503.746975 | P24: =P7 -> RPPT2 | Q24: 0.109999574 | R24: =R7 -> 0.06973202803 | S24: 0.04109 | T24: =R24+S24 -> 0.110822028 | U24: =+Q24-T24 -> -0.0008224540525 | V24: =C21 -> 604985.8866 | W24: =Q24*V24 -> 66548.18978 | X24: =R24*V24 -> 42186.8928 | Y24: =+V24*S24 -> 24858.87008 | Z24: =W24-X24-Y24 -> -497.5730941
B25: RPPTOUON | C25: 2210125.768 | D25: 349202.4125 | E25: 0.1580011498 | K25: RPPULOON | L25: 0.0001857098532 | M25: 2432.098352 | P25: RPPTOUMID | Q25: 0.1219998447 | R25: =R8 -> 0.06899589294 | S25: 0.04109 | T25: 0.1100858929 | U25: 0.01191395176 | V25: =C23 -> 2137266.195 | W25: 260746.1439 | X25: 147462.5896 | Y25: 87820.26796 | Z25: 25463.28636
B26: RPPULO | K26: RPPULOOVN | L26: 0.0009207482718 | M26: 12058.32817 | P26: RPPTOUOFF | Q26: 0.07600051551 | R26: =R9 -> 0.06899589294 | S26: 0.04109 | T26: 0.1100858929 | U26: -0.03408537743 | V26: =C24 -> 6930342.44 | W26: 526709.5981 | X26: 478165.165 | Y26: 284767.7709 | Z26: -236223.3378
B27: RPPULOMID | C27: 4747.759943 | D27: 579.2499969 | E27: 0.1220049042 | L27: =SUM(L18:L26) -> 1 | M27: =SUM(M18:M26) -> 13096226.77 | P27: RPPTOUON | Q27: 0.1580011498 | R27: =R10 -> 0.06899589294 | S27: 0.04109 | T27: 0.1100858929 | U27: 0.04791525681 | V27: 2210125.768 | W27: 349202.4125 | X27: 152489.6009 | Y27: 90814.06781 | Z27: 105898.7438
B28: RPPULOOFF | C28: 4445.399957 | D28: 337.8400036 | E28: 0.07599766206 | P28: RPPULOMID | Q28: 0.1220049042 | R28: =R11 -> 0.06898531466 | S28: 0.04109 | T28: 0.1100753147 | U28: 0.01192958951 | V28: =C27 -> 4747.759943 | W28: 579.2499969 | X28: 327.5257136 | Y28: 195.0854561 | Z28: 56.63882719
B29: RPPULOON | C29: 2400.58999 | D29: 681.7599974 | E29: 0.2839968508 | P29: RPPULOOFF | Q29: 0.07599766206 | R29: =R12 -> 0.06898531466 | S29: 0.04109 | T29: 0.1100753147 | U29: -0.0340776526 | V29: =C28 -> 4445.399957 | W29: 337.8400036 | X29: 306.6673148 | Y29: 182.6614842 | Z29: -151.4887954
B30: RPPULOOVN | C30: 11902.10991 | D30: 333.2700005 | E30: 0.02800091773 | P30: RPPULOON | Q30: 0.2839968508 | R30: =R13 -> 0.06898531466 | S30: 0.04109 | T30: 0.1100753147 | U30: 0.1739215362 | V30: 2400.58999 | W30: 681.7599974 | X30: 165.6054559 | Y30: 98.6402427 | Z30: 417.5142988
B31: RETAIL | K31: Global Adjustment | L31: per kWh | P31: RPPULOOVN | Q31: 0.02800091773 | R31: =R14 -> 0.06898531466 | S31: 0.04109 | T31: 0.1100753147 | U31: -0.08207439693 | V31: 11902.10991 | W31: 333.2700005 | X31: 821.0707975 | Y31: 489.0576963 | Z31: -976.8584932
B32: NSLS | C32: 3485316.56 | D32: 243684.5607 | E32: 0.06991748284 | K32: Class B - GA actual8 | L32: =B62/100 -> 0.04109 | N32: GA Posted Price | V32: =SUM(V23:V31) -> 12926562.31 | W32: =SUM(W23:W31) -> 1300030.414 | X32: =SUM(X23:X31) -> 893075.925 | Y32: =SUM(Y23:Y31) -> 531152.4455 | Z32: =SUM(Z23:Z31) -> -124197.9564
B33: INTERVAL | K33: Class B - GA actual IESO billed | L33: =+M33/M8 -> 0.04104739221 | M33: =B78 -> 820989.85 | N33: GA Billed by IESO CT 148 | Z33: =W32-X32-Y32-Z32 -> 1.89174898e-10
B34: HOEP | C34: 7344168.903 | D34: 525520.364 | E34: 0.07155613806
B35: Grand Total | C35: 23756047.78 | D35: 2069235.339 | Z35: =Z15-Z32 -> -1630.13013
B37: UFE | C37: =C35-C11 -> -259117.5921 | D37: =C35/C11-1 -> -0.0107897484
L38: CT148/GA Actual | M38: =M33/L32 -> 19980283.52
A39: RPP COP Volume and Price Data | L39: Non Class A kWh | M39: =M8 -> 20001023.35
A40: ER COP Summary.xlsm | B40: bill_year | C40: 2025 | L40: Difference | M40: =M38-M39 -> -20739.82603
B41: bill_month | C41: 1
M42: =M40*L32 -> -852.1994515
B43: Row Labels | C43: usagebilled | D43: amountbilled | E43: Rate
B44: RPPTIERED | C44: 1629153.998 | D44: 113604.2123 | E44: =D44/C44 -> 0.06973202803
B45: RPPTOU | C45: 11289266.31 | D45: 778913.0097 | E45: 0.06899589294
B46: RPPULO | C46: 23495.87016 | D46: 1620.869996 | E46: 0.06898531466
B47: Grand Total | C47: 12941916.18 | D47: 894138.0919
B50: RPPTIERED | C50: =SUM(C20:C21)-C44 -> -3821.946493 | D50: =C50/SUM(C20:C21) -> -0.002351486571
B51: RPPTOU | C51: =SUM(C23:C25)-C45 -> -11531.90611 | D51: =C51/SUM(C23:C25) -> -0.001022537479
B52: RPPULO | C52: =SUM(C27:C30)-C46 -> -0.01035921 | D52: =C52/SUM(C27:C30) -> -4.40895123e-07
A58: Global Adjustment - Actual
A59: IESO GA Reconciliation.xlsm
A60: ga_actual | B60: year
A61: month | B61: 2025
A62: 202501 | B62: 4.109
A64: Class A kWh
A65: Redshift Class A Report.xlsm
A66: Year | B66: 2025
A68: Class A | B68: Value
A69: kWh
A70: 202501 | B70: 4014142.02
A72: IESO Class B
A73: IESO Invoice Reconciliation.xlsm
A74: chargetype | B74: 148
A76: Sum of chargeamount | B76: year
A77: month | B77: 2025
A78: 202501 | B78: 820989.85

Sheet I3 Input Rev 01 Init (hidden)
A1: Reverse IESO Posted
A3: trade_dateref | B3: 202502
A5: Row Labels | B5: kWh | C5: Amount
A6: RPPTiered_1 | B6: 772328.35 | C6: -4947.9
A7: RPPTiered_2 | B7: 458369.91 | C7: 6930.64
A8: RPPTOU_MID | B8: 5211389.96 | C8: -97820.63
A9: RPPTOU_OFF | B9: 1608820.16 | C9: 41021.99
A10: RPPTOU_ON | B10: 1662502.24 | C10: 105354.2
A11: RPPULO_MID | B11: 3368.87 | C11: -76.88
A12: RPPULO_OFF | B12: 1819.24 | C12: 452.32
A13: RPPULO_ON | B13: 3598.01 | C13: 122.09
A14: RPPULO_ULO | B14: 9019.8 | C14: -622.54
A15: Grand Total | B15: 9731216.54 | C15: 50413.29

Sheet I4 Input 02 Trueup Sett (hidden)
A1: Date: | B1: =Admin!B8+1 -> 202502 | C1: Trueup | K1: ="Data for 1st True up of RPP Settlement based on Actual IESO Invoice" -> Data for 1st True up of RPP Settlement based on Actual IESO Invoice | P1: For Reconciliation
A3: Wholesale Electricty | B3: Year | C3: 2025 | E3: Rate | P3: Actual RPP Revenue and GA
A4: Redshift Wholesale Report.xlsm | B4: dateref | C4: 202502 | K4: Wholesale Volume data per IESO Power Bill: | L4: GA RPP/non-RPP Ratios | M4: GA Volumes | N4: Energy Volumes | P4: =B1 -> 202502
K5: AQEW | M5: =C10 -> 21535701.93 | N5: =+M5 -> 21535701.93 | P5: RPP Revenue Prices | Q5: RPP Rate | R5: Estimated RPP Energy Price | S5: GA actual IESO billed | T5: Total Commodity | U5: Difference | V5: kWh Volumes | W5: $ Estimated RPP Revenue | X5: $ Estimated RPP Energy | Y5: $ Estimated GA | Z5: $ Estimated RPP Settlement
B6: Wholesale | K6: Embedded Generation | M6: =SUM(C8:C9) -> 38983.96 | N6: =+M6 -> 38983.96 | P6: RPPT1 | Q6: =E20 -> 0.09300002524 | R6: =E44 -> 0.07941021005 | S6: =$L$32 -> 0.003 | T6: =R6+S6 -> 0.08241021005 | U6: =+Q6-T6 -> 0.01058981519 | V6: =M18 -> 928050.3527 | W6: =Q6*V6 -> 86308.70623 | X6: =R6*V6 -> 73696.67345 | Y6: =+V6*S6 -> 2784.151058 | Z6: =W6-X6-Y6 -> 9827.88172
B7: Source | C7: kWh | D7: Total Cost | K7: Class A customer Volumes for GA (TLF included) | M7: =-B70 -> -3768684.81 | P7: RPPT2 | Q7: =E21 -> 0.1100003258 | R7: =R6 -> 0.07941021005 | S7: =$L$32 -> 0.003 | T7: =R7+S7 -> 0.08241021005 | U7: =+Q7-T7 -> 0.02759011575 | V7: =M19 -> 536124.4428 | W7: =Q7*V7 -> 58973.86338 | X7: =R7*V7 -> 42573.75462 | Y7: =+V7*S7 -> 1608.373329 | Z7: =W7-X7-Y7 -> 14791.73543
B8: FIT | C8: 33060.51 | D8: 1994.52 | E8: =D8/C8 -> 0.06032937786 | M8: =+M5+M6+M7 -> 17806001.08 | N8: =+N5+N6+N7 -> 21574685.89 | P8: RPPTOUMID | Q8: =E23 -> 0.1219997474 | R8: =E45 -> 0.07920874212 | S8: 0.003 | T8: 0.08220874212 | U8: 0.03979100525 | V8: 1778509.39 | W8: 216977.6962 | X8: 140873.4916 | Y8: 5335.528169 | Z8: 70768.67645
B9: microFIT | C9: 5923.45 | D9: 415.58 | E9: =D9/C9 -> 0.07015843807 | P9: RPPTOUOFF | Q9: =E24 -> 0.07600000788 | R9: =R8 -> 0.07920874212 | S9: 0.003 | T9: 0.08220874212 | U9: -0.006208734248 | V9: 6600533.927 | W9: 501640.6304 | X9: 522819.9897 | Y9: 19801.60178 | Z9: -40980.96105
B10: WHOLESALE | C10: 21535701.93 | D10: 1697767.23 | E10: =D10/C10 -> 0.07883500782 | K10: Estimated Retail Volume Revenue Data (TLF Included) | L10: RPP/non-RPP Ratios | M10: GA Volumes | N10: Energy Volumes | P10: RPPTOUON | Q10: 0.1580003494 | R10: =R9 -> 0.07920874212 | S10: 0.003 | T10: 0.08220874212 | U10: 0.07579160732 | V10: 1856159.621 | W10: 293273.8687 | X10: 147024.0687 | Y10: 5568.478862 | Z10: 140681.3211
B11: Grand Total | C11: 21574685.89 | D11: 1700177.33 | K11: Estimated Retail Revenue Data (Net of Retail Billed/Unbilled) | M11: =+M15 -> 17806001.08 | N11: =+N15 -> 21574685.89 | P11: RPPULOMID | Q11: =E27 -> 0.1219995017 | R11: =E46 -> 0.07922982252 | S11: 0.003 | T11: 0.08222982252 | U11: 0.03976967919 | V11: 4364.998754 | W11: 532.5276729 | X11: 345.8380766 | Y11: 13.09499626 | Z11: 173.5946001
P12: RPPULOOFF | Q12: =E28 -> 0.07599794809 | R12: =R11 -> 0.07922982252 | S12: 0.003 | T12: 0.08222982252 | U12: -0.006231874432 | V12: 3766.475632 | W12: 286.2444196 | X12: 298.4171959 | Y12: 11.2994269 | Z12: -23.47220319
K13: Estimated RPP Sales Quantities | L13: =SUM(C20:C30)/(C35-B70) -> 0.6582390097 | M13: =M8*L13 -> 11720604.52 | N13: =M13 -> 11720604.52 | P13: RPPULOON | Q13: 0.2840006839 | R13: =R12 -> 0.07922982252 | S13: 0.003 | T13: 0.08222982252 | U13: 0.2017708614 | V13: 2226.308206 | W13: 632.2730533 | X13: 176.3900041 | Y13: 6.678924619 | Z13: 449.2041246
A14: RPP Revenue Volume and Price Data | K14: Estimated non-RPP Sales Quantities | L14: =1-L13 -> 0.3417609903 | M14: =M8*L14 -> 6085396.562 | N14: =N8-N13 -> 9854081.372 | P14: RPPULOOVN | Q14: 0.02799785631 | R14: 0.07922982252 | S14: 0.003 | T14: 0.08222982252 | U14: -0.05423196622 | V14: 10869.00318 | W14: 304.3087891 | X14: 861.1491926 | Y14: 32.60700953 | Z14: -589.447413
B15: bill_year | C15: 2025 | K15: Estimated Retail Revenue kWh Volumes | L15: =+L13+L14 -> 1 | M15: =+M13+M14 -> 17806001.08 | N15: =+N13+N14 -> 21574685.89 | V15: =SUM(V6:V14) -> 11720604.52 | W15: =SUM(W6:W14) -> 1158930.119 | X15: =SUM(X6:X14) -> 928669.7726 | Y15: =SUM(Y6:Y14) -> 35161.81356 | Z15: =SUM(Z6:Z14) -> 195098.5328
B16: bill_month | C16: 2 | Z16: =W15-X15-Y15-Z15 -> 0
K17: Estimated RPP Revenue Volume and Price Data | L17: Actual % | M17: kWh Volumes
B18: Row Labels | C18: usagebilled | D18: amountbilled | E18: Rate | K18: RPPT1 | L18: =C20/SUM($C$20:$C$30) -> 0.07918109951 | M18: =$M$13*L18 -> 928050.3527
B19: RPPTIER | K19: RPPT2 | L19: =C21/SUM($C$20:$C$30) -> 0.04574204701 | M19: =$M$13*L19 -> 536124.4428
B20: RPPT1 | C20: 912927.545 | D20: 84902.28473 | E20: =D20/C20 -> 0.09300002524 | K20: RPPTOUMID | L20: =C23/SUM($C$20:$C$30) -> 0.151742121 | M20: 1778509.39
B21: RPPT2 | C21: 527388.1638 | D21: 58012.86984 | E21: =D21/C21 -> 0.1100003258 | K21: RPPTOUOFF | L21: =C24/SUM($C$20:$C$30) -> 0.563156441 | M21: 6600533.927
B22: RPPTOU | K22: RPPTOUON | L22: 0.1583672257 | M22: 1856159.621
B23: RPPTOUMID | C23: 1749528.144 | D23: 213441.9915 | E23: 0.1219997474 | K23: RPPULOMID | L23: =C27/SUM($C$20:$C$30) -> 0.0003724209572 | M23: 4364.998754
B24: RPPTOUOFF | C24: 6492976.611 | D24: 493466.2736 | E24: 0.07600000788 | K24: RPPULOOFF | L24: =C28/SUM($C$20:$C$30) -> 0.0003213550655 | M24: 3766.475632
B25: RPPTOUON | C25: 1825913.045 | D25: 288494.8992 | E25: 0.1580003494 | K25: RPPULOON | L25: 0.0001899482405 | M25: 2226.308206
B26: RPPULO | K26: RPPULOOVN | L26: 0.0009273415171 | M26: 10869.00318
B27: RPPULOMID | C27: 4293.87003 | D27: 523.8500041 | E27: 0.1219995017 | L27: =SUM(L18:L26) -> 1 | M27: =SUM(M18:M26) -> 11720604.52
B28: RPPULOOFF | C28: 3705.09999 | D28: 281.5799967 | E28: 0.07599794809
B29: RPPULOON | C29: 2190.029969 | D29: 621.9700091 | E29: 0.2840006839
B30: RPPULOOVN | C30: 10691.89011 | D30: 299.3500029 | E30: 0.02799785631
B31: RETAIL | K31: Global Adjustment | L31: per kWh
B32: NSLS | C32: 3066583.612 | D32: 239927.5693 | E32: 0.07823936981 | K32: Class B - GA actual8 | L32: =B62/100 -> 0.003 | N32: GA Posted Price
B33: INTERVAL | K33: Class B - GA actual IESO billed | L33: =+M33/M8 -> 0.002989366886 | M33: =B78 -> 53228.67 | N33: GA Billed by IESO CT 148
B34: HOEP | C34: 6688334.733 | D34: 521781.0132 | E34: 0.07801359143
B35: Grand Total | C35: 21284532.74 | D35: 1901753.651
C37: =C35/C11-1 -> -0.01344877733
L38: CT148/GA Actual | M38: =M33/L32 -> 17742890
A39: RPP COP Volume and Price Data | L39: Non Class A kWh | M39: =M8 -> 17806001.08
A40: ER COP Summary.xlsm | B40: bill_year | C40: 2025 | L40: Difference | M40: =M38-M39 -> -63111.08
B41: bill_month | C41: 2
M42: =M40*L32 -> -189.33324
B43: Row Labels | C43: usagebilled | D43: amountbilled | E43: Rate
B44: RPPTIERED | C44: 1441383.671 | D44: 114460.5801 | E44: =D44/C44 -> 0.07941021005
B45: RPPTOU | C45: 10089174.38 | D45: 799150.8114 | E45: 0.07920874212
B46: RPPULO | C46: 20880.9001 | D46: 1654.390009 | E46: 0.07922982252
B47: Grand Total | C47: 11551438.95 | D47: 915265.7815
B50: RPPTIERED | C50: =SUM(C20:C21)-C44 -> -1067.962556 | D50: =C50/SUM(C20:C21) -> -0.0007414781007
B51: RPPTOU | C51: =SUM(C23:C25)-C45 -> -20756.57603 | D51: =C51/SUM(C23:C25) -> -0.002061552912
B52: RPPULO | C52: =SUM(C27:C30)-C46 -> -0.009997900001 | D52: =C52/SUM(C27:C30) -> -4.788062173e-07
A58: Global Adjustment - Actual
A59: IESO GA Reconciliation.xlsm
A60: ga_actual | B60: year
A61: month | B61: 2025
A62: 202502 | B62: 0.3
A64: Class A kWh
A65: Redshift Class A Report.xlsm
A66: Year | B66: 2025
A68: Class A | B68: Value
A69: kWh
A70: 202502 | B70: 3768684.81
A72: IESO Class B
A73: IESO Invoice Reconciliation.xlsm
A74: chargetype | B74: 148
A76: Sum of chargeamount | B76: year
A77: month | B77: 2025
A78: 202502 | B78: 53228.67

Sheet I5 Input Rev 02 Init (hidden)
A1: Reverse IESO Posted
A3: trade_dateref | B3: 202503
A5: Row Labels | B5: kWh | C5: Amount
A6: RPPTiered_1 | B6: 1771294 | C6: -84243.31575
A7: RPPTiered_2 | B7: 1023331.32 | C7: -14587.08511
A8: RPPTOU_MID | B8: 12551327.14 | C8: 1057143.151
A9: RPPTOU_OFF | B9: 3383008.86 | C9: -2050846.903
A10: RPPTOU_ON | B10: 3530939.3 | C10: 328272.5694
A11: RPPULO_MID | B11: 8331.72 | C11: 659.3616619
A12: RPPULO_OFF | B12: 7189.28 | C12: -2627.615969
A13: RPPULO_ON | B13: 4249.48 | C13: 2427.922118
A14: RPPULO_ULO | B14: 20746.28 | C14: -3361.175882
A15: Grand Total | B15: 22300417.38 | C15: -767163.0915

Sheet I6 Input 03 Trueup Sett (hidden)
A1: Date: | B1: =Admin!B8+2 -> 202503 | C1: Trueup | K1: ="Data for 1st True up of RPP Settlement based on Actual IESO Invoice" -> Data for 1st True up of RPP Settlement based on Actual IESO Invoice | P1: For Reconciliation
A3: Wholesale Electricty | B3: Year | C3: 2025 | E3: Rate | P3: Actual RPP Revenue and GA
A4: Redshift Wholesale Report.xlsm | B4: dateref | C4: 202503 | K4: Wholesale Volume data per IESO Power Bill: | L4: GA RPP/non-RPP Ratios | M4: GA Volumes | N4: Energy Volumes | P4: =B1 -> 202503
K5: AQEW | M5: =C10 -> 20195256.39 | N5: =+M5 -> 20195256.39 | P5: RPP Revenue Prices | Q5: RPP Rate | R5: Estimated RPP Energy Price | S5: GA actual IESO billed | T5: Total Commodity | U5: Difference | V5: kWh Volumes | W5: $ Estimated RPP Revenue | X5: $ Estimated RPP Energy | Y5: $ Estimated GA | Z5: $ Estimated RPP Settlement
B6: Wholesale | K6: Embedded Generation | M6: =SUM(C8:C9) -> 489285.89 | N6: =+M6 -> 489285.89 | P6: RPPT1 | Q6: =E20 -> 0.09299989629 | R6: =E44 -> 0.04935884499 | S6: =$L$33 -> 0.07255959581 | T6: =R6+S6 -> 0.1219184408 | U6: =+Q6-T6 -> -0.02891854452 | V6: =M18 -> 911468.0056 | W6: =Q6*V6 -> 84766.42998 | X6: =R6*V6 -> 44989.008 | Y6: =+V6*S6 -> 66135.75008 | Z6: =W6-X6-Y6 -> -26358.3281
B7: Source | C7: kWh | D7: Total Cost | K7: Class A customer Volumes for GA (TLF included) | M7: =-B70 -> -4057164.24 | P7: RPPT2 | Q7: =E21 -> 0.1099992502 | R7: =R6 -> 0.04935884499 | S7: =$L$33 -> 0.07255959581 | T7: =R7+S7 -> 0.1219184408 | U7: =+Q7-T7 -> -0.01191919061 | V7: =M19 -> 382797.5144 | W7: =Q7*V7 -> 42107.43956 | X7: =R7*V7 -> 18894.44318 | Y7: =+V7*S7 -> 27775.63292 | Z7: =W7-X7-Y7 -> -4562.63654
B8: FIT | C8: 461172.98 | D8: 19308.82 | E8: =D8/C8 -> 0.0418689317 | M8: =+M5+M6+M7 -> 16627378.04 | N8: =+N5+N6+N7 -> 20684542.28 | P8: RPPTOUMID | Q8: =E23 -> 0.1220003211 | R8: =E45 -> 0.04937141078 | S8: 0.07255959581 | T8: 0.1219310066 | U8: 6.931455771e-05 | V8: 1610999.681 | W8: 196542.4785 | X8: 79537.32703 | Y8: 116893.4857 | Z8: 111.6657304
B9: microFIT | C9: 28112.91 | D9: 1173.69 | E9: =D9/C9 -> 0.04174914657 | P9: RPPTOUOFF | Q9: =E24 -> 0.07404147675 | R9: =R8 -> 0.04937141078 | S9: 0.07255959581 | T9: 0.1219310066 | U9: -0.04788952984 | V9: 6087108.366 | W9: 450698.4926 | X9: 300529.1276 | Y9: 441678.1227 | Z9: -291508.7577
B10: WHOLESALE | C10: 20195256.39 | D10: 1001822.74 | E10: =D10/C10 -> 0.04960683443 | K10: Estimated Retail Volume Revenue Data (TLF Included) | L10: RPP/non-RPP Ratios | M10: GA Volumes | N10: Energy Volumes | P10: RPPTOUON | Q10: 0.1579998878 | R10: =R9 -> 0.04937141078 | S10: 0.07255959581 | T10: 0.1219310066 | U10: 0.0360688812 | V10: 1662280.486 | W10: 262640.1303 | X10: 82069.13272 | Y10: 120614.4002 | Z10: 59956.59739
B11: Grand Total | C11: 20684542.28 | D11: 1022305.25 | K11: Estimated Retail Revenue Data (Net of Retail Billed/Unbilled) | M11: =+M15 -> 16627378.04 | N11: =+N15 -> 20684542.28 | P11: RPPULOMID | Q11: =E27 -> 0.1220009435 | R11: =E46 -> 0.04936277401 | S11: 0.07255959581 | T11: 0.1219223698 | U11: 7.857371041e-05 | V11: 4175.373319 | W11: 509.3994845 | X11: 206.1080096 | Y11: 302.9634004 | Z11: 0.328074574
P12: RPPULOOFF | Q12: =E28 -> 0.07600014941 | R12: =R11 -> 0.04936277401 | S12: 0.07255959581 | T12: 0.1219223698 | U12: -0.04592222041 | V12: 3361.23372 | W12: 255.454265 | X12: 165.9198205 | Y12: 243.8897602 | Z12: -154.3553157
K13: Estimated RPP Sales Quantities | L13: =SUM(C20:C30)/(C35-B70) -> 0.6420467319 | M13: =M8*L13 -> 10675553.73 | N13: =M13 -> 10675553.73 | P13: RPPULOON | Q13: 0.28400733 | R13: =R12 -> 0.04936277401 | S13: 0.07255959581 | T13: 0.1219223698 | U13: 0.1620849602 | V13: 1937.314168 | W13: 550.2114242 | X13: 95.63120144 | Y13: 140.570733 | Z13: 314.0094898
A14: RPP Revenue Volume and Price Data | K14: Estimated non-RPP Sales Quantities | L14: =1-L13 -> 0.3579532681 | M14: =M8*L14 -> 5951824.31 | N14: =N8-N13 -> 10008988.55 | P14: RPPULOOVN | Q14: 0.02800053484 | R14: 0.04936277401 | S14: 0.07255959581 | T14: 0.1219223698 | U14: -0.09392183498 | V14: 11425.75511 | W14: 319.9272541 | X14: 564.0069676 | Y14: 829.0481729 | Z14: -1073.127886
B15: bill_year | C15: 2025 | K15: Estimated Retail Revenue kWh Volumes | L15: =+L13+L14 -> 1 | M15: =+M13+M14 -> 16627378.04 | N15: =+N13+N14 -> 20684542.28 | V15: =SUM(V6:V14) -> 10675553.73 | W15: =SUM(W6:W14) -> 1038389.963 | X15: =SUM(X6:X14) -> 527050.7045 | Y15: =SUM(Y6:Y14) -> 774613.8638 | Z15: =SUM(Z6:Z14) -> -263274.6049
B16: bill_month | C16: 3 | Z16: =W15-X15-Y15-Z15 -> 0
K17: Estimated RPP Revenue Volume and Price Data | L17: Actual % | M17: kWh Volumes
B18: Row Labels | C18: usagebilled | D18: amountbilled | E18: Rate | K18: RPPT1 | L18: =C20/SUM($C$20:$C$30) -> 0.08537899097 | M18: =$M$13*L18 -> 911468.0056
B19: RPPTIER | K19: RPPT2 | L19: =C21/SUM($C$20:$C$30) -> 0.03585739195 | M19: =$M$13*L19 -> 382797.5144
B20: RPPT1 | C20: 942244.8683 | D20: 87628.67503 | E20: =D20/C20 -> 0.09299989629 | K20: RPPTOUMID | L20: =C23/SUM($C$20:$C$30) -> 0.1509054914 | M20: 1610999.681
B21: RPPT2 | C21: 395723.1536 | D21: 43529.25018 | E21: =D21/C21 -> 0.1099992502 | K21: RPPTOUOFF | L21: =C24/SUM($C$20:$C$30) -> 0.5701913475 | M21: 6087108.366
B22: RPPTOU | K22: RPPTOUON | L22: 0.1557090647 | M22: 1662280.486
B23: RPPTOUMID | C23: 1665397.11 | D23: 203178.9823 | E23: 0.1220003211 | K23: RPPULOMID | L23: =C27/SUM($C$20:$C$30) -> 0.0003911153861 | M23: 4175.373319
B24: RPPTOUOFF | C24: 6292647.231 | D24: 465916.8937 | E24: 0.07404147675 | K24: RPPULOOFF | L24: =C28/SUM($C$20:$C$30) -> 0.0003148533374 | M24: 3361.23372
B25: RPPTOUON | C25: 1718409.476 | D25: 271508.5044 | E25: 0.1579998878 | K25: RPPULOON | L25: 0.0001814720076 | M25: 1937.314168
B26: RPPULO | K26: RPPULOOVN | L26: 0.001070272831 | M26: 11425.75511
B27: RPPULOMID | C27: 4316.360047 | D27: 526.5999984 | E27: 0.1220009435 | L27: =SUM(L18:L26) -> 1 | M27: =SUM(M18:M26) -> 10675553.73
B28: RPPULOOFF | C28: 3474.730001 | D28: 264.0799993 | E28: 0.07600014941
B29: RPPULOON | C29: 2002.730015 | D29: 568.7900044 | E29: 0.28400733
B30: RPPULOOVN | C30: 11811.5601 | D30: 330.73 | E30: 0.02800053484
B31: RETAIL | K31: Global Adjustment | L31: per kWh
B32: NSLS | C32: 3277586.583 | D32: 162016.6612 | E32: 0.04943169526 | K32: Class B - GA actual8 | L32: =B62/100 -> 0.06948 | N32: GA Posted Price
B33: INTERVAL | K33: Class B - GA actual IESO billed | L33: =+M33/M8 -> 0.07255959581 | M33: =B78 -> 1206475.83 | N33: GA Billed by IESO CT 148
B34: HOEP | C34: 6932372.795 | D34: 335240.1882 | E34: 0.04835864979
B35: Grand Total | C35: 21245986.6 | D35: 1570709.355
C37: =C35/C11-1 -> 0.02714318307
L38: CT148/GA Actual | M38: =M33/L32 -> 17364361.4
A39: RPP COP Volume and Price Data | L39: Non Class A kWh | M39: =M8 -> 16627378.04
A40: ER COP Summary.xlsm | B40: bill_year | C40: 2025 | L40: Difference | M40: =M38-M39 -> 736983.359
B41: bill_month | C41: 3
M42: =M40*L32 -> 51205.60378
B43: Row Labels | C43: usagebilled | D43: amountbilled | E43: Rate
B44: RPPTIERED | C44: 1338554.565 | D44: 66069.50728 | E44: =D44/C44 -> 0.04935884499
B45: RPPTOU | C45: 9540826.166 | D45: 471044.0478 | E45: 0.04937141078
B46: RPPULO | C46: 21605.35001 | D46: 1066.50001 | E46: 0.04936277401
B47: Grand Total | C47: 10900986.08 | D47: 538180.0551
B50: RPPTIERED | C50: =SUM(C20:C21)-C44 -> -586.5428657 | D50: =C50/SUM(C20:C21) -> -0.0004383833217
B51: RPPTOU | C51: =SUM(C23:C25)-C45 -> 135627.6513 | D51: =C51/SUM(C23:C25) -> 0.01401625574
B52: RPPULO | C52: =SUM(C27:C30)-C46 -> 0.03014851 | D52: =C52/SUM(C27:C30) -> 1.395416779e-06
A58: Global Adjustment - Actual
A59: IESO GA Reconciliation.xlsm
A60: ga_actual | B60: year
A61: month | B61: 2025
A62: 202503 | B62: 6.948
A64: Class A kWh
A65: Redshift Class A Report.xlsm
A66: Year | B66: 2025
A68: Class A | B68: Value
A69: kWh
A70: 202503 | B70: 4057164.24
A72: IESO Class B
A73: IESO Invoice Reconciliation.xlsm
A74: chargetype | B74: 148
A76: Sum of chargeamount | B76: year
A77: month | B77: 2025
A78: 202503 | B78: 1206475.83

Sheet I7 Input Rev 03 Init (hidden)
A1: Reverse IESO Posted
A3: trade_dateref | B3: 202504
A5: Row Labels | B5: kWh | C5: Amount
A6: RPPTiered_1 | B6: 841524.16 | C6: 4842.98
A7: RPPTiered_2 | B7: 353258.88 | C7: 12441.46
A8: RPPTOU_MID | B8: 5463418.16 | C8: 54955.11
A9: RPPTOU_OFF | B9: 1489855.02 | C9: -31155.32
A10: RPPTOU_ON | B10: 1531554.13 | C10: 108087.36
A11: RPPULO_MID | B11: 3854.97 | C11: 137.9
A12: RPPULO_OFF | B12: 3103.3 | C12: -15.56
A13: RPPULO_ON | B13: 1788.65 | C13: 324.81
A14: RPPULO_ULO | B14: 10548.97 | C14: -726.15
A15: Grand Total | B15: 9698906.24 | C15: 148892.59

Sheet I8 Input 04 Trueup Sett (hidden)
A1: Date: | B1: =Admin!B8+3 -> 202504 | C1: Trueup | K1: ="Data for 1st True up of RPP Settlement based on Actual IESO Invoice" -> Data for 1st True up of RPP Settlement based on Actual IESO Invoice | P1: For Reconciliation
A3: Wholesale Electricty | B3: Year | C3: 2025 | E3: Rate | P3: Actual RPP Revenue and GA
A4: Redshift Wholesale Report.xlsm | B4: dateref | C4: 202504 | K4: Wholesale Volume data per IESO Power Bill: | L4: GA RPP/non-RPP Ratios | M4: GA Volumes | N4: Energy Volumes | P4: =B1 -> 202504
K5: AQEW | M5: =C10 -> 18636926.91 | N5: =+M5 -> 18636926.91 | P5: RPP Revenue Prices | Q5: RPP Rate | R5: Estimated RPP Energy Price | S5: GA actual IESO billed | T5: Total Commodity | U5: Difference | V5: kWh Volumes | W5: $ Estimated RPP Revenue | X5: $ Estimated RPP Energy | Y5: $ Estimated GA | Z5: $ Estimated RPP Settlement
B6: Wholesale | K6: Embedded Generation | M6: =SUM(C8:C9) -> 688880.94 | N6: =+M6 -> 688880.94 | P6: RPPT1 | Q6: =E20 -> 0.09299998273 | R6: =E44 -> 0.04224615733 | S6: =$L$32 -> 0.06915 | T6: =R6+S6 -> 0.1113961573 | U6: =+Q6-T6 -> -0.0183961746 | V6: =M18 -> 861578.4266 | W6: =Q6*V6 -> 80126.77879 | X6: =R6*V6 -> 36398.37776 | Y6: =+V6*S6 -> 59578.1482 | Z6: =W6-X6-Y6 -> -15849.74717
B7: Source | C7: kWh | D7: Total Cost | K7: Class A customer Volumes for GA (TLF included) | M7: =-B70 -> -3966198.14 | P7: RPPT2 | Q7: =E21 -> 0.110000233 | R7: =R6 -> 0.04224615733 | S7: =$L$32 -> 0.06915 | T7: =R7+S7 -> 0.1113961573 | U7: =+Q7-T7 -> -0.001395924334 | V7: =M19 -> 286427.132 | W7: =Q7*V7 -> 31507.05126 | X7: =R7*V7 -> 12100.44568 | Y7: =+V7*S7 -> 19806.43618 | Z7: =W7-X7-Y7 -> -399.8306034
B8: FIT | C8: 656957.97 | D8: 22286.39 | E8: =D8/C8 -> 0.03392361615 | M8: =+M5+M6+M7 -> 15359609.71 | N8: =+N5+N6+N7 -> 19325807.85 | P8: RPPTOUMID | Q8: =E23 -> 0.121999726 | R8: =E45 -> 0.04178737619 | S8: 0.06915 | T8: 0.1109373762 | U8: 0.01106234982 | V8: 1591415.702 | W8: 194152.2797 | X8: 66501.08664 | Y8: 110046.3958 | Z8: 17604.79721
B9: microFIT | C9: 31922.97 | D9: 1084.21 | E9: =D9/C9 -> 0.03396331858 | P9: RPPTOUOFF | Q9: =E24 -> 0.07532173609 | R9: =R8 -> 0.04178737619 | S9: 0.06915 | T9: 0.1109373762 | U9: -0.0356156401 | V9: 5294479.019 | W9: 398789.3514 | X9: 221242.3865 | Y9: 366113.2242 | Z9: -188566.2593
B10: WHOLESALE | C10: 18636926.91 | D10: 779391.87 | E10: =D10/C10 -> 0.04181976319 | K10: Estimated Retail Volume Revenue Data (TLF Included) | L10: RPP/non-RPP Ratios | M10: GA Volumes | N10: Energy Volumes | P10: RPPTOUON | Q10: 0.1580000465 | R10: =R9 -> 0.04178737619 | S10: 0.06915 | T10: 0.1109373762 | U10: 0.04706267028 | V10: 1631066.036 | W10: 257708.5095 | X10: 68157.97006 | Y10: 112788.2164 | Z10: 76762.32307
B11: Grand Total | C11: 19325807.85 | D11: 802762.47 | K11: Estimated Retail Revenue Data (Net of Retail Billed/Unbilled) | M11: =+M15 -> 15359609.71 | N11: =+N15 -> 19325807.85 | P11: RPPULOMID | Q11: =E27 -> 0.1219990189 | R11: =E46 -> 0.04180171798 | S11: 0.06915 | T11: 0.110951718 | U11: 0.01104730091 | V11: 4127.036695 | W11: 503.4944277 | X11: 172.517224 | Y11: 285.3845874 | Z11: 45.59261621
P12: RPPULOOFF | Q12: =E28 -> 0.07599235017 | R12: =R11 -> 0.04180171798 | S12: 0.06915 | T12: 0.110951718 | U12: -0.0349593678 | V12: 2654.521511 | W12: 201.7233282 | X12: 110.9635595 | Y12: 183.5601625 | Z12: -92.80039382
K13: Estimated RPP Sales Quantities | L13: =SUM(C20:C30)/(C35-B70) -> 0.6304898913 | M13: =M8*L13 -> 9684078.656 | N13: =M13 -> 9684078.656 | P13: RPPULOON | Q13: 0.2839861259 | R13: =R12 -> 0.04180171798 | S13: 0.06915 | T13: 0.110951718 | U13: 0.1730344079 | V13: 1786.281029 | W13: 507.2790291 | X13: 74.66961579 | Y13: 123.5213331 | Z13: 309.0880802
A14: RPP Revenue Volume and Price Data | K14: Estimated non-RPP Sales Quantities | L14: =1-L13 -> 0.3695101087 | M14: =M8*L14 -> 5675531.054 | N14: =N8-N13 -> 9641729.194 | P14: RPPULOOVN | Q14: 0.02800035892 | R14: 0.04180171798 | S14: 0.06915 | T14: 0.110951718 | U14: -0.08295135906 | V14: 10544.49996 | W14: 295.2497835 | X14: 440.7782135 | Y14: 729.1521723 | Z14: -874.6806023
B15: bill_year | C15: 2025 | K15: Estimated Retail Revenue kWh Volumes | L15: =+L13+L14 -> 1 | M15: =+M13+M14 -> 15359609.71 | N15: =+N13+N14 -> 19325807.85 | V15: =SUM(V6:V14) -> 9684078.656 | W15: =SUM(W6:W14) -> 963791.7173 | X15: =SUM(X6:X14) -> 405199.1953 | Y15: =SUM(Y6:Y14) -> 669654.0391 | Z15: =SUM(Z6:Z14) -> -111061.5171
B16: bill_month | C16: 4 | Z16: =W15-X15-Y15-Z15 -> 0
K17: Estimated RPP Revenue Volume and Price Data | L17: Actual % | M17: kWh Volumes
B18: Row Labels | C18: usagebilled | D18: amountbilled | E18: Rate | K18: RPPT1 | L18: =C20/SUM($C$20:$C$30) -> 0.08896854901 | M18: =$M$13*L18 -> 861578.4266
B19: RPPTIER | K19: RPPT2 | L19: =C21/SUM($C$20:$C$30) -> 0.02957711747 | M19: =$M$13*L19 -> 286427.132
B20: RPPT1 | C20: 846871.6631 | D20: 78759.05004 | E20: =D20/C20 -> 0.09299998273 | K20: RPPTOUMID | L20: =C23/SUM($C$20:$C$30) -> 0.164333207 | M20: 1591415.702
B21: RPPT2 | C21: 281537.9473 | D21: 30969.2398 | E21: =D21/C21 -> 0.110000233 | K21: RPPTOUOFF | L21: =C24/SUM($C$20:$C$30) -> 0.5467199522 | M21: 5294479.019
B22: RPPTOU | K22: RPPTOUON | L22: 0.1684275907 | M22: 1631066.036
B23: RPPTOUMID | C23: 1564250.939 | D23: 190838.186 | E23: 0.121999726 | K23: RPPULOMID | L23: =C27/SUM($C$20:$C$30) -> 0.000426167201 | M23: 4127.036695
B24: RPPTOUOFF | C24: 5204104.599 | D24: 391982.1932 | E24: 0.07532173609 | K24: RPPULOOFF | L24: =C28/SUM($C$20:$C$30) -> 0.0002741119321 | M24: 2654.521511
B25: RPPTOUON | C25: 1603224.459 | D25: 253309.539 | E25: 0.1580000465 | K25: RPPULOON | L25: 0.0001844554441 | M25: 1786.281029
B26: RPPULO | K26: RPPULOOVN | L26: 0.001088849062 | M26: 10544.49996
B27: RPPULOMID | C27: 4056.59 | D27: 494.9 | E27: 0.1219990189 | L27: =SUM(L18:L26) -> 1 | M27: =SUM(M18:M26) -> 9684078.656
B28: RPPULOOFF | C28: 2609.21 | D28: 198.28 | E28: 0.07599235017
B29: RPPULOON | C29: 1755.79 | D29: 498.62 | E29: 0.2839861259
B30: RPPULOOVN | C30: 10364.51 | D30: 290.21 | E30: 0.02800035892
B31: RETAIL | K31: Global Adjustment | L31: per kWh
B32: NSLS | C32: 2954490.791 | D32: 119056.8022 | E32: 0.040296894 | K32: Class B - GA actual8 | L32: =B62/100 -> 0.06915 | N32: GA Posted Price
B33: INTERVAL | K33: Class B - GA actual IESO billed | L33: =+M33/M8 -> 0.06913742537 | M33: =B78 -> 1061923.87 | N33: GA Billed by IESO CT 148
B34: HOEP | C34: 6590359.593 | D34: 272335.7406 | E34: 0.04132335068
B35: Grand Total | C35: 19063626.09 | D35: 1338732.761
C37: =C35/C11-1 -> -0.01356640615
L38: CT148/GA Actual | M38: =M33/L32 -> 15356816.63
A39: RPP COP Volume and Price Data | L39: Non Class A kWh | M39: =M8 -> 15359609.71
A40: ER COP Summary.xlsm | B40: bill_year | C40: 2025 | L40: Difference | M40: =M38-M39 -> -2793.079487
B41: bill_month | C41: 4
M42: =M40*L32 -> -193.1414465
B43: Row Labels | C43: usagebilled | D43: amountbilled | E43: Rate
B44: RPPTIERED | C44: 1127384.43 | D44: 47627.66 | E44: =D44/C44 -> 0.04224615733
B45: RPPTOU | C45: 8358106.377 | D45: 349263.3355 | E45: 0.04178737619
B46: RPPULO | C46: 18786.07 | D46: 785.29 | E46: 0.04180171798
B47: Grand Total | C47: 9504276.877 | D47: 397676.2855
B50: RPPTIERED | C50: =SUM(C20:C21)-C44 -> 1025.1804 | D50: =C50/SUM(C20:C21) -> 0.0009085179624
B51: RPPTOU | C51: =SUM(C23:C25)-C45 -> 13473.61997 | D51: =C51/SUM(C23:C25) -> 0.001609447675
B52: RPPULO | C52: =SUM(C27:C30)-C46 -> 0.03 | D52: =C52/SUM(C27:C30) -> 1.596925386e-06
A58: Global Adjustment - Actual
A59: IESO GA Reconciliation.xlsm
A60: ga_actual | B60: year
A61: month | B61: 2025
A62: 202504 | B62: 6.915
A64: Class A kWh
A65: Redshift Class A Report.xlsm
A66: Year | B66: 2025
A68: Class A | B68: Value
A69: kWh
A70: 202504 | B70: 3966198.14
A72: IESO Class B
A73: IESO Invoice Reconciliation.xlsm
A74: chargetype | B74: 148
A76: Sum of chargeamount | B76: year
A77: month | B77: 2025
A78: 202504 | B78: 1061923.87

Sheet I9 Input Rev 04 Init (hidden)
A1: Reverse IESO Posted
A3: trade_dateref | B3: 202505
A5: Row Labels | B5: kWh | C5: Amount
A6: RPPTiered_1 | B6: 808352.89 | C6: -77263.18
A7: RPPTiered_2 | B7: 266755.87 | C7: -20910.35
A8: RPPTOU_MID | B8: 4958850.87 | C8: -96329.18
A9: RPPTOU_OFF | B9: 1495784.54 | C9: -552958.51
A10: RPPTOU_ON | B10: 1527706.42 | C10: -40015.91
A11: RPPULO_MID | B11: 3872.08 | C11: -249.39
A12: RPPULO_OFF | B12: 2490.53 | C12: -262.11
A13: RPPULO_ON | B13: 1675.93 | C13: 161.18
A14: RPPULO_ULO | B14: 9893.09 | C14: -1574.18
A15: Grand Total | B15: 9075382.22 | C15: -789401.63

Sheet I10 Input 05 Trueup Sett (hidden)
A1: Date: | B1: =Admin!B8+4 -> 202505 | C1: Trueup | K1: ="Data for 1st True up of RPP Settlement based on Actual IESO Invoice" -> Data for 1st True up of RPP Settlement based on Actual IESO Invoice | P1: For Reconciliation
A3: Wholesale Electricty | B3: Year | C3: 2025 | E3: Rate | P3: Actual RPP Revenue and GA
A4: Redshift Wholesale Report.xlsm | B4: dateref | C4: 202505 | K4: Wholesale Volume data per IESO Power Bill: | L4: GA RPP/non-RPP Ratios | M4: GA Volumes | N4: Energy Volumes | P4: =B1 -> 202505
K5: AQEW | M5: =C10 -> 17630647.47 | N5: =+M5 -> 17630647.47 | P5: RPP Revenue Prices | Q5: RPP Rate | R5: Estimated RPP Energy Price | S5: GA actual IESO billed | T5: Total Commodity | U5: Difference | V5: kWh Volumes | W5: $ Estimated RPP Revenue | X5: $ Estimated RPP Energy | Y5: $ Estimated GA | Z5: $ Estimated RPP Settlement
B6: Wholesale | K6: Embedded Generation | M6: =SUM(C8:C9) -> 750813.65 | N6: =+M6 -> 750813.65 | P6: RPPT1 | Q6: =E20 -> 0.09299971563 | R6: =E44 -> 0.02418435524 | S6: =$L$32 -> 0.13493 | T6: =R6+S6 -> 0.1591143552 | U6: =+Q6-T6 -> -0.06611463961 | V6: =M18 -> 699112.5056 | W6: =Q6*V6 -> 65017.26422 | X6: =R6*V6 -> 16907.58519 | Y6: =+V6*S6 -> 94331.25038 | Z6: =W6-X6-Y6 -> -46221.57136
B7: Source | C7: kWh | D7: Total Cost | K7: Class A customer Volumes for GA (TLF included) | M7: =-B70 -> -3962721.26 | P7: RPPT2 | Q7: =E21 -> 0.1099986527 | R7: =R6 -> 0.02418435524 | S7: =$L$32 -> 0.13493 | T7: =R7+S7 -> 0.1591143552 | U7: =+Q7-T7 -> -0.04911570254 | V7: =M19 -> 306410.268 | W7: =Q7*V7 -> 33704.71665 | X7: =R7*V7 -> 7410.334772 | Y7: =+V7*S7 -> 41343.93746 | Z7: =W7-X7-Y7 -> -15049.55558
B8: FIT | C8: 712995.13 | D8: 17983.94 | E8: =D8/C8 -> 0.02522308953 | M8: =+M5+M6+M7 -> 14418739.86 | N8: =+N5+N6+N7 -> 18381461.12 | P8: RPPTOUMID | Q8: =E23 -> 0.1219996179 | R8: =E45 -> 0.02420461787 | S8: 0.13493 | T8: 0.1591346179 | U8: -0.03713499996 | V8: 1419627.824 | W8: 173194.0521 | X8: 34361.54899 | Y8: 191550.3822 | Z8: -52717.87916
B9: microFIT | C9: 37818.52 | D9: 951.21 | E9: =D9/C9 -> 0.02515196258 | P9: RPPTOUOFF | Q9: =E24 -> 0.07600015594 | R9: =R8 -> 0.02420461787 | S9: 0.13493 | T9: 0.1591346179 | U9: -0.08313446193 | V9: 4834407.203 | W9: 367415.7013 | X9: 117014.979 | Y9: 652306.5639 | Z9: -401905.8416
B10: WHOLESALE | C10: 17630647.47 | D10: 429918.47 | E10: =D10/C10 -> 0.02438472386 | K10: Estimated Retail Volume Revenue Data (TLF Included) | L10: RPP/non-RPP Ratios | M10: GA Volumes | N10: Energy Volumes | P10: RPPTOUON | Q10: 0.1580001934 | R10: =R9 -> 0.02420461787 | S10: 0.13493 | T10: 0.1591346179 | U10: -0.001134424452 | V10: 1414063.314 | W10: 223422.2772 | X10: 34226.86217 | Y10: 190799.563 | Z10: -1604.148
B11: Grand Total | C11: 18381461.12 | D11: 448853.62 | K11: Estimated Retail Revenue Data (Net of Retail Billed/Unbilled) | M11: =+M15 -> 14418739.86 | N11: =+N15 -> 18381461.12 | P11: RPPULOMID | Q11: =E27 -> 0.1219942304 | R11: =E46 -> 0.02413969077 | S11: 0.13493 | T11: 0.1590696908 | U11: -0.03707546037 | V11: 3306.257946 | W11: 403.3443936 | X11: 79.81204443 | Y11: 446.1133847 | Z11: -122.5810355
P12: RPPULOOFF | Q12: =E28 -> 0.07600275189 | R12: =R11 -> 0.02413969077 | S12: 0.13493 | T12: 0.1590696908 | U12: -0.08306693888 | V12: 2495.181116 | W12: 189.6406313 | X12: 60.23290057 | Y12: 336.674788 | Z12: -207.2670573
K13: Estimated RPP Sales Quantities | L13: =SUM(C20:C30)/(C35-B70) -> 0.6028288463 | M13: =M8*L13 -> 8692032.315 | N13: =M13 -> 8692032.315 | P13: RPPULOON | Q13: 0.2839910877 | R13: =R12 -> 0.02413969077 | S13: 0.13493 | T13: 0.1590696908 | U13: 0.1249213969 | V13: 1586.480499 | W13: 450.5463226 | X13: 38.29714867 | Y13: 214.0638138 | Z13: 198.1853601
A14: RPP Revenue Volume and Price Data | K14: Estimated non-RPP Sales Quantities | L14: =1-L13 -> 0.3971711537 | M14: =M8*L14 -> 5726707.545 | N14: =N8-N13 -> 9689428.805 | P14: RPPULOOVN | Q14: 0.02799946555 | R14: 0.02413969077 | S14: 0.13493 | T14: 0.1590696908 | U14: -0.1310702252 | V14: 11023.28069 | W14: 308.645968 | X14: 266.0985872 | Y14: 1487.371264 | Z14: -1444.823883
B15: bill_year | C15: 2025 | K15: Estimated Retail Revenue kWh Volumes | L15: =+L13+L14 -> 1 | M15: =+M13+M14 -> 14418739.86 | N15: =+N13+N14 -> 18381461.12 | V15: =SUM(V6:V14) -> 8692032.315 | W15: =SUM(W6:W14) -> 864106.1887 | X15: =SUM(X6:X14) -> 210365.7508 | Y15: =SUM(Y6:Y14) -> 1172815.92 | Z15: =SUM(Z6:Z14) -> -519075.4823
B16: bill_month | C16: 5 | Z16: =W15-X15-Y15-Z15 -> 0
K17: Estimated RPP Revenue Volume and Price Data | L17: Actual % | M17: kWh Volumes
B18: Row Labels | C18: usagebilled | D18: amountbilled | E18: Rate | K18: RPPT1 | L18: =C20/SUM($C$20:$C$30) -> 0.08043142044 | M18: =$M$13*L18 -> 699112.5056
B19: RPPTIER | K19: RPPT2 | L19: =C21/SUM($C$20:$C$30) -> 0.0352518556 | M19: =$M$13*L19 -> 306410.268
B20: RPPT1 | C20: 688271.8323 | D20: 64009.08469 | E20: =D20/C20 -> 0.09299971563 | K20: RPPTOUMID | L20: =C23/SUM($C$20:$C$30) -> 0.1633251893 | M20: 1419627.824
B21: RPPT2 | C21: 301658.9675 | D21: 33182.08 | E21: =D21/C21 -> 0.1099986527 | K21: RPPTOUOFF | L21: =C24/SUM($C$20:$C$30) -> 0.5561883605 | M21: 4834407.203
B22: RPPTOU | K22: RPPTOUON | L22: 0.1626850043 | M22: 1414063.314
B23: RPPTOUMID | C23: 1397614.598 | D23: 170508.4469 | E23: 0.1219996179 | K23: RPPULOMID | L23: =C27/SUM($C$20:$C$30) -> 0.000380378009 | M23: 3306.257946
B24: RPPTOUOFF | C24: 4759443.261 | D24: 361718.4301 | E24: 0.07600015594 | K24: RPPULOOFF | L24: =C28/SUM($C$20:$C$30) -> 0.000287065329 | M24: 2495.181116
B25: RPPTOUON | C25: 1392136.374 | D25: 219957.8163 | E25: 0.1580001934 | K25: RPPULOON | L25: 0.0001825212381 | M25: 1586.480499
B26: RPPULO | K26: RPPULOOVN | L26: 0.001268205213 | M26: 11023.28069
B27: RPPULOMID | C27: 3254.99 | D27: 397.09 | E27: 0.1219942304 | L27: =SUM(L18:L26) -> 1 | M27: =SUM(M18:M26) -> 8692032.315
B28: RPPULOOFF | C28: 2456.49 | D28: 186.7 | E28: 0.07600275189
B29: RPPULOON | C29: 1561.88 | D29: 443.56 | E29: 0.2839910877
B30: RPPULOOVN | C30: 10852.35 | D30: 303.86 | E30: 0.02799946555
B31: RETAIL | K31: Global Adjustment | L31: per kWh
B32: NSLS | C32: 3118830.077 | D32: 75833.06462 | E32: 0.0243145868 | K32: Class B - GA actual8 | L32: =B62/100 -> 0.13493 | N32: GA Posted Price
B33: INTERVAL | K33: Class B - GA actual IESO billed | L33: =+M33/M8 -> 0.1350138839 | M33: =B78 -> 1946730.07 | N33: GA Billed by IESO CT 148
B34: HOEP | C34: 6481798.478 | D34: 162144.0054 | E34: 0.02501528024
B35: Grand Total | C35: 18157879.3 | D35: 1088684.138
C37: =C35/C11-1 -> -0.01216344124
L38: CT148/GA Actual | M38: =M33/L32 -> 14427703.77
A39: RPP COP Volume and Price Data | L39: Non Class A kWh | M39: =M8 -> 14418739.86
A40: ER COP Summary.xlsm | B40: bill_year | C40: 2025 | L40: Difference | M40: =M38-M39 -> 8963.912326
B41: bill_month | C41: 5
M42: =M40*L32 -> 1209.50069
B43: Row Labels | C43: usagebilled | D43: amountbilled | E43: Rate
B44: RPPTIERED | C44: 1003170.708 | D44: 24261.03676 | E44: =D44/C44 -> 0.02418435524
B45: RPPTOU | C45: 7591002.615 | D45: 183737.3176 | E45: 0.02420461787
B46: RPPULO | C46: 18125.75 | D46: 437.55 | E46: 0.02413969077
B47: Grand Total | C47: 8612299.072 | D47: 208435.9043
B50: RPPTIERED | C50: =SUM(C20:C21)-C44 -> -13239.9078 | D50: =C50/SUM(C20:C21) -> -0.01337457911
B51: RPPTOU | C51: =SUM(C23:C25)-C45 -> -41808.38152 | D51: =C51/SUM(C23:C25) -> -0.005538125028
B52: RPPULO | C52: =SUM(C27:C30)-C46 -> -0.04 | D52: =C52/SUM(C27:C30) -> -2.206810106e-06
A58: Global Adjustment - Actual
A59: IESO GA Reconciliation.xlsm
A60: ga_actual | B60: year
A61: month | B61: 2025
A62: 202505 | B62: 13.493
A64: Class A kWh
A65: Redshift Class A Report.xlsm
A66: Year | B66: 2025
A68: Class A | B68: Value
A69: kWh
A70: 202505 | B70: 3962721.26
A72: IESO Class B
A73: IESO Invoice Reconciliation.xlsm
A74: chargetype | B74: 148
A76: Sum of chargeamount | B76: year
A77: month | B77: 2025
A78: 202505 | B78: 1946730.07

Sheet I11 Input Rev 05 Init (hidden)
A1: Reverse IESO Posted
A3: trade_dateref | B3: 202506
A5: Row Labels | B5: kWh | C5: Amount
A6: RPPTiered_1 | B6: 778372.85 | C6: 14185.24
A7: RPPTiered_2 | B7: 349411.11 | C7: 4144.59
A8: RPPTOU_MID | B8: 5361725.3 | C8: 58343.51
A9: RPPTOU_OFF | B9: 1573892.18 | C9: -64576.41
A10: RPPTOU_ON | B10: 1567590.04 | C10: 112525.49
A11: RPPULO_MID | B11: 3682.08 | C11: 160.05
A12: RPPULO_OFF | B12: 2778.81 | C12: -34.07
A13: RPPULO_ON | B13: 1766.82 | C13: 335.9
A14: RPPULO_ULO | B14: 12276.3 | C14: -914.59
A15: Grand Total | B15: 9651495.49 | C15: 124169.71

Sheet I12 Input 06 Trueup Sett (hidden)
A1: Date: | B1: =Admin!B8+5 -> 202506 | C1: Trueup | K1: ="Data for 1st True up of RPP Settlement based on Actual IESO Invoice" -> Data for 1st True up of RPP Settlement based on Actual IESO Invoice | P1: For Reconciliation
A3: Wholesale Electricty | B3: Year | C3: 2025 | E3: Rate | P3: Actual RPP Revenue and GA
A4: Redshift Wholesale Report.xlsm | B4: dateref | C4: 202506 | K4: Wholesale Volume data per IESO Power Bill: | L4: GA RPP/non-RPP Ratios | M4: GA Volumes | N4: Energy Volumes | P4: =B1 -> 202506
K5: AQEW | M5: =C10 -> 19120592.23 | N5: =+M5 -> 19120592.23 | P5: RPP Revenue Prices | Q5: RPP Rate | R5: Estimated RPP Energy Price | S5: GA actual IESO billed | T5: Total Commodity | U5: Difference | V5: kWh Volumes | W5: $ Estimated RPP Revenue | X5: $ Estimated RPP Energy | Y5: $ Estimated GA | Z5: $ Estimated RPP Settlement
B6: Wholesale | K6: Embedded Generation | M6: =SUM(C8:C9) -> 847981.32 | N6: =+M6 -> 847981.32 | P6: RPPT1 | Q6: =E20 -> 0.09300025041 | R6: =E44 -> 0.05774716675 | S6: =$L$32 -> 0.05972 | T6: =R6+S6 -> 0.1174671667 | U6: =+Q6-T6 -> -0.02446691634 | V6: =M18 -> 684823.9221 | W6: =Q6*V6 -> 63688.79625 | X6: =R6*V6 -> 39546.64122 | Y6: =+V6*S6 -> 40897.68463 | Z6: =W6-X6-Y6 -> -16755.52961
B7: Source | C7: kWh | D7: Total Cost | K7: Class A customer Volumes for GA (TLF included) | M7: =-B70 -> -4073464.62 | P7: RPPT2 | Q7: =E21 -> 0.110000258 | R7: =R6 -> 0.05774716675 | S7: =$L$32 -> 0.05972 | T7: =R7+S7 -> 0.1174671667 | U7: =+Q7-T7 -> -0.007466908712 | V7: =M19 -> 316297.4179 | W7: =Q7*V7 -> 34792.79758 | X7: =R7*V7 -> 18265.27973 | Y7: =+V7*S7 -> 18889.2818 | Z7: =W7-X7-Y7 -> -2361.763945
B8: FIT | C8: 807088.79 | D8: 44494.59 | E8: =D8/C8 -> 0.05512973362 | M8: =+M5+M6+M7 -> 15895108.93 | N8: =+N5+N6+N7 -> 19968573.55 | P8: RPPTOUMID | Q8: =E23 -> 0.1220003787 | R8: =E45 -> 0.05906875502 | S8: 0.05972 | T8: 0.118788755 | U8: 0.00321162365 | V8: 1661383.294 | W8: 202689.391 | X8: 98135.84278 | Y8: 99217.81031 | Z8: 5335.737878
B9: microFIT | C9: 40892.53 | D9: 2258.7 | E9: =D9/C9 -> 0.05523502703 | P9: RPPTOUOFF | Q9: =E24 -> 0.07600012186 | R9: =R8 -> 0.05906875502 | S9: 0.05972 | T9: 0.118788755 | U9: -0.04278863316 | V9: 5373200.85 | W9: 408363.9194 | X9: 317388.2847 | Y9: 320887.5548 | Z9: -229911.9201
B10: WHOLESALE | C10: 19120592.23 | D10: 1054412.74 | E10: =D10/C10 -> 0.05514540174 | K10: Estimated Retail Volume Revenue Data (TLF Included) | L10: RPP/non-RPP Ratios | M10: GA Volumes | N10: Energy Volumes | P10: RPPTOUON | Q10: 0.15800019 | R10: =R9 -> 0.05906875502 | S10: 0.05972 | T10: 0.118788755 | U10: 0.03921143498 | V10: 1781668.357 | W10: 281503.939 | X10: 105240.9317 | Y10: 106401.2343 | Z10: 69861.77296
B11: Grand Total | C11: 19968573.55 | D11: 1101166.03 | K11: Estimated Retail Revenue Data (Net of Retail Billed/Unbilled) | M11: =+M15 -> 15895108.93 | N11: =+N15 -> 19968573.55 | P11: RPPULOMID | Q11: =E27 -> 0.1219963538 | R11: =E46 -> 0.05908490103 | S11: 0.05972 | T11: 0.118804901 | U11: 0.003191452758 | V11: 4059.721738 | W11: 495.2712494 | X11: 239.8682571 | Y11: 242.4465822 | Z11: 12.95641014
P12: RPPULOOFF | Q12: =E28 -> 0.0760068308 | R12: =R11 -> 0.05908490103 | S12: 0.05972 | T12: 0.118804901 | U12: -0.04279807023 | V12: 2842.023616 | W12: 216.0132081 | X12: 167.9206841 | Y12: 169.7256503 | Z12: -121.6331263
K13: Estimated RPP Sales Quantities | L13: =SUM(C20:C30)/(C35-B70) -> 0.6189217697 | M13: =M8*L13 -> 9837828.949 | N13: =M13 -> 9837828.949 | P13: RPPULOON | Q13: 0.2840053437 | R13: =R12 -> 0.05908490103 | S13: 0.05972 | T13: 0.118804901 | U13: 0.1652004427 | V13: 2164.621402 | W13: 614.7640454 | X13: 127.8964413 | Y13: 129.2711902 | Z13: 357.5964139
A14: RPP Revenue Volume and Price Data | K14: Estimated non-RPP Sales Quantities | L14: =1-L13 -> 0.3810782303 | M14: =M8*L14 -> 6057279.981 | N14: =N8-N13 -> 10130744.6 | P14: RPPULOOVN | Q14: 0.02799987926 | R14: 0.05908490103 | S14: 0.05972 | T14: 0.118804901 | U14: -0.09080502177 | V14: 11388.7413 | W14: 318.8833812 | X14: 672.9026524 | Y14: 680.1356303 | Z14: -1034.154901
B15: bill_year | C15: 2025 | K15: Estimated Retail Revenue kWh Volumes | L15: =+L13+L14 -> 1 | M15: =+M13+M14 -> 15895108.93 | N15: =+N13+N14 -> 19968573.55 | V15: =SUM(V6:V14) -> 9837828.949 | W15: =SUM(W6:W14) -> 992683.775 | X15: =SUM(X6:X14) -> 579785.5682 | Y15: =SUM(Y6:Y14) -> 587515.1448 | Z15: =SUM(Z6:Z14) -> -174616.938
B16: bill_month | C16: 6 | Z16: =W15-X15-Y15-Z15 -> -2.910383046e-10
K17: Estimated RPP Revenue Volume and Price Data | L17: Actual % | M17: kWh Volumes
B18: Row Labels | C18: usagebilled | D18: amountbilled | E18: Rate | K18: RPPT1 | L18: =C20/SUM($C$20:$C$30) -> 0.06961128575 | M18: =$M$13*L18 -> 684823.9221
B19: RPPTIER | K19: RPPT2 | L19: =C21/SUM($C$20:$C$30) -> 0.03215114021 | M19: =$M$13*L19 -> 316297.4179
B20: RPPT1 | C20: 677300.1708 | D20: 62989.08548 | E20: =D20/C20 -> 0.09300025041 | K20: RPPTOUMID | L20: =C23/SUM($C$20:$C$30) -> 0.1688770259 | M20: 1661383.294
B21: RPPT2 | C21: 312822.4471 | D21: 34410.5499 | E21: =D21/C21 -> 0.110000258 | K21: RPPTOUOFF | L21: =C24/SUM($C$20:$C$30) -> 0.546177503 | M21: 5373200.85
B22: RPPTOU | K22: RPPTOUON | L22: 0.1811038153 | M22: 1781668.357
B23: RPPTOUMID | C23: 1643130.668 | D23: 200462.5637 | E23: 0.1220003787 | K23: RPPULOMID | L23: =C27/SUM($C$20:$C$30) -> 0.0004126643957 | M23: 4059.721738
B24: RPPTOUOFF | C24: 5314168.702 | D24: 403877.4689 | E24: 0.07600012186 | K24: RPPULOOFF | L24: =C28/SUM($C$20:$C$30) -> 0.0002888872769 | M24: 2842.023616
B25: RPPTOUON | C25: 1762094.231 | D25: 278411.2233 | E25: 0.15800019 | K25: RPPULOON | L25: 0.0002200303963 | M25: 2164.621402
B26: RPPULO | K26: RPPULOOVN | L26: 0.001157647826 | M26: 11388.7413
B27: RPPULOMID | C27: 4015.12 | D27: 489.83 | E27: 0.1219963538 | L27: =SUM(L18:L26) -> 1 | M27: =SUM(M18:M26) -> 9837828.949
B28: RPPULOOFF | C28: 2810.8 | D28: 213.64 | E28: 0.0760068308
B29: RPPULOON | C29: 2140.84 | D29: 608.01 | E29: 0.2840053437
B30: RPPULOOVN | C30: 11263.62 | D30: 315.38 | E30: 0.02799987926
B31: RETAIL | K31: Global Adjustment | L31: per kWh
B32: NSLS | C32: 3503840.313 | D32: 189421.7602 | E32: 0.05406118525 | K32: Class B - GA actual8 | L32: =B62/100 -> 0.05972 | N32: GA Posted Price
B33: INTERVAL | K33: Class B - GA actual IESO billed | L33: =+M33/M8 -> 0.05941080896 | M33: =B78 -> 944341.28 | N33: GA Billed by IESO CT 148
B34: HOEP | C34: 6560356.571 | D34: 349777.2 | E34: 0.05331679707
B35: Grand Total | C35: 19793943.48 | D35: 1520976.712
C37: =C35/C11-1 -> -0.008745244971
L38: CT148/GA Actual | M38: =M33/L32 -> 15812814.47
A39: RPP COP Volume and Price Data | L39: Non Class A kWh | M39: =M8 -> 15895108.93
A40: ER COP Summary.xlsm | B40: bill_year | C40: 2025 | L40: Difference | M40: =M38-M39 -> -82294.46248
B41: bill_month | C41: 6
M42: =M40*L32 -> -4914.6253
B43: Row Labels | C43: usagebilled | D43: amountbilled | E43: Rate
B44: RPPTIERED | C44: 992302.0724 | D44: 57302.63324 | E44: =D44/C44 -> 0.05774716675
B45: RPPTOU | C45: 8750587.762 | D45: 516886.3248 | E45: 0.05906875502
B46: RPPULO | C46: 20230.38 | D46: 1195.31 | E46: 0.05908490103
B47: Grand Total | C47: 9763120.215 | D47: 575384.2681
B50: RPPTIERED | C50: =SUM(C20:C21)-C44 -> -2179.4545 | D50: =C50/SUM(C20:C21) -> -0.002201196559
B51: RPPTOU | C51: =SUM(C23:C25)-C45 -> -31194.16165 | D51: =C51/SUM(C23:C25) -> -0.003577560904
B52: RPPULO | C52: =SUM(C27:C30)-C46 -> 0 | D52: =C52/SUM(C27:C30) -> 0
A58: Global Adjustment - Actual
A59: IESO GA Reconciliation.xlsm
A60: ga_actual | B60: year
A61: month | B61: 2025
A62: 202506 | B62: 5.972
A64: Class A kWh
A65: Redshift Class A Report.xlsm
A66: Year | B66: 2025
A68: Class A | B68: Value
A69: kWh
A70: 202506 | B70: 4073464.62
A72: IESO Class B
A73: IESO Invoice Reconciliation.xlsm
A74: chargetype | B74: 148
A76: Sum of chargeamount | B76: year
A77: month | B77: 2025
A78: 202506 | B78: 944341.28

Sheet I13 Input Rev 06 Init (hidden)
A1: Reverse IESO Posted
A3: trade_dateref | B3: 202507
A5: Row Labels | B5: kWh | C5: Amount
A6: RPPTiered_1 | B6: 857272.18 | C6: 28195.4
A7: RPPTiered_2 | B7: 392890.32 | C7: 18878.04
A8: RPPTOU_MID | B8: 6698765.41 | C8: 119737.96
A9: RPPTOU_OFF | B9: 2071820.44 | C9: 75479.05
A10: RPPTOU_ON | B10: 2220857.4 | C10: 217349.81
A11: RPPULO_MID | B11: 5082.02 | C11: 295.79
A12: RPPULO_OFF | B12: 3557.68 | C12: 38.17
A13: RPPULO_ON | B13: 2709.7 | C13: 664.07
A14: RPPULO_ULO | B14: 14256.59 | C14: -449.23
A15: Grand Total | B15: 12267211.74 | C15: 460189.06

Sheet I14 Input 07 Trueup Sett (hidden)
A1: Date: | B1: =Admin!B8+6 -> 202507 | C1: Trueup | K1: ="Data for 1st True up of RPP Settlement based on Actual IESO Invoice" -> Data for 1st True up of RPP Settlement based on Actual IESO Invoice | P1: For Reconciliation
A3: Wholesale Electricty | B3: Year | C3: 2024 | E3: Rate | P3: Actual RPP Revenue and GA
A4: Redshift Wholesale Report.xlsm | B4: dateref | C4: 202407 | K4: Wholesale Volume data per IESO Power Bill: | L4: GA RPP/non-RPP Ratios | M4: GA Volumes | N4: Energy Volumes | P4: =B1 -> 202507
K5: AQEW | M5: =C10 -> 0 | N5: =+M5 -> 0 | P5: RPP Revenue Prices | Q5: RPP Rate | R5: Estimated RPP Energy Price | S5: GA actual IESO billed | T5: Total Commodity | U5: Difference | V5: kWh Volumes | W5: $ Estimated RPP Revenue | X5: $ Estimated RPP Energy | Y5: $ Estimated GA | Z5: $ Estimated RPP Settlement
B6: Wholesale | K6: Embedded Generation | M6: =SUM(C8:C9) -> 0 | N6: =+M6 -> 0 | P6: RPPT1 | Q6: =E20 ->  | R6: =E44 ->  | S6: =$L$32 -> 0 | T6: =R6+S6 ->  | U6: =+Q6-T6 ->  | V6: =M18 ->  | W6: =Q6*V6 ->  | X6: =R6*V6 ->  | Y6: =+V6*S6 ->  | Z6: =W6-X6-Y6 -> 
B7: Source | C7: kWh | D7: Total Cost | K7: Class A customer Volumes for GA (TLF included) | M7: =-B70 -> 0 | P7: RPPT2 | Q7: =E21 ->  | R7: =R6 ->  | S7: =$L$32 -> 0 | T7: =R7+S7 ->  | U7: =+Q7-T7 ->  | V7: =M19 ->  | W7: =Q7*V7 ->  | X7: =R7*V7 ->  | Y7: =+V7*S7 ->  | Z7: =W7-X7-Y7 -> 
B8: FIT | E8: 0.04451510098 | M8: =+M5+M6+M7 -> 0 | N8: =+N5+N6+N7 -> 0 | P8: RPPTOUMID | Q8: =E23 ->  | R8: =E45 ->  | S8: 0
B9: microFIT | E9: 0.044393075 | P9: RPPTOUOFF | Q9: =E24 ->  | R9: =R8 ->  | S9: 0
B10: WHOLESALE | E10: 0.04397220668 | K10: Estimated Retail Volume Revenue Data (TLF Included) | L10: RPP/non-RPP Ratios | M10: GA Volumes | N10: Energy Volumes | P10: RPPTOUON | R10: =R9 ->  | S10: 0
B11: Grand Total | K11: Estimated Retail Revenue Data (Net of Retail Billed/Unbilled) | M11: =+M15 ->  | N11: =+N15 ->  | P11: RPPULOMID | Q11: =E27 ->  | R11: =E46 ->  | S11: 0
P12: RPPULOOFF | Q12: =E28 ->  | R12: =R11 ->  | S12: 0
K13: Estimated RPP Sales Quantities | L13: =SUM(C20:C30)/(C35-B70) ->  | M13: =M8*L13 ->  | N13: =M13 ->  | P13: RPPULOON | R13: =R12 ->  | S13: 0
A14: RPP Revenue Volume and Price Data | K14: Estimated non-RPP Sales Quantities | L14: =1-L13 ->  | M14: =M8*L14 ->  | N14: =N8-N13 ->  | P14: RPPULOOVN | S14: 0
B15: bill_year | C15: 2024 | K15: Estimated Retail Revenue kWh Volumes | L15: =+L13+L14 ->  | M15: =+M13+M14 ->  | N15: =+N13+N14 ->  | V15: =SUM(V6:V14) ->  | W15: =SUM(W6:W14) ->  | X15: =SUM(X6:X14) ->  | Y15: =SUM(Y6:Y14) ->  | Z15: =SUM(Z6:Z14) -> 
B16: bill_month | C16: 7 | Z16: =W15-X15-Y15-Z15 -> 
K17: Estimated RPP Revenue Volume and Price Data | L17: Actual % | M17: kWh Volumes
B18: Row Labels | C18: usagebilled | D18: amountbilled | E18: Rate | K18: RPPT1 | L18: =C20/SUM($C$20:$C$30) ->  | M18: =$M$13*L18 -> 
B19: RPPTIER | K19: RPPT2 | L19: =C21/SUM($C$20:$C$30) ->  | M19: =$M$13*L19 -> 
B20: RPPT1 | E20: =D20/C20 ->  | K20: RPPTOUMID | L20: =C23/SUM($C$20:$C$30) -> 
B21: RPPT2 | E21: =D21/C21 ->  | K21: RPPTOUOFF | L21: =C24/SUM($C$20:$C$30) -> 
B22: RPPTOU | K22: RPPTOUON
B23: RPPTOUMID | K23: RPPULOMID | L23: =C27/SUM($C$20:$C$30) -> 
B24: RPPTOUOFF | K24: RPPULOOFF | L24: =C28/SUM($C$20:$C$30) -> 
B25: RPPTOUON | K25: RPPULOON
B26: RPPULO | K26: RPPULOOVN
B27: RPPULOMID | L27: =SUM(L18:L26) ->  | M27: =SUM(M18:M26) -> 
B28: RPPULOOFF
B29: RPPULOON
B30: RPPULOOVN
B31: RETAIL | K31: Global Adjustment | L31: per kWh
B32: NSLS | K32: Class B - GA actual8 | L32: =B62/100 -> 0 | N32: GA Posted Price
B33: INTERVAL | K33: Class B - GA actual IESO billed | L33: =+M33/M8 ->  | M33: =B78 -> 0 | N33: GA Billed by IESO CT 148
B34: HOEP
B35: Grand Total
C37: =C35/C11-1 -> 
L38: CT148/GA Actual | M38: =M33/L32 -> 
A39: RPP COP Volume and Price Data | L39: Non Class A kWh | M39: =M8 -> 0
A40: ER COP Summary.xlsm | B40: bill_year | C40: 2024 | L40: Difference | M40: =M38-M39 -> 
B41: bill_month | C41: 7
M42: =M40*L32 -> 
B43: Row Labels | C43: usagebilled | D43: amountbilled | E43: Rate
B44: RPPTIERED | E44: =D44/C44 -> 
B45: RPPTOU
B46: RPPULO
B47: Grand Total
B50: RPPTIERED | C50: =SUM(C20:C21)-C44 -> 0 | D50: =C50/SUM(C20:C21) -> 
B51: RPPTOU | C51: =SUM(C23:C25)-C45 -> 0 | D51: =C51/SUM(C23:C25) -> 
B52: RPPULO | C52: =SUM(C27:C30)-C46 -> 0 | D52: =C52/SUM(C27:C30) -> 
A58: Global Adjustment - Actual
A59: IESO GA Reconciliation.xlsm
A60: ga_actual | B60: year
A61: month | B61: 2024
A62: 202407
A64: Class A kWh
A65: Redshift Class A Report.xlsm
A66: Year | B66: 2024
A68: Class A | B68: Value
A69: kWh
A70: 202407
A72: IESO Class B
A73: IESO Invoice Reconciliation.xlsm
A74: chargetype | B74: 148
A76: Sum of chargeamount | B76: year
A77: month | B77: 2024
A78: 202407

Sheet I15 Input Rev 07 Init (hidden)
A1: Reverse IESO Posted
A3: trade_dateref | B3: 202508
A5: Row Labels | B5: kWh | C5: Amount
A6: RPPTiered_1 | B6: 715750.12 | C6: -44067.23
A7: RPPTiered_2 | B7: 419404.92 | C7: -13348.17
A8: RPPTOU_MID | B8: 6353847.23 | C8: -53584.32
A9: RPPTOU_OFF | B9: 1986125.84 | C9: -480581.19
A10: RPPTOU_ON | B10: 2250788.46 | C10: 37237.77
A11: RPPULO_MID | B11: 5094.42 | C11: -122.7
A12: RPPULO_OFF | B12: 3303.15 | C12: -250.78
A13: RPPULO_ON | B13: 2757.4 | C13: 433.01
A14: RPPULO_ULO | B14: 12048.83 | C14: -1463.4
A15: Grand Total | B15: 11749120.37 | C15: -555747.01

Sheet I16 Input 08 Trueup Sett (hidden)
A1: Date: | B1: =Admin!B8+7 -> 202508 | C1: Trueup | K1: ="Data for 1st True up of RPP Settlement based on Actual IESO Invoice" -> Data for 1st True up of RPP Settlement based on Actual IESO Invoice | P1: For Reconciliation
A3: Wholesale Electricty | B3: Year | C3: 2024 | E3: Rate | P3: Actual RPP Revenue and GA
A4: Redshift Wholesale Report.xlsm | B4: dateref | C4: 202408 | K4: Wholesale Volume data per IESO Power Bill: | L4: GA RPP/non-RPP Ratios | M4: GA Volumes | N4: Energy Volumes | P4: =B1 -> 202508
K5: AQEW | M5: =C10 -> 0 | N5: =+M5 -> 0 | P5: RPP Revenue Prices | Q5: RPP Rate | R5: Estimated RPP Energy Price | S5: GA actual IESO billed | T5: Total Commodity | U5: Difference | V5: kWh Volumes | W5: $ Estimated RPP Revenue | X5: $ Estimated RPP Energy | Y5: $ Estimated GA | Z5: $ Estimated RPP Settlement
B6: Wholesale | K6: Embedded Generation | M6: =SUM(C8:C9) -> 0 | N6: =+M6 -> 0 | P6: RPPT1 | Q6: =E20 ->  | R6: =E44 ->  | S6: =$L$32 -> 0 | T6: =R6+S6 ->  | U6: =+Q6-T6 ->  | V6: =M18 ->  | W6: =Q6*V6 ->  | X6: =R6*V6 ->  | Y6: =+V6*S6 ->  | Z6: =W6-X6-Y6 -> 
B7: Source | C7: kWh | D7: Total Cost | K7: Class A customer Volumes for GA (TLF included) | M7: =-B70 -> 0 | P7: RPPT2 | Q7: =E21 ->  | R7: =R6 ->  | S7: =$L$32 -> 0 | T7: =R7+S7 ->  | U7: =+Q7-T7 ->  | V7: =M19 ->  | W7: =Q7*V7 ->  | X7: =R7*V7 ->  | Y7: =+V7*S7 ->  | Z7: =W7-X7-Y7 -> 
B8: FIT | E8: =D8/C8 ->  | M8: =+M5+M6+M7 -> 0 | N8: =+N5+N6+N7 -> 0 | P8: RPPTOUMID | Q8: =E23 ->  | R8: =E45 ->  | S8: 0
B9: microFIT | E9: =D9/C9 ->  | P9: RPPTOUOFF | Q9: =E24 ->  | R9: =R8 ->  | S9: 0
B10: WHOLESALE | E10: =D10/C10 ->  | K10: Estimated Retail Volume Revenue Data (TLF Included) | L10: RPP/non-RPP Ratios | M10: GA Volumes | N10: Energy Volumes | P10: RPPTOUON | R10: =R9 ->  | S10: 0
B11: Grand Total | K11: Estimated Retail Revenue Data (Net of Retail Billed/Unbilled) | M11: =+M15 ->  | N11: =+N15 ->  | P11: RPPULOMID | Q11: =E27 ->  | R11: =E46 ->  | S11: 0
P12: RPPULOOFF | Q12: =E28 ->  | R12: =R11 ->  | S12: 0
K13: Estimated RPP Sales Quantities | L13: =SUM(C20:C30)/(C35-B70) ->  | M13: =M8*L13 ->  | N13: =M13 ->  | P13: RPPULOON | R13: =R12 ->  | S13: 0
A14: RPP Revenue Volume and Price Data | K14: Estimated non-RPP Sales Quantities | L14: =1-L13 ->  | M14: =M8*L14 ->  | N14: =N8-N13 ->  | P14: RPPULOOVN | S14: 0
B15: bill_year | C15: 2024 | K15: Estimated Retail Revenue kWh Volumes | L15: =+L13+L14 ->  | M15: =+M13+M14 ->  | N15: =+N13+N14 ->  | V15: =SUM(V6:V14) ->  | W15: =SUM(W6:W14) ->  | X15: =SUM(X6:X14) ->  | Y15: =SUM(Y6:Y14) ->  | Z15: =SUM(Z6:Z14) -> 
B16: bill_month | C16: 8 | Z16: =W15-X15-Y15-Z15 -> 
K17: Estimated RPP Revenue Volume and Price Data | L17: Actual % | M17: kWh Volumes
B18: Row Labels | C18: usagebilled | D18: amountbilled | E18: Rate | K18: RPPT1 | L18: =C20/SUM($C$20:$C$30) ->  | M18: =$M$13*L18 -> 
B19: RPPTIER | K19: RPPT2 | L19: =C21/SUM($C$20:$C$30) ->  | M19: =$M$13*L19 -> 
B20: RPPT1 | E20: =D20/C20 ->  | K20: RPPTOUMID | L20: =C23/SUM($C$20:$C$30) -> 
B21: RPPT2 | E21: =D21/C21 ->  | K21: RPPTOUOFF | L21: =C24/SUM($C$20:$C$30) -> 
B22: RPPTOU | K22: RPPTOUON
B23: RPPTOUMID | K23: RPPULOMID | L23: =C27/SUM($C$20:$C$30) -> 
B24: RPPTOUOFF | K24: RPPULOOFF | L24: =C28/SUM($C$20:$C$30) -> 
B25: RPPTOUON | K25: RPPULOON
B26: RPPULO | K26: RPPULOOVN
B27: RPPULOMID | L27: =SUM(L18:L26) ->  | M27: =SUM(M18:M26) -> 
B28: RPPULOOFF
B29: RPPULOON
B30: RPPULOOVN
B31: RETAIL | K31: Global Adjustment | L31: per kWh
B32: NSLS | K32: Class B - GA actual8 | L32: =B62/100 -> 0 | N32: GA Posted Price
B33: INTERVAL | K33: Class B - GA actual IESO billed | L33: =+M33/M8 ->  | M33: =B78 -> 0 | N33: GA Billed by IESO CT 148
B34: HOEP
B35: Grand Total
C37: =C35/C11-1 -> 
L38: CT148/GA Actual | M38: =M33/L32 -> 
A39: RPP COP Volume and Price Data | L39: Non Class A kWh | M39: =M8 -> 0
A40: ER COP Summary.xlsm | B40: bill_year | C40: 2024 | L40: Difference | M40: =M38-M39 -> 
B41: bill_month | C41: 8
M42: =M40*L32 -> 
B43: Row Labels | C43: usagebilled | D43: amountbilled | E43: Rate
B44: RPPTIERED | E44: =D44/C44 -> 
B45: RPPTOU
B46: RPPULO
B47: Grand Total
B50: RPPTIERED | C50: =SUM(C20:C21)-C44 -> 0 | D50: =C50/SUM(C20:C21) -> 
B51: RPPTOU | C51: =SUM(C23:C25)-C45 -> 0 | D51: =C51/SUM(C23:C25) -> 
B52: RPPULO | C52: =SUM(C27:C30)-C46 -> 0 | D52: =C52/SUM(C27:C30) -> 
A58: Global Adjustment - Actual
A59: IESO GA Reconciliation.xlsm
A60: ga_actual | B60: year
A61: month | B61: 2024
A62: 202408
A64: Class A kWh
A65: Redshift Class A Report.xlsm
A66: Year | B66: 2024
A68: Class A | B68: Value
A69: kWh
A70: 202408
A72: IESO Class B
A73: IESO Invoice Reconciliation.xlsm
A74: chargetype | B74: 148
A76: Sum of chargeamount | B76: year
A77: month | B77: 2024
A78: 202408

Sheet I17 Input Rev 08 Init (hidden)
A1: Reverse IESO Posted
A3: trade_dateref | B3: 202509
A5: Row Labels | B5: kWh | C5: Amount
A6: RPPTiered_1 | B6: 641849.3 | C6: -40421.13
A7: RPPTiered_2 | B7: 294738.37 | C7: -13886.94
A8: RPPTOU_MID | B8: 5579029.84 | C8: -56317.96
A9: RPPTOU_OFF | B9: 1484416.41 | C9: -456734.43
A10: RPPTOU_ON | B10: 1679073.25 | C10: -13776.32
A11: RPPULO_MID | B11: 4192 | C11: -150.06
A12: RPPULO_OFF | B12: 3875.24 | C12: -348.08
A13: RPPULO_ON | B13: 2165.07 | C13: 231.08
A14: RPPULO_ULO | B14: 10318.38 | C14: -1322.68
A15: Grand Total | B15: 9699657.86 | C15: -582726.52

Sheet I18 Input 09 Trueup Sett (hidden)
A1: Date: | B1: =Admin!B8+8 -> 202509 | C1: Trueup | K1: ="Data for 1st True up of RPP Settlement based on Actual IESO Invoice" -> Data for 1st True up of RPP Settlement based on Actual IESO Invoice | P1: For Reconciliation
A3: Wholesale Electricty | B3: Year | C3: 2024 | E3: Rate | P3: Actual RPP Revenue and GA
A4: Redshift Wholesale Report.xlsm | B4: dateref | C4: 202409 | K4: Wholesale Volume data per IESO Power Bill: | L4: GA RPP/non-RPP Ratios | M4: GA Volumes | N4: Energy Volumes | P4: =B1 -> 202509
K5: AQEW | M5: =C10 -> 0 | N5: =+M5 -> 0 | P5: RPP Revenue Prices | Q5: RPP Rate | R5: Estimated RPP Energy Price | S5: GA actual IESO billed | T5: Total Commodity | U5: Difference | V5: kWh Volumes | W5: $ Estimated RPP Revenue | X5: $ Estimated RPP Energy | Y5: $ Estimated GA | Z5: $ Estimated RPP Settlement
B6: Wholesale | K6: Embedded Generation | M6: =SUM(C8:C9) -> 0 | N6: =+M6 -> 0 | P6: RPPT1 | Q6: =E20 ->  | R6: =E44 ->  | S6: =$L$32 -> 0 | T6: =R6+S6 ->  | U6: =+Q6-T6 ->  | V6: =M18 ->  | W6: =Q6*V6 ->  | X6: =R6*V6 ->  | Y6: =+V6*S6 ->  | Z6: =W6-X6-Y6 -> 
B7: Source | C7: kWh | D7: Total Cost | K7: Class A customer Volumes for GA (TLF included) | M7: =-B70 -> 0 | P7: RPPT2 | Q7: =E21 ->  | R7: =R6 ->  | S7: =$L$32 -> 0 | T7: =R7+S7 ->  | U7: =+Q7-T7 ->  | V7: =M19 ->  | W7: =Q7*V7 ->  | X7: =R7*V7 ->  | Y7: =+V7*S7 ->  | Z7: =W7-X7-Y7 -> 
B8: FIT | E8: =D8/C8 ->  | M8: =+M5+M6+M7 -> 0 | N8: =+N5+N6+N7 -> 0 | P8: RPPTOUMID | Q8: =E23 ->  | R8: =E45 ->  | S8: 0
B9: microFIT | E9: =D9/C9 ->  | P9: RPPTOUOFF | Q9: =E24 ->  | R9: =R8 ->  | S9: 0
B10: WHOLESALE | E10: =D10/C10 ->  | K10: Estimated Retail Volume Revenue Data (TLF Included) | L10: RPP/non-RPP Ratios | M10: GA Volumes | N10: Energy Volumes | P10: RPPTOUON | R10: =R9 ->  | S10: 0
B11: Grand Total | K11: Estimated Retail Revenue Data (Net of Retail Billed/Unbilled) | M11: =+M15 ->  | N11: =+N15 ->  | P11: RPPULOMID | Q11: =E27 ->  | R11: =E46 ->  | S11: 0
P12: RPPULOOFF | Q12: =E28 ->  | R12: =R11 ->  | S12: 0
K13: Estimated RPP Sales Quantities | L13: =SUM(C20:C30)/(C35-B70) ->  | M13: =M8*L13 ->  | N13: =M13 ->  | P13: RPPULOON | R13: =R12 ->  | S13: 0
A14: RPP Revenue Volume and Price Data | K14: Estimated non-RPP Sales Quantities | L14: =1-L13 ->  | M14: =M8*L14 ->  | N14: =N8-N13 ->  | P14: RPPULOOVN | S14: 0
B15: bill_year | C15: 2024 | K15: Estimated Retail Revenue kWh Volumes | L15: =+L13+L14 ->  | M15: =+M13+M14 ->  | N15: =+N13+N14 ->  | V15: =SUM(V6:V14) ->  | W15: =SUM(W6:W14) ->  | X15: =SUM(X6:X14) ->  | Y15: =SUM(Y6:Y14) ->  | Z15: =SUM(Z6:Z14) -> 
B16: bill_month | C16: 8 | Z16: =W15-X15-Y15-Z15 -> 
K17: Estimated RPP Revenue Volume and Price Data | L17: Actual % | M17: kWh Volumes
B18: Row Labels | C18: usagebilled | D18: amountbilled | E18: Rate | K18: RPPT1 | L18: =C20/SUM($C$20:$C$30) ->  | M18: =$M$13*L18 -> 
B19: RPPTIER | K19: RPPT2 | L19: =C21/SUM($C$20:$C$30) ->  | M19: =$M$13*L19 -> 
B20: RPPT1 | E20: =D20/C20 ->  | K20: RPPTOUMID | L20: =C23/SUM($C$20:$C$30) -> 
B21: RPPT2 | E21: =D21/C21 ->  | K21: RPPTOUOFF | L21: =C24/SUM($C$20:$C$30) -> 
B22: RPPTOU | K22: RPPTOUON
B23: RPPTOUMID | K23: RPPULOMID | L23: =C27/SUM($C$20:$C$30) -> 
B24: RPPTOUOFF | K24: RPPULOOFF | L24: =C28/SUM($C$20:$C$30) -> 
B25: RPPTOUON | K25: RPPULOON
B26: RPPULO | K26: RPPULOOVN
B27: RPPULOMID | L27: =SUM(L18:L26) ->  | M27: =SUM(M18:M26) -> 
B28: RPPULOOFF
B29: RPPULOON
B30: RPPULOOVN
B31: RETAIL | K31: Global Adjustment | L31: per kWh
B32: NSLS | K32: Class B - GA actual8 | L32: =B62/100 -> 0 | N32: GA Posted Price
B33: INTERVAL | K33: Class B - GA actual IESO billed | L33: =+M33/M8 ->  | M33: =B78 -> 0 | N33: GA Billed by IESO CT 148
B34: HOEP
B35: Grand Total
C37: =C35/C11-1 -> 
L38: CT148/GA Actual | M38: =M33/L32 -> 
A39: RPP COP Volume and Price Data | L39: Non Class A kWh | M39: =M8 -> 0
A40: ER COP Summary.xlsm | B40: bill_year | C40: 2024 | L40: Difference | M40: =M38-M39 -> 
B41: bill_month | C41: 1
M42: =M40*L32 -> 
B43: Row Labels | C43: usagebilled | D43: amountbilled | E43: Rate
B44: RPPTIERED | E44: =D44/C44 -> 
B45: RPPTOU
B46: RPPULO
B47: Grand Total
B50: RPPTIERED | C50: =SUM(C20:C21)-C44 -> 0 | D50: =C50/SUM(C20:C21) -> 
B51: RPPTOU | C51: =SUM(C23:C25)-C45 -> 0 | D51: =C51/SUM(C23:C25) -> 
B52: RPPULO | C52: =SUM(C27:C30)-C46 -> 0 | D52: =C52/SUM(C27:C30) -> 
A58: Global Adjustment - Actual
A59: IESO GA Reconciliation.xlsm
A60: ga_actual | B60: year
A61: month | B61: 2024
A62: 202401
A64: Class A kWh
A65: Redshift Class A Report.xlsm
A66: Year | B66: 2024
A68: Class A | B68: Value
A69: kWh
A70: 202409
A72: IESO Class B
A73: IESO Invoice Reconciliation.xlsm
A74: chargetype | B74: 148
A76: Sum of chargeamount | B76: year
A77: month | B77: 2018
A78: 201801

Sheet I19 Input Rev 09 Init (hidden)
A1: Reverse IESO Posted
A3: trade_dateref | B3: 202501
A5: Row Labels | B5: kWh | C5: Amount
A6: RPPTiered_1
A7: RPPTiered_2
A8: RPPTOU_MID
A9: RPPTOU_OFF
A10: RPPTOU_ON
A11: RPPULO_MID
A12: RPPULO_OFF
A13: RPPULO_ON
A14: RPPULO_ULO
A15: Grand Total

Sheet I20 Input 10 Trueup Sett (hidden)
A1: Date: | B1: =Admin!B8+9 -> 202510 | C1: Trueup | K1: ="Data for 1st True up of RPP Settlement based on Actual IESO Invoice" -> Data for 1st True up of RPP Settlement based on Actual IESO Invoice | P1: For Reconciliation
A3: Wholesale Electricty | B3: Year | C3: 2024 | E3: Rate | P3: Actual RPP Revenue and GA
A4: Redshift Wholesale Report.xlsm | B4: dateref | C4: 202401 | K4: Wholesale Volume data per IESO Power Bill: | L4: GA RPP/non-RPP Ratios | M4: GA Volumes | N4: Energy Volumes | P4: =B1 -> 202510
K5: AQEW | M5: =C10 -> 0 | N5: =+M5 -> 0 | P5: RPP Revenue Prices | Q5: RPP Rate | R5: Estimated RPP Energy Price | S5: GA actual IESO billed | T5: Total Commodity | U5: Difference | V5: kWh Volumes | W5: $ Estimated RPP Revenue | X5: $ Estimated RPP Energy | Y5: $ Estimated GA | Z5: $ Estimated RPP Settlement
B6: Wholesale | K6: Embedded Generation | M6: =SUM(C8:C9) -> 0 | N6: =+M6 -> 0 | P6: RPPT1 | Q6: =E20 ->  | R6: =E44 ->  | S6: =$L$32 -> 0 | T6: =R6+S6 ->  | U6: =+Q6-T6 ->  | V6: =M18 ->  | W6: =Q6*V6 ->  | X6: =R6*V6 ->  | Y6: =+V6*S6 ->  | Z6: =W6-X6-Y6 -> 
B7: Source | C7: kWh | D7: Total Cost | K7: Class A customer Volumes for GA (TLF included) | M7: =-B70 -> 0 | P7: RPPT2 | Q7: =E21 ->  | R7: =R6 ->  | S7: =$L$32 -> 0 | T7: =R7+S7 ->  | U7: =+Q7-T7 ->  | V7: =M19 ->  | W7: =Q7*V7 ->  | X7: =R7*V7 ->  | Y7: =+V7*S7 ->  | Z7: =W7-X7-Y7 -> 
B8: FIT | E8: =D8/C8 ->  | M8: =+M5+M6+M7 -> 0 | N8: =+N5+N6+N7 -> 0 | P8: RPPTOUMID | Q8: =E23 ->  | R8: =E45 ->  | S8: 0
B9: microFIT | E9: =D9/C9 ->  | P9: RPPTOUOFF | Q9: =E24 ->  | R9: =R8 ->  | S9: 0
B10: WHOLESALE | E10: =D10/C10 ->  | K10: Estimated Retail Volume Revenue Data (TLF Included) | L10: RPP/non-RPP Ratios | M10: GA Volumes | N10: Energy Volumes | P10: RPPTOUON | R10: =R9 ->  | S10: 0
B11: Grand Total | K11: Estimated Retail Revenue Data (Net of Retail Billed/Unbilled) | M11: =+M15 ->  | N11: =+N15 ->  | P11: RPPULOMID | Q11: =E27 ->  | R11: =E46 ->  | S11: 0
P12: RPPULOOFF | Q12: =E28 ->  | R12: =R11 ->  | S12: 0
K13: Estimated RPP Sales Quantities | L13: =SUM(C20:C30)/(C35-B70) ->  | M13: =M8*L13 ->  | N13: =M13 ->  | P13: RPPULOON | R13: =R12 ->  | S13: 0
A14: RPP Revenue Volume and Price Data | K14: Estimated non-RPP Sales Quantities | L14: =1-L13 ->  | M14: =M8*L14 ->  | N14: =N8-N13 ->  | P14: RPPULOOVN | S14: 0
B15: bill_year | C15: 2024 | K15: Estimated Retail Revenue kWh Volumes | L15: =+L13+L14 ->  | M15: =+M13+M14 ->  | N15: =+N13+N14 ->  | V15: =SUM(V6:V14) ->  | W15: =SUM(W6:W14) ->  | X15: =SUM(X6:X14) ->  | Y15: =SUM(Y6:Y14) ->  | Z15: =SUM(Z6:Z14) -> 
B16: bill_month | C16: 8 | Z16: =W15-X15-Y15-Z15 -> 
K17: Estimated RPP Revenue Volume and Price Data | L17: Actual % | M17: kWh Volumes
B18: Row Labels | C18: usagebilled | D18: amountbilled | E18: Rate | K18: RPPT1 | L18: =C20/SUM($C$20:$C$30) ->  | M18: =$M$13*L18 -> 
B19: RPPTIER | K19: RPPT2 | L19: =C21/SUM($C$20:$C$30) ->  | M19: =$M$13*L19 -> 
B20: RPPT1 | E20: =D20/C20 ->  | K20: RPPTOUMID | L20: =C23/SUM($C$20:$C$30) -> 
B21: RPPT2 | E21: =D21/C21 ->  | K21: RPPTOUOFF | L21: =C24/SUM($C$20:$C$30) -> 
B22: RPPTOU | K22: RPPTOUON
B23: RPPTOUMID | K23: RPPULOMID | L23: =C27/SUM($C$20:$C$30) -> 
B24: RPPTOUOFF | K24: RPPULOOFF | L24: =C28/SUM($C$20:$C$30) -> 
B25: RPPTOUON | K25: RPPULOON
B26: RPPULO | K26: RPPULOOVN
B27: RPPULOMID | L27: =SUM(L18:L26) ->  | M27: =SUM(M18:M26) -> 
B28: RPPULOOFF
B29: RPPULOON
B30: RPPULOOVN
B31: RETAIL | K31: Global Adjustment | L31: per kWh
B32: NSLS | K32: Class B - GA actual8 | L32: =B62/100 -> 0 | N32: GA Posted Price
B33: INTERVAL | K33: Class B - GA actual IESO billed | L33: =+M33/M8 ->  | M33: =B78 -> 0 | N33: GA Billed by IESO CT 148
B34: HOEP
B35: Grand Total
C37: =C35/C11-1 -> 
L38: CT148/GA Actual | M38: =M33/L32 -> 
A39: RPP COP Volume and Price Data | L39: Non Class A kWh | M39: =M8 -> 0
A40: ER COP Summary.xlsm | B40: bill_year | C40: 2024 | L40: Difference | M40: =M38-M39 -> 
B41: bill_month | C41: 1
M42: =M40*L32 -> 
B43: Row Labels | C43: usagebilled | D43: amountbilled | E43: Rate
B44: RPPTIERED | E44: =D44/C44 -> 
B45: RPPTOU
B46: RPPULO
B47: Grand Total
B50: RPPTIERED | C50: =SUM(C20:C21)-C44 -> 0 | D50: =C50/SUM(C20:C21) -> 
B51: RPPTOU | C51: =SUM(C23:C25)-C45 -> 0 | D51: =C51/SUM(C23:C25) -> 
B52: RPPULO | C52: =SUM(C27:C30)-C46 -> 0 | D52: =C52/SUM(C27:C30) -> 
A58: Global Adjustment - Actual
A59: IESO GA Reconciliation.xlsm
A60: ga_actual | B60: year
A61: month | B61: 2024
A62: 202401
A64: Class A kWh
A65: Redshift Class A Report.xlsm
A66: Year | B66: 2018
A68: Class A | B68: Value
A69: kWh
A70: 201801
A72: IESO Class B
A73: IESO Invoice Reconciliation.xlsm
A74: chargetype | B74: 148
A76: Sum of chargeamount | B76: year
A77: month | B77: 2018
A78: 201801

Sheet I21 Input Rev 10 Init (hidden)
A1: Reverse IESO Posted
A3: trade_dateref | B3: 202501
A5: Row Labels | B5: kWh | C5: Amount
A6: RPPTiered_1
A7: RPPTiered_2
A8: RPPTOU_MID
A9: RPPTOU_OFF
A10: RPPTOU_ON
A11: RPPULO_MID
A12: RPPULO_OFF
A13: RPPULO_ON
A14: RPPULO_ULO
A15: Grand Total

Sheet I22 Input 11 Trueup Sett (hidden)
A1: Date: | B1: =Admin!B8+10 -> 202511 | C1: Trueup | K1: ="Data for 1st True up of RPP Settlement based on Actual IESO Invoice" -> Data for 1st True up of RPP Settlement based on Actual IESO Invoice | P1: For Reconciliation
A3: Wholesale Electricty | B3: Year | C3: 2024 | E3: Rate | P3: Actual RPP Revenue and GA
A4: Redshift Wholesale Report.xlsm | B4: dateref | C4: 202401 | K4: Wholesale Volume data per IESO Power Bill: | L4: GA RPP/non-RPP Ratios | M4: GA Volumes | N4: Energy Volumes | P4: =B1 -> 202511
K5: AQEW | M5: =C10 -> 0 | N5: =+M5 -> 0 | P5: RPP Revenue Prices | Q5: RPP Rate | R5: Estimated RPP Energy Price | S5: GA actual IESO billed | T5: Total Commodity | U5: Difference | V5: kWh Volumes | W5: $ Estimated RPP Revenue | X5: $ Estimated RPP Energy | Y5: $ Estimated GA | Z5: $ Estimated RPP Settlement
B6: Wholesale | K6: Embedded Generation | M6: =SUM(C8:C9) -> 0 | N6: =+M6 -> 0 | P6: RPPT1 | Q6: =E20 ->  | R6: =E44 ->  | S6: =$L$32 -> 0 | T6: =R6+S6 ->  | U6: =+Q6-T6 ->  | V6: =M18 ->  | W6: =Q6*V6 ->  | X6: =R6*V6 ->  | Y6: =+V6*S6 ->  | Z6: =W6-X6-Y6 -> 
B7: Source | C7: kWh | D7: Total Cost | K7: Class A customer Volumes for GA (TLF included) | M7: =-B70 -> 0 | P7: RPPT2 | Q7: =E21 ->  | R7: =R6 ->  | S7: =$L$32 -> 0 | T7: =R7+S7 ->  | U7: =+Q7-T7 ->  | V7: =M19 ->  | W7: =Q7*V7 ->  | X7: =R7*V7 ->  | Y7: =+V7*S7 ->  | Z7: =W7-X7-Y7 -> 
B8: FIT | E8: =D8/C8 ->  | M8: =+M5+M6+M7 -> 0 | N8: =+N5+N6+N7 -> 0 | P8: RPPTOUMID | Q8: =E23 ->  | R8: =E45 ->  | S8: 0
B9: microFIT | E9: =D9/C9 ->  | P9: RPPTOUOFF | Q9: =E24 ->  | R9: =R8 ->  | S9: 0
B10: WHOLESALE | E10: =D10/C10 ->  | K10: Estimated Retail Volume Revenue Data (TLF Included) | L10: RPP/non-RPP Ratios | M10: GA Volumes | N10: Energy Volumes | P10: RPPTOUON | R10: =R9 ->  | S10: 0
B11: Grand Total | K11: Estimated Retail Revenue Data (Net of Retail Billed/Unbilled) | M11: =+M15 ->  | N11: =+N15 ->  | P11: RPPULOMID | Q11: =E27 ->  | R11: =E46 ->  | S11: 0
P12: RPPULOOFF | Q12: =E28 ->  | R12: =R11 ->  | S12: 0
K13: Estimated RPP Sales Quantities | L13: =SUM(C20:C30)/(C35-B70) ->  | M13: =M8*L13 ->  | N13: =M13 ->  | P13: RPPULOON | R13: =R12 ->  | S13: 0
A14: RPP Revenue Volume and Price Data | K14: Estimated non-RPP Sales Quantities | L14: =1-L13 ->  | M14: =M8*L14 ->  | N14: =N8-N13 ->  | P14: RPPULOOVN | S14: 0
B15: bill_year | C15: 2024 | K15: Estimated Retail Revenue kWh Volumes | L15: =+L13+L14 ->  | M15: =+M13+M14 ->  | N15: =+N13+N14 ->  | V15: =SUM(V6:V14) ->  | W15: =SUM(W6:W14) ->  | X15: =SUM(X6:X14) ->  | Y15: =SUM(Y6:Y14) ->  | Z15: =SUM(Z6:Z14) -> 
B16: bill_month | C16: 8 | Z16: =W15-X15-Y15-Z15 -> 
K17: Estimated RPP Revenue Volume and Price Data | L17: Actual % | M17: kWh Volumes
B18: Row Labels | C18: usagebilled | D18: amountbilled | E18: Rate | K18: RPPT1 | L18: =C20/SUM($C$20:$C$30) ->  | M18: =$M$13*L18 -> 
B19: RPPTIER | K19: RPPT2 | L19: =C21/SUM($C$20:$C$30) ->  | M19: =$M$13*L19 -> 
B20: RPPT1 | E20: =D20/C20 ->  | K20: RPPTOUMID | L20: =C23/SUM($C$20:$C$30) -> 
B21: RPPT2 | E21: =D21/C21 ->  | K21: RPPTOUOFF | L21: =C24/SUM($C$20:$C$30) -> 
B22: RPPTOU | K22: RPPTOUON
B23: RPPTOUMID | K23: RPPULOMID | L23: =C27/SUM($C$20:$C$30) -> 
B24: RPPTOUOFF | K24: RPPULOOFF | L24: =C28/SUM($C$20:$C$30) -> 
B25: RPPTOUON | K25: RPPULOON
B26: RPPULO | K26: RPPULOOVN
B27: RPPULOMID | L27: =SUM(L18:L26) ->  | M27: =SUM(M18:M26) -> 
B28: RPPULOOFF
B29: RPPULOON
B30: RPPULOOVN
B31: RETAIL | K31: Global Adjustment | L31: per kWh
B32: NSLS | K32: Class B - GA actual8 | L32: =B62/100 -> 0 | N32: GA Posted Price
B33: INTERVAL | K33: Class B - GA actual IESO billed | L33: =+M33/M8 ->  | M33: =B78 -> 0 | N33: GA Billed by IESO CT 148
B34: HOEP
B35: Grand Total
C37: =C35/C11-1 -> 
L38: CT148/GA Actual | M38: =M33/L32 -> 
A39: RPP COP Volume and Price Data | L39: Non Class A kWh | M39: =M8 -> 0
A40: ER COP Summary.xlsm | B40: bill_year | C40: 2024 | L40: Difference | M40: =M38-M39 -> 
B41: bill_month | C41: 1
M42: =M40*L32 -> 
B43: Row Labels | C43: usagebilled | D43: amountbilled | E43: Rate
B44: RPPTIERED | E44: =D44/C44 -> 
B45: RPPTOU
B46: RPPULO
B47: Grand Total
B50: RPPTIERED | C50: =SUM(C20:C21)-C44 -> 0 | D50: =C50/SUM(C20:C21) -> 
B51: RPPTOU | C51: =SUM(C23:C25)-C45 -> 0 | D51: =C51/SUM(C23:C25) -> 
B52: RPPULO | C52: =SUM(C27:C30)-C46 -> 0 | D52: =C52/SUM(C27:C30) -> 
A58: Global Adjustment - Actual
A59: IESO GA Reconciliation.xlsm
A60: ga_actual | B60: year
A61: month | B61: 2024
A62: 202401
A64: Class A kWh
A65: Redshift Class A Report.xlsm
A66: Year | B66: 2018
A68: Class A | B68: Value
A69: kWh
A70: 201801
A72: IESO Class B
A73: IESO Invoice Reconciliation.xlsm
A74: chargetype | B74: 148
A76: Sum of chargeamount | B76: year
A77: month | B77: 2018
A78: 201801

Sheet I23 Input Rev 11 Init (hidden)
A1: Reverse IESO Posted
A3: trade_dateref | B3: 202501
A5: Row Labels | B5: kWh | C5: Amount
A6: RPPTiered_1
A7: RPPTiered_2
A8: RPPTOU_MID
A9: RPPTOU_OFF
A10: RPPTOU_ON
A11: RPPULO_MID
A12: RPPULO_OFF
A13: RPPULO_ON
A14: RPPULO_ULO
A15: Grand Total

Sheet I24 Input 12 Trueup Sett (hidden)
A1: Date: | B1: =Admin!B8+11 -> 202512 | C1: Trueup | K1: ="Data for 1st True up of RPP Settlement based on Actual IESO Invoice" -> Data for 1st True up of RPP Settlement based on Actual IESO Invoice | P1: For Reconciliation
A3: Wholesale Electricty | B3: Year | C3: 2024 | E3: Rate | P3: Actual RPP Revenue and GA
A4: Redshift Wholesale Report.xlsm | B4: dateref | C4: 202401 | K4: Wholesale Volume data per IESO Power Bill: | L4: GA RPP/non-RPP Ratios | M4: GA Volumes | N4: Energy Volumes | P4: =B1 -> 202512
K5: AQEW | M5: =C10 -> 0 | N5: =+M5 -> 0 | P5: RPP Revenue Prices | Q5: RPP Rate | R5: Estimated RPP Energy Price | S5: GA actual IESO billed | T5: Total Commodity | U5: Difference | V5: kWh Volumes | W5: $ Estimated RPP Revenue | X5: $ Estimated RPP Energy | Y5: $ Estimated GA | Z5: $ Estimated RPP Settlement
B6: Wholesale | K6: Embedded Generation | M6: =SUM(C8:C9) -> 0 | N6: =+M6 -> 0 | P6: RPPT1 | Q6: =E20 ->  | R6: =E44 ->  | S6: =$L$32 -> 0 | T6: =R6+S6 ->  | U6: =+Q6-T6 ->  | V6: =M18 ->  | W6: =Q6*V6 ->  | X6: =R6*V6 ->  | Y6: =+V6*S6 ->  | Z6: =W6-X6-Y6 -> 
B7: Source | C7: kWh | D7: Total Cost | K7: Class A customer Volumes for GA (TLF included) | M7: =-B70 -> 0 | P7: RPPT2 | Q7: =E21 ->  | R7: =R6 ->  | S7: =$L$32 -> 0 | T7: =R7+S7 ->  | U7: =+Q7-T7 ->  | V7: =M19 ->  | W7: =Q7*V7 ->  | X7: =R7*V7 ->  | Y7: =+V7*S7 ->  | Z7: =W7-X7-Y7 -> 
B8: FIT | E8: =D8/C8 ->  | M8: =+M5+M6+M7 -> 0 | N8: =+N5+N6+N7 -> 0 | P8: RPPTOUMID | Q8: =E23 ->  | R8: =E45 ->  | S8: 0
B9: microFIT | E9: =D9/C9 ->  | P9: RPPTOUOFF | Q9: =E24 ->  | R9: =R8 ->  | S9: 0
B10: WHOLESALE | E10: =D10/C10 ->  | K10: Estimated Retail Volume Revenue Data (TLF Included) | L10: RPP/non-RPP Ratios | M10: GA Volumes | N10: Energy Volumes | P10: RPPTOUON | R10: =R9 ->  | S10: 0
B11: Grand Total | K11: Estimated Retail Revenue Data (Net of Retail Billed/Unbilled) | M11: =+M15 ->  | N11: =+N15 ->  | P11: RPPULOMID | Q11: =E27 ->  | R11: =E46 ->  | S11: 0
P12: RPPULOOFF | Q12: =E28 ->  | R12: =R11 ->  | S12: 0
K13: Estimated RPP Sales Quantities | L13: =SUM(C20:C30)/(C35-B70) ->  | M13: =M8*L13 ->  | N13: =M13 ->  | P13: RPPULOON | R13: =R12 ->  | S13: 0
A14: RPP Revenue Volume and Price Data | K14: Estimated non-RPP Sales Quantities | L14: =1-L13 ->  | M14: =M8*L14 ->  | N14: =N8-N13 ->  | P14: RPPULOOVN | S14: 0
B15: bill_year | C15: 2024 | K15: Estimated Retail Revenue kWh Volumes | L15: =+L13+L14 ->  | M15: =+M13+M14 ->  | N15: =+N13+N14 ->  | V15: =SUM(V6:V14) ->  | W15: =SUM(W6:W14) ->  | X15: =SUM(X6:X14) ->  | Y15: =SUM(Y6:Y14) ->  | Z15: =SUM(Z6:Z14) -> 
B16: bill_month | C16: 8 | Z16: =W15-X15-Y15-Z15 -> 
K17: Estimated RPP Revenue Volume and Price Data | L17: Actual % | M17: kWh Volumes
B18: Row Labels | C18: usagebilled | D18: amountbilled | E18: Rate | K18: RPPT1 | L18: =C20/SUM($C$20:$C$30) ->  | M18: =$M$13*L18 -> 
B19: RPPTIER | K19: RPPT2 | L19: =C21/SUM($C$20:$C$30) ->  | M19: =$M$13*L19 -> 
B20: RPPT1 | E20: =D20/C20 ->  | K20: RPPTOUMID | L20: =C23/SUM($C$20:$C$30) -> 
B21: RPPT2 | E21: =D21/C21 ->  | K21: RPPTOUOFF | L21: =C24/SUM($C$20:$C$30) -> 
B22: RPPTOU | K22: RPPTOUON
B23: RPPTOUMID | K23: RPPULOMID | L23: =C27/SUM($C$20:$C$30) -> 
B24: RPPTOUOFF | K24: RPPULOOFF | L24: =C28/SUM($C$20:$C$30) -> 
B25: RPPTOUON | K25: RPPULOON
B26: RPPULO | K26: RPPULOOVN
B27: RPPULOMID | L27: =SUM(L18:L26) ->  | M27: =SUM(M18:M26) -> 
B28: RPPULOOFF
B29: RPPULOON
B30: RPPULOOVN
B31: RETAIL | K31: Global Adjustment | L31: per kWh
B32: NSLS | K32: Class B - GA actual8 | L32: =B62/100 -> 0 | N32: GA Posted Price
B33: INTERVAL | K33: Class B - GA actual IESO billed | L33: =+M33/M8 ->  | M33: =B78 -> 0 | N33: GA Billed by IESO CT 148
B34: HOEP
B35: Grand Total
C37: =C35/C11-1 -> 
L38: CT148/GA Actual | M38: =M33/L32 -> 
A39: RPP COP Volume and Price Data | L39: Non Class A kWh | M39: =M8 -> 0
A40: ER COP Summary.xlsm | B40: bill_year | C40: 2024 | L40: Difference | M40: =M38-M39 -> 
B41: bill_month | C41: 1
M42: =M40*L32 -> 
B43: Row Labels | C43: usagebilled | D43: amountbilled | E43: Rate
B44: RPPTIERED | E44: =D44/C44 -> 
B45: RPPTOU
B46: RPPULO
B47: Grand Total
B50: RPPTIERED | C50: =SUM(C20:C21)-C44 -> 0 | D50: =C50/SUM(C20:C21) -> 
B51: RPPTOU | C51: =SUM(C23:C25)-C45 -> 0 | D51: =C51/SUM(C23:C25) -> 
B52: RPPULO | C52: =SUM(C27:C30)-C46 -> 0 | D52: =C52/SUM(C27:C30) -> 
A58: Global Adjustment - Actual
A59: IESO GA Reconciliation.xlsm
A60: ga_actual | B60: year
A61: month | B61: 2024
A62: 202401
A64: Class A kWh
A65: Redshift Class A Report.xlsm
A66: Year | B66: 2018
A68: Class A | B68: Value
A69: kWh
A70: 201801
A72: IESO Class B
A73: IESO Invoice Reconciliation.xlsm
A74: chargetype | B74: 148
A76: Sum of chargeamount | B76: year
A77: month | B77: 2018
A78: 201801

Sheet I25 Input Rev 12 Init (hidden)
A1: Reverse IESO Posted
A3: trade_dateref | B3: 202501
A5: Row Labels | B5: kWh | C5: Amount
A6: RPPTiered_1
A7: RPPTiered_2
A8: RPPTOU_MID
A9: RPPTOU_OFF
A10: RPPTOU_ON
A11: RPPULO_MID
A12: RPPULO_OFF
A13: RPPULO_ON
A14: RPPULO_ULO
A15: Grand Total

Sheet Rec1 1588 Commodity
A1: Lakefront Utilities Inc.
A2: =ProcessYear[Process Year]& " 1588 Commodity RSVA" -> 2025 1588 Commodity RSVA
A3: Commodity
B5: 4006-4055 | E5: 4705 | L5: 1588
B6: GL Revenue | C6: Unbilled | D6: Total Revenue | E6: Energy Cost (code 101) | F6: RPP GA (code 148) | G6: IESO RPP Settlement | H6: FIT/mFIT | I6: Misc | J6: IESO Code 118 - Energy Rebate | K6: Total Cost | L6: Variance | M6: Y.T.D. | N6: G.L. Balance
A7: Opening Balance
A8: January | B8: -1207295.28 | C8: =D8-B8 -> -861940.0588 | D8: =IFERROR(-'I1a ER Summary'!AF5,0) -> -2069235.339 | E8: =IFERROR('I1a ER Summary'!K5,0) -> 1635320.1 | F8: =IFERROR('I1a ER Summary'!E5,0) -> 538123.958 | G8: =IFERROR('I1a ER Summary'!F5,0) -> -125828.0865 | H8: =IFERROR('I1a ER Summary'!M5,0) -> 7475.64 | K8: =SUM(E8:J8) -> 2055091.611 | L8: =D8+K8 -> -14143.72734 | M8: =L8 -> -14143.72734 | N8: =N7+L8 -> -14143.72734
A9: February | B9: -1373808.28 | C9: =D9-B9 -> -527945.3713 | D9: =IFERROR(-'I1a ER Summary'!AF6,0) -> -1901753.651 | E9: =IFERROR('I1a ER Summary'!K6,0) -> 1697767.23 | F9: =IFERROR('I1a ER Summary'!E6,0) -> 35161.81356 | G9: =IFERROR('I1a ER Summary'!F6,0) -> 195098.5328 | H9: =IFERROR('I1a ER Summary'!M6,0) -> 2410.1 | K9: 1930437.676 | L9: 28684.02497 | M9: =M8+L9 -> 14540.29763 | N9: =N8+L9 -> 14540.29763
A10: March | B10: -1113004.46 | C10: -457704.895 | D10: =IFERROR(-'I1a ER Summary'!AF7,0) -> -1570709.355 | E10: =IFERROR('I1a ER Summary'!K7,0) -> 1001822.74 | F10: =IFERROR('I1a ER Summary'!E7,0) -> 774613.8638 | G10: =IFERROR('I1a ER Summary'!F7,0) -> -263274.6049 | H10: =IFERROR('I1a ER Summary'!M7,0) -> 20482.51 | K10: 1533644.509 | L10: -37064.8461 | M10: =M9+L10 -> -22524.54848 | N10: -22524.54848
A11: April | B11: -990491.98 | C11: -348240.7809 | D11: =IFERROR(-'I1a ER Summary'!AF8,0) -> -1338732.761 | E11: =IFERROR('I1a ER Summary'!K8,0) -> 779391.87 | F11: =IFERROR('I1a ER Summary'!E8,0) -> 669654.0391 | G11: =IFERROR('I1a ER Summary'!F8,0) -> -111061.5171 | H11: =IFERROR('I1a ER Summary'!M8,0) -> 23370.6 | K11: 1361354.992 | L11: 22622.2311 | M11: 97.68262114 | N11: 97.68262114
A12: May | B12: -1238019.74 | C12: 149335.602 | D12: =IFERROR(-'I1a ER Summary'!AF9,0) -> -1088684.138 | E12: =IFERROR('I1a ER Summary'!K9,0) -> 429918.47 | F12: =IFERROR('I1a ER Summary'!E9,0) -> 1172815.92 | G12: =IFERROR('I1a ER Summary'!F9,0) -> -519075.4823 | H12: =IFERROR('I1a ER Summary'!M9,0) -> 18935.15 | K12: 1102594.058 | L12: 13909.91992 | M12: 14007.60254 | N12: 14007.60254
A13: June | B13: -774309.37 | C13: -746667.3416 | D13: =IFERROR(-'I1a ER Summary'!AF10,0) -> -1520976.712 | E13: =IFERROR('I1a ER Summary'!K10,0) -> 1054412.74 | F13: =IFERROR('I1a ER Summary'!E10,0) -> 587515.1448 | G13: =IFERROR('I1a ER Summary'!F10,0) -> -174616.938 | H13: =IFERROR('I1a ER Summary'!M10,0) -> 46753.29 | K13: 1514064.237 | L13: -6912.474737 | M13: 7095.127801 | N13: 7095.127801
A14: July | C14: 0 | D14: =IFERROR(-'I1a ER Summary'!AF11,0) -> 0 | E14: =IFERROR('I1a ER Summary'!K11,0) -> 0 | F14: =IFERROR('I1a ER Summary'!E11,0) -> 0 | G14: =IFERROR('I1a ER Summary'!F11,0) -> 0 | H14: =IFERROR('I1a ER Summary'!M11,0) -> 0 | K14: 0 | L14: 0 | M14: 7095.127801 | N14: 7095.127801
A15: August | C15: 0 | D15: =IFERROR(-'I1a ER Summary'!AF12,0) -> 0 | E15: =IFERROR('I1a ER Summary'!K12,0) -> 0 | F15: =IFERROR('I1a ER Summary'!E12,0) -> 0 | G15: =IFERROR('I1a ER Summary'!F12,0) -> 0 | H15: =IFERROR('I1a ER Summary'!M12,0) -> 0 | K15: 0 | L15: 0 | M15: 7095.127801 | N15: 7095.127801
A16: September | C16: 0 | D16: =IFERROR(-'I1a ER Summary'!AF13,0) -> 0 | E16: =IFERROR('I1a ER Summary'!K13,0) -> 0 | F16: =IFERROR('I1a ER Summary'!E13,0) -> 0 | G16: =IFERROR('I1a ER Summary'!F13,0) -> 0 | H16: =IFERROR('I1a ER Summary'!M13,0) -> 0 | K16: 0 | L16: 0 | M16: 7095.127801 | N16: 7095.127801
A17: October | C17: 0 | D17: =IFERROR(-'I1a ER Summary'!AF14,0) -> 0 | E17: =IFERROR('I1a ER Summary'!K14,0) -> 0 | F17: =IFERROR('I1a ER Summary'!E14,0) -> 0 | G17: =IFERROR('I1a ER Summary'!F14,0) -> 0 | H17: =IFERROR('I1a ER Summary'!M14,0) -> 0 | K17: 0 | L17: 0 | M17: 7095.127801 | N17: 7095.127801
A18: November | C18: 0 | D18: =IFERROR(-'I1a ER Summary'!AF15,0) -> 0 | E18: =IFERROR('I1a ER Summary'!K15,0) -> 0 | F18: =IFERROR('I1a ER Summary'!E15,0) -> 0 | G18: =IFERROR('I1a ER Summary'!F15,0) -> 0 | H18: =IFERROR('I1a ER Summary'!M15,0) -> 0 | K18: 0 | L18: 0 | M18: 7095.127801 | N18: 7095.127801
A19: December | C19: 0 | D19: =IFERROR(-'I1a ER Summary'!AF16,0) -> 0 | E19: =IFERROR('I1a ER Summary'!K16,0) -> 0 | F19: =IFERROR('I1a ER Summary'!E16,0) -> 0 | G19: =IFERROR('I1a ER Summary'!F16,0) -> 0 | H19: =IFERROR('I1a ER Summary'!M16,0) -> 0 | K19: 0 | L19: 0 | M19: 7095.127801 | N19: 7095.127801
B20: =SUM(B8:B19) -> -6696929.11 | C20: =SUM(C8:C19) -> -2793162.846 | D20: -9490091.956 | E20: 6598633.15 | F20: =IFERROR(SUM(F8:F19),0) -> 3777884.739 | G20: =IFERROR(SUM(G8:G19),0) -> -998758.096 | H20: 119427.29 | I20: 0 | J20: 0 | K20: 9497187.083 | L20: 7095.127801
A22: Per GL
A23: Adjustments

Sheet Rec2 1589 Class B
A1: Lakefront Utilities Inc.
A2: =ProcessYear[Process Year]& " 1589 ClassB RSVA" -> 2025 1589 ClassB RSVA
A3: Global Adjustment Class B Only
B5: 4006-4055 | E5: 4707 | K5: 1589
B6: Revenue - Class B only | C6: Unbilled | D6: Total Revenue | E6: IESO Code 148 | F6: RPP GA (code 148) | G6: Class B GA (Code 148) | H6: Class B Deferral | I6: Misc | J6: Class B GA | K6: Variance | L6: Y.T.D. | M6: G.L. Balance
A7: Opening Balance
A8: January | B8: -497044.55 | C8: =D8-B8 -> -74821.92 | D8: -571866.47 | E8: ='I1a ER Summary'!Q5 -> 820989.85 | F8: =-'Rec1 1588 Commodity'!F8 -> -538123.958 | G8: =E8+F8 -> 282865.892 | J8: =SUM(G8:I8) -> 282865.892 | K8: =D8+J8 -> -289000.578 | L8: =K8 -> -289000.578 | M8: =M7+K8 -> -289000.578
A9: February | B9: -567509.91 | C9: =D9-B9 -> 549543.0845 | D9: -17966.82548 | E9: ='I1a ER Summary'!Q6 -> 53228.67 | F9: =-'Rec1 1588 Commodity'!F9 -> -35161.81356 | G9: =E9+F9 -> 18066.85644 | J9: =SUM(G9:I9) -> 18066.85644 | K9: =D9+J9 -> 100.0309609 | L9: =L8+K9 -> -288900.5471 | M9: =M8+K9 -> -288900.5471
A10: March | B10: -18031.8 | C10: -415698.5651 | D10: -433730.3651 | E10: ='I1a ER Summary'!Q7 -> 1206475.83 | F10: =-'Rec1 1588 Commodity'!F10 -> -774613.8638 | G10: 431861.9662 | J10: 431861.9662 | K10: -1868.398812 | L10: =L9+K10 -> -290768.9459 | M10: -290768.9459
A11: April | B11: -442041.99 | C11: 53177.68184 | D11: -388864.3082 | E11: ='I1a ER Summary'!Q8 -> 1061923.87 | F11: =-'Rec1 1588 Commodity'!F11 -> -669654.0391 | G11: 392269.8309 | J11: 392269.8309 | K11: 3405.522781 | L11: -287363.4231 | M11: -287363.4231
A12: May | B12: -387705.67 | C12: -365990.3513 | D12: -753696.0213 | E12: ='I1a ER Summary'!Q9 -> 1946730.07 | F12: =-'Rec1 1588 Commodity'!F12 -> -1172815.92 | G12: 773914.1498 | J12: 773914.1498 | K12: 20218.12846 | L12: -267145.2946 | M12: -267145.2946
A13: June | B13: -755037.66 | C13: 403046.46 | D13: -351991.2 | E13: ='I1a ER Summary'!Q10 -> 944341.28 | F13: =-'Rec1 1588 Commodity'!F13 -> -587515.1448 | G13: 356826.1352 | J13: 356826.1352 | K13: 4834.935168 | L13: -262310.3595 | M13: -262310.3595
A14: July | C14: 0 | E14: ='I1a ER Summary'!Q11 -> 0 | F14: =-'Rec1 1588 Commodity'!F14 -> 0 | G14: 0 | J14: 0 | K14: 0 | L14: -262310.3595 | M14: -262310.3595
A15: August | C15: 0 | E15: ='I1a ER Summary'!Q12 -> 0 | F15: =-'Rec1 1588 Commodity'!F15 -> 0 | G15: 0 | J15: 0 | K15: 0 | L15: -262310.3595 | M15: -262310.3595
A16: September | C16: 0 | E16: ='I1a ER Summary'!Q13 -> 0 | F16: =-'Rec1 1588 Commodity'!F16 -> 0 | G16: 0 | J16: 0 | K16: 0 | L16: -262310.3595 | M16: -262310.3595
A17: October | C17: 0 | E17: ='I1a ER Summary'!Q14 -> 0 | F17: =-'Rec1 1588 Commodity'!F17 -> 0 | G17: 0 | J17: 0 | K17: 0 | L17: -262310.3595 | M17: -262310.3595
A18: November | C18: 0 | E18: ='I1a ER Summary'!Q15 -> 0 | F18: =-'Rec1 1588 Commodity'!F18 -> 0 | G18: 0 | J18: 0 | K18: 0 | L18: -262310.3595 | M18: -262310.3595
A19: December | C19: 0 | E19: ='I1a ER Summary'!Q16 -> 0 | F19: =-'Rec1 1588 Commodity'!F19 -> 0 | G19: 0 | J19: 0 | K19: 0 | L19: -262310.3595 | M19: -262310.3595
B20: =SUM(B8:B19) -> -2667371.58 | C20: 149256.39 | D20: -2518115.19 | E20: 6033689.57 | F20: -3777884.739 | G20: 2255804.831 | H20: 0 | I20: 0 | J20: 2255804.831 | K20: -262310.3595

Sheet Rec3 1589 Class A (hidden)
A1: Lakefront Utilities Inc. | N1: MY_GL_Account_Transactions.xlsm | V1: IESO Invoice Reconciliation.xlsm
A2: 2023 1589 ClassA RSVA
A3: Global Adjustment Class A Only
B5: 4006-4055 | E5: 4707 | H5: 1588
B6: Revenue - Class A only | C6: Unbilled | D6: Total Revenue | E6: Class A GA | F6: Misc | G6: Total Cost | H6: Variance | I6: Y.T.D. | J6: G.L. Balance
A7: Opening Balance | J7: 0
A8: January | B8: -458697.02 | C8: =D8-B8 -> 106004.95 | D8: =-E8 -> -352692.07 | E8: 352692.07 | G8: =SUM(E8:F8) -> 352692.07 | H8: =D8+G8 -> 0 | I8: =H8 -> 0 | J8: =J7+H8 -> 0
A9: February | B9: -352692.07 | C9: =D9-B9 -> -4240.32 | D9: =-E9 -> -356932.39 | E9: 356932.39 | G9: =SUM(E9:F9) -> 356932.39 | H9: =D9+G9 -> 0 | I9: =I8+H9 -> 0 | J9: =J8+H9 -> 0
A10: March | B10: -356932.39 | C10: -74632.62 | D10: -431565.01 | E10: 431565.01 | G10: 431565.01 | H10: 0 | I10: =I9+H10 -> 0 | J10: 0
A11: April | B11: -431565.02 | C11: 9986.19 | D11: -421578.83 | E11: 421578.83 | G11: 421578.83 | H11: 0 | I11: 0 | J11: 0
A12: May | B12: -421578.84 | C12: -27160.03 | D12: -448738.87 | E12: 448738.87 | G12: 448738.87 | H12: 0 | I12: 0 | J12: 0
A13: June | B13: -448738.87 | C13: -67200.54 | D13: -515939.41 | E13: 515939.41 | G13: 515939.41 | H13: 0 | I13: 0 | J13: 0
A14: July | B14: -515939.4 | C14: 97048.62 | D14: -418890.78 | E14: 418890.78 | G14: 418890.78 | H14: 0 | I14: 0 | J14: 0
A15: August | B15: -515939.41 | C15: 113319.92 | D15: -402619.49 | E15: 402619.49 | G15: 402619.49 | H15: 0 | I15: 0 | J15: 0
A16: September | B16: -305570.86 | C16: -83641.89 | D16: -389212.75 | E16: 389212.75 | G16: 389212.75 | H16: 0 | I16: 0 | J16: 0
A17: October | B17: -389212.76 | C17: -132303.75 | D17: -521516.51 | E17: 521516.51 | G17: 521516.51 | H17: 0 | I17: 0 | J17: 0
A18: November | B18: -521516.53 | C18: 91376.02 | D18: -430140.51 | E18: 430140.51 | G18: 430140.51 | H18: 0 | I18: 0 | J18: 0
A19: December | B19: -430140.52 | C19: 38198.8 | D19: -391941.72 | E19: 391941.72 | G19: 391941.72 | H19: 0 | I19: 0 | J19: 0
B20: =SUM(B8:B19) -> -5148523.69 | C20: 66755.35 | D20: -5081768.34 | E20: 5081768.34 | F20: 0 | G20: 5081768.34 | H20: 0 | I20: 0 | J20: 0

Sheet Rev1UFE
A1: Lakefront Utilities Inc.
A2: 2023 RSVA
A3: Unaccounted for Energy Summary For USoA 1588
C5: Total Energy Purchases | D5: Total Retail Sales | E5: Uaccounted for Energy | F5: UFE | G5: Total Energy Purchases | H5: Total Retail Sales | I5: UFE | J5: UFE | N5: Energy Purchases RPP and non-RPP | P5: RPP Settlement Amounts | T5: Energy Sales Revenue | V5: Energy Sales Volumes | X5: Energy Sales/kWh
B6: Version | C6: kWH | D6: kWh | E6: kWh | F6: % | G6: $ Amount | H6: $ Amount | I6: $ Amount | J6: % | K6: Revenue Per kWh | L6: UFE $ Cost per kWh | N6: Energy for RPP and non-RPP | O6: Final GA for RPP | P6: Initial Settlement | Q6: First True-Up | R6: Final True-Up | S6: RPP Settlement Amount | T6: RPP Sales | U6: Non-RPP Sales | V6: RPP kWh | W6: Non-RPP kWH | X6: RPP | Y6: Non-RPP
A7: January | B7: Final | C7: ='I1a ER Summary'!S5 -> 24015165.37 | D7: ='I1a ER Summary'!T5 -> 23756047.78 | E7: =+C7-D7 -> 259117.5921 | F7: =IFERROR(+E7/C7,0) -> 0.0107897484 | G7: =+N7+O7+S7 -> 2055091.611 | H7: =+T7+U7 -> 2069235.339 | I7: =+G7-H7 -> -14143.72734 | J7: =IFERROR(+I7/G7,0) -> -0.006882285569 | K7: =IFERROR(+H7/D7,0) -> 0.08710351815 | L7: =IFERROR(+I7/E7,0) -> -0.05458420336 | N7: ='I1a ER Summary'!O5 -> 1642795.74 | O7: ='I1a ER Summary'!E5 -> 538123.958 | P7: 0 | Q7: 0 | R7: ='I1a ER Summary'!F5 -> -125828.0865 | S7: =SUM(P7:R7) -> -125828.0865 | T7: ='I1a ER Summary'!C5 -> 1317093.648 | U7: ='I1a ER Summary'!AH5 -> 752141.6911 | V7: ='I1a ER Summary'!AJ5 -> 12926562.31 | W7: ='I1a ER Summary'!AK5 -> 10829485.46 | X7: =IFERROR(+T7/V7,0) -> 0.1018904807 | Y7: =IFERROR(+U7/W7,0) -> 0.06945313271
A8: February | B8: Final | C8: ='I1a ER Summary'!S6 -> 21574685.89 | D8: ='I1a ER Summary'!T6 -> 21284532.74 | E8: =+C8-D8 -> 290153.1466 | F8: 0.01344877733 | G8: =+N8+O8+S8 -> 1930437.676 | H8: =+T8+U8 -> 1901753.651 | I8: =+G8-H8 -> 28684.02497 | J8: 0.01485881949 | K8: 0.08934909092 | L8: 0.09885822471 | N8: ='I1a ER Summary'!O6 -> 1700177.33 | O8: ='I1a ER Summary'!E6 -> 35161.81356 | P8: 0 | Q8: 0 | R8: ='I1a ER Summary'!F6 -> 195098.5328 | S8: 195098.5328 | T8: ='I1a ER Summary'!C6 -> 1158930.119 | U8: ='I1a ER Summary'!AH6 -> 742823.5325 | V8: ='I1a ER Summary'!AJ6 -> 11529614.4 | W8: ='I1a ER Summary'!AK6 -> 9754918.345 | X8: 0.1005176824 | Y8: 0.07614861613
A9: March | B9: Final | C9: ='I1a ER Summary'!S7 -> 20684542.28 | D9: ='I1a ER Summary'!T7 -> 21245986.6 | E9: -561444.3178 | F9: -0.02714318307 | G9: 1533644.509 | H9: 1570709.355 | I9: -37064.8461 | J9: -0.02416782109 | K9: 0.07392969716 | L9: 0.06601695828 | N9: ='I1a ER Summary'!O7 -> 1022305.25 | O9: ='I1a ER Summary'!E7 -> 774613.8638 | P9: 0 | Q9: 0 | R9: ='I1a ER Summary'!F7 -> -263274.6049 | S9: -263274.6049 | T9: ='I1a ER Summary'!C7 -> 1038389.963 | U9: ='I1a ER Summary'!AH7 -> 532319.3916 | V9: ='I1a ER Summary'!AJ7 -> 11036027.22 | W9: ='I1a ER Summary'!AK7 -> 10209959.38 | X9: 0.09409092083 | Y9: 0.05213726831
A10: April | B10: Final | C10: ='I1a ER Summary'!S8 -> 19325807.85 | D10: ='I1a ER Summary'!T8 -> 19063626.09 | E10: 262181.7584 | F10: 0.01356640615 | G10: 1361354.992 | H10: 1338732.761 | I10: 22622.2311 | J10: 0.01661743721 | K10: 0.07022445543 | L10: 0.08628453494 | N10: ='I1a ER Summary'!O8 -> 802762.47 | O10: ='I1a ER Summary'!E8 -> 669654.0391 | P10: 0 | Q10: 0 | R10: ='I1a ER Summary'!F8 -> -111061.5171 | S10: -111061.5171 | T10: ='I1a ER Summary'!C8 -> 963791.7173 | U10: ='I1a ER Summary'!AH8 -> 374941.0436 | V10: ='I1a ER Summary'!AJ8 -> 9518775.708 | W10: ='I1a ER Summary'!AK8 -> 9544850.384 | X10: 0.1012516469 | Y10: 0.03928202418
A11: May | B11: Final | C11: ='I1a ER Summary'!S9 -> 18381461.12 | D11: ='I1a ER Summary'!T9 -> 18157879.3 | E11: 223581.8222 | F11: 0.01216344124 | G11: 1102594.058 | H11: 1088684.138 | I11: 13909.91992 | J11: 0.01261563113 | K11: 0.05995656872 | L11: 0.06221400193 | N11: ='I1a ER Summary'!O9 -> 448853.62 | O11: ='I1a ER Summary'!E9 -> 1172815.92 | P11: 0 | Q11: 0 | R11: ='I1a ER Summary'!F9 -> -519075.4823 | S11: -519075.4823 | T11: ='I1a ER Summary'!C9 -> 864106.1887 | U11: ='I1a ER Summary'!AH9 -> 224577.9493 | V11: ='I1a ER Summary'!AJ9 -> 8557250.743 | W11: ='I1a ER Summary'!AK9 -> 9600628.555 | X11: 0.1009794167 | Y11: 0.0233920048
A12: June | B12: Final | C12: ='I1a ER Summary'!S10 -> 19968573.55 | D12: ='I1a ER Summary'!T10 -> 19793943.48 | E12: 174630.0674 | F12: 0.008745244971 | G12: 1514064.237 | H12: 1520976.712 | I12: -6912.474737 | J12: -0.004565509553 | K12: 0.07684050997 | L12: -0.03958353129 | N12: ='I1a ER Summary'!O10 -> 1101166.03 | O12: ='I1a ER Summary'!E10 -> 587515.1448 | P12: 0 | Q12: 0 | R12: ='I1a ER Summary'!F10 -> -174616.938 | S12: -174616.938 | T12: ='I1a ER Summary'!C10 -> 992683.775 | U12: ='I1a ER Summary'!AH10 -> 528292.9365 | V12: ='I1a ER Summary'!AJ10 -> 9729746.599 | W12: ='I1a ER Summary'!AK10 -> 10064196.88 | X12: 0.1020256555 | Y12: 0.05249230939
A13: July | B13: Final | C13: ='I1a ER Summary'!S11 -> 0 | D13: ='I1a ER Summary'!T11 -> 0 | E13: 0 | F13: 0 | G13: 0 | H13: 0 | I13: 0 | J13: 0 | K13: 0 | L13: 0 | N13: ='I1a ER Summary'!O11 -> 0 | O13: ='I1a ER Summary'!E11 -> 0 | P13: 0 | Q13: 0 | R13: ='I1a ER Summary'!F11 -> 0 | S13: 0 | T13: ='I1a ER Summary'!C11 -> 0 | U13: ='I1a ER Summary'!AH11 -> 0 | V13: ='I1a ER Summary'!AJ11 -> 0 | W13: ='I1a ER Summary'!AK11 -> 0 | X13: 0 | Y13: 0
A14: August | B14: Final | C14: ='I1a ER Summary'!S12 -> 0 | D14: ='I1a ER Summary'!T12 -> 0 | E14: 0 | F14: 0 | G14: 0 | H14: 0 | I14: 0 | J14: 0 | K14: 0 | L14: 0 | N14: ='I1a ER Summary'!O12 -> 0 | O14: ='I1a ER Summary'!E12 -> 0 | P14: 0 | Q14: 0 | R14: ='I1a ER Summary'!F12 -> 0 | S14: 0 | T14: ='I1a ER Summary'!C12 -> 0 | U14: ='I1a ER Summary'!AH12 -> 0 | V14: ='I1a ER Summary'!AJ12 -> 0 | W14: ='I1a ER Summary'!AK12 -> 0 | X14: 0 | Y14: 0
A15: September | B15: Final | C15: ='I1a ER Summary'!S13 -> 0 | D15: ='I1a ER Summary'!T13 -> 0 | E15: 0 | F15: 0 | G15: 0 | H15: 0 | I15: 0 | J15: 0 | K15: 0 | L15: 0 | N15: ='I1a ER Summary'!O13 -> 0 | O15: ='I1a ER Summary'!E13 -> 0 | P15: 0 | Q15: 0 | R15: ='I1a ER Summary'!F13 -> 0 | S15: 0 | T15: ='I1a ER Summary'!C13 -> 0 | U15: ='I1a ER Summary'!AH13 -> 0 | V15: ='I1a ER Summary'!AJ13 -> 0 | W15: ='I1a ER Summary'!AK13 -> 0 | X15: 0 | Y15: 0
A16: October | B16: Final | C16: ='I1a ER Summary'!S14 -> 0 | D16: ='I1a ER Summary'!T14 -> 0 | E16: 0 | F16: 0 | G16: 0 | H16: 0 | I16: 0 | J16: 0 | K16: 0 | L16: 0 | N16: ='I1a ER Summary'!O14 -> 0 | O16: ='I1a ER Summary'!E14 -> 0 | P16: 0 | Q16: 0 | R16: ='I1a ER Summary'!F14 -> 0 | S16: 0 | T16: ='I1a ER Summary'!C14 -> 0 | U16: ='I1a ER Summary'!AH14 -> 0 | V16: ='I1a ER Summary'!AJ14 -> 0 | W16: ='I1a ER Summary'!AK14 -> 0 | X16: 0 | Y16: 0
A17: November | B17: Final | C17: ='I1a ER Summary'!S15 -> 0 | D17: ='I1a ER Summary'!T15 -> 0 | E17: 0 | F17: 0 | G17: 0 | H17: 0 | I17: 0 | J17: 0 | K17: 0 | L17: 0 | N17: ='I1a ER Summary'!O15 -> 0 | O17: ='I1a ER Summary'!E15 -> 0 | P17: 0 | Q17: 0 | R17: ='I1a ER Summary'!F15 -> 0 | S17: 0 | T17: ='I1a ER Summary'!C15 -> 0 | U17: ='I1a ER Summary'!AH15 -> 0 | V17: ='I1a ER Summary'!AJ15 -> 0 | W17: ='I1a ER Summary'!AK15 -> 0 | X17: 0 | Y17: 0
A18: December | B18: Final | C18: ='I1a ER Summary'!S16 -> 0 | D18: ='I1a ER Summary'!T16 -> 0 | E18: 0 | F18: 0 | G18: 0 | H18: 0 | I18: 0 | J18: 0 | K18: 0 | L18: 0 | N18: ='I1a ER Summary'!O16 -> 0 | O18: ='I1a ER Summary'!E16 -> 0 | P18: 0 | Q18: 0 | R18: ='I1a ER Summary'!F16 -> 0 | S18: 0 | T18: ='I1a ER Summary'!C16 -> 0 | U18: ='I1a ER Summary'!AH16 -> 0 | V18: ='I1a ER Summary'!AJ16 -> 0 | W18: ='I1a ER Summary'!AK16 -> 0 | X18: 0 | Y18: 0
A19: Total | C19: =SUM(C7:C18) -> 123950236.1 | D19: =SUM(D7:D18) -> 123302016 | E19: =SUM(E7:E18) -> 648220.0689 | F19: =+E19/C19 -> 0.005229679987 | G19: =SUM(G7:G18) -> 9497187.083 | H19: =SUM(H7:H18) -> 9490091.956 | I19: =SUM(I7:I18) -> 7095.127801 | J19: =+I19/G19 -> 0.0007470767648 | K19: =+H19/D19 -> 0.07696623514 | L19: 0.01094555405 | N19: =SUM(N7:N18) -> 6718060.44 | O19: 3777884.739 | P19: 0 | Q19: 0 | R19: -998758.096 | S19: -998758.096 | T19: 11382095.66 | U19: 3626059.63 | V19: 63297976.98 | W19: 60004039.01 | X19: =+T19/V19 -> 0.1798176847 | Y19: 0.06043025919

Sheet Rev2 GA Purchases
A1: Lakefront Utilities Inc.
A2: 2023 RSVA
A3: Non-RPP Global Adjustment
C5: Non-RPP Class A GA | F5: Non-RPP Class B GA | I5: RPP Class B GA | L5: Total Class B GA | Q5: GA non-RPP Cost Amounts Booked
C6: Cost Amount | D6: kWh | E6: Avg Cost | F6: Cost Amount | G6: kWh | H6: Avg Cost | I6: Cost Amount | J6: kWh | K6: Avg Cost | L6: Cost Amount | M6: kWh | N6: Avg Cost | Q6: G/L 4707 | R6: True-Ups | S6: Total | T6: Difference
A7: January | B7: Final | C7: ='Rec3 1589 Class A'!G8 -> 352692.07 | D7: ='I1a ER Summary'!AN5 -> 4014142.02 | E7: =IFERROR(+C7/D7,0) -> 0.08786237962 | F7: ='Rec2 1589 Class B'!J8 -> 282865.892 | G7: ='I1a ER Summary'!AK5 -> 10829485.46 | H7: =IFERROR(+F7/G7,0) -> 0.02611997522 | I7: ='Rec1 1588 Commodity'!F8 -> 538123.958 | J7: ='I1a ER Summary'!AJ5 -> 12926562.31 | K7: =IFERROR(+I7/J7,0) -> 0.04162931682 | L7: =+F7+I7 -> 820989.85 | M7: 23756047.78 | N7: =IFERROR(+L7/M7,0) -> 0.03455919342 | Q7: 368354.797 | S7: =+Q7+R7 -> 368354.797 | T7: =+S7-F7 -> 85488.90499
A8: February | B8: Final | C8: ='Rec3 1589 Class A'!G9 -> 356932.39 | D8: ='I1a ER Summary'!AN6 -> 3768684.81 | E8: 0.09471006677 | F8: ='Rec2 1589 Class B'!J9 -> 18066.85644 | G8: ='I1a ER Summary'!AK6 -> 9754918.345 | H8: 0.001852076645 | I8: ='Rec1 1588 Commodity'!F9 -> 35161.81356 | J8: ='I1a ER Summary'!AJ6 -> 11529614.4 | K8: 0.003049695535 | L8: 53228.67 | M8: 21284532.74 | N8: 0.002500814589 | Q8: 517400.4514 | S8: =+Q8+R8 -> 517400.4514 | T8: 499333.5949
A9: March | B9: Final | C9: ='Rec3 1589 Class A'!G10 -> 431565.01 | D9: ='I1a ER Summary'!AN7 -> 4057164.24 | E9: 0.1063710968 | F9: ='Rec2 1589 Class B'!J10 -> 431861.9662 | G9: ='I1a ER Summary'!AK7 -> 10209959.38 | H9: 0.04229810818 | I9: ='Rec1 1588 Commodity'!F10 -> 774613.8638 | J9: ='I1a ER Summary'!AJ7 -> 11036027.22 | K9: 0.0701895572 | L9: 1206475.83 | M9: 21245986.6 | N9: 0.05678605813 | Q9: 550805.5586 | S9: =+R9+Q9 -> 550805.5586 | T9: 118943.5924
A10: April | B10: Final | C10: ='Rec3 1589 Class A'!G11 -> 421578.83 | D10: ='I1a ER Summary'!AN8 -> 3966198.14 | E10: 0.1062929322 | F10: ='Rec2 1589 Class B'!J11 -> 392269.8309 | G10: ='I1a ER Summary'!AK8 -> 9544850.384 | H10: 0.04109753586 | I10: ='Rec1 1588 Commodity'!F11 -> 669654.0391 | J10: ='I1a ER Summary'!AJ8 -> 9518775.708 | K10: 0.0703508581 | L10: 1061923.87 | M10: 19063626.09 | N10: 0.05570419105 | Q10: 582775.4046 | S10: 582775.4046 | T10: 190505.5736
A11: May | B11: Final | C11: ='Rec3 1589 Class A'!G12 -> 448738.87 | D11: ='I1a ER Summary'!AN9 -> 3962721.26 | E11: 0.1132400794 | F11: ='Rec2 1589 Class B'!J12 -> 773914.1498 | G11: ='I1a ER Summary'!AK9 -> 9600628.555 | H11: 0.08061077932 | I11: ='Rec1 1588 Commodity'!F12 -> 1172815.92 | J11: ='I1a ER Summary'!AJ9 -> 8557250.743 | K11: 0.1370552243 | L11: 1946730.07 | M11: 18157879.3 | N11: 0.1072113124 | Q11: 606116.3272 | S11: 606116.3272 | T11: -167797.8226
A12: June | B12: Final | C12: ='Rec3 1589 Class A'!G13 -> 515939.41 | D12: ='I1a ER Summary'!AN10 -> 4073464.62 | E12: 0.1266586206 | F12: ='Rec2 1589 Class B'!J13 -> 356826.1352 | G12: ='I1a ER Summary'!AK10 -> 10064196.88 | H12: 0.03545500344 | I12: ='Rec1 1588 Commodity'!F13 -> 587515.1448 | J12: ='I1a ER Summary'!AJ10 -> 9729746.599 | K12: 0.06038339631 | L12: 944341.28 | M12: 19793943.48 | N12: 0.04770859737 | Q12: 513680.4991 | S12: 513680.4991 | T12: 156854.3639
A13: July | B13: Final | C13: ='Rec3 1589 Class A'!G14 -> 418890.78 | D13: ='I1a ER Summary'!AN11 -> 0 | E13: 0 | F13: ='Rec2 1589 Class B'!J14 -> 0 | G13: ='I1a ER Summary'!AK11 -> 0 | H13: 0 | I13: ='Rec1 1588 Commodity'!F14 -> 0 | J13: ='I1a ER Summary'!AJ11 -> 0 | K13: 0 | L13: 0 | M13: 0 | N13: 0 | Q13: 337855.3545 | S13: 337855.3545 | T13: 337855.3545
A14: August | B14: Final | C14: ='Rec3 1589 Class A'!G15 -> 402619.49 | D14: ='I1a ER Summary'!AN12 -> 0 | E14: 0 | F14: ='Rec2 1589 Class B'!J15 -> 0 | G14: ='I1a ER Summary'!AK12 -> 0 | H14: 0 | I14: ='Rec1 1588 Commodity'!F15 -> 0 | J14: ='I1a ER Summary'!AJ12 -> 0 | K14: 0 | L14: 0 | M14: 0 | N14: 0 | Q14: 484646.4102 | S14: 484646.4102 | T14: 484646.4102
A15: September | B15: Final | C15: ='Rec3 1589 Class A'!G16 -> 389212.75 | D15: ='I1a ER Summary'!AN13 -> 0 | E15: 0 | F15: ='Rec2 1589 Class B'!J16 -> 0 | G15: ='I1a ER Summary'!AK13 -> 0 | H15: 0 | I15: ='Rec1 1588 Commodity'!F16 -> 0 | J15: ='I1a ER Summary'!AJ13 -> 0 | K15: 0 | L15: 0 | M15: 0 | N15: 0 | Q15: 351972.6143 | S15: 351972.6143 | T15: 351972.6143
A16: October | B16: Final | C16: ='Rec3 1589 Class A'!G17 -> 521516.51 | D16: ='I1a ER Summary'!AN14 -> 0 | E16: 0 | F16: ='Rec2 1589 Class B'!J17 -> 0 | G16: ='I1a ER Summary'!AK14 -> 0 | H16: 0 | I16: ='Rec1 1588 Commodity'!F17 -> 0 | J16: ='I1a ER Summary'!AJ14 -> 0 | K16: 0 | L16: 0 | M16: 0 | N16: 0 | Q16: 508645.545 | S16: 508645.545 | T16: 508645.545
A17: November | B17: Final | C17: ='Rec3 1589 Class A'!G18 -> 430140.51 | D17: ='I1a ER Summary'!AN15 -> 0 | E17: 0 | F17: ='Rec2 1589 Class B'!J18 -> 0 | G17: ='I1a ER Summary'!AK15 -> 0 | H17: 0 | I17: ='Rec1 1588 Commodity'!F18 -> 0 | J17: ='I1a ER Summary'!AJ15 -> 0 | K17: 0 | L17: 0 | M17: 0 | N17: 0 | Q17: 446213.3479 | S17: 446213.3479 | T17: 446213.3479
A18: December | B18: Final | C18: ='Rec3 1589 Class A'!G19 -> 391941.72 | D18: ='I1a ER Summary'!AN16 -> 0 | E18: 0 | F18: ='Rec2 1589 Class B'!J19 -> 0 | G18: ='I1a ER Summary'!AK16 -> 0 | H18: 0 | I18: ='Rec1 1588 Commodity'!F19 -> 0 | J18: ='I1a ER Summary'!AJ16 -> 0 | K18: 0 | L18: 0 | M18: 0 | N18: 0 | Q18: 408485.058 | S18: 408485.058 | T18: 408485.058
C19: =SUM(C7:C18) -> 5081768.34 | D19: =SUM(D7:D18) -> 23842375.09 | E19: =+C19/D19 -> 0.2131401893 | F19: =SUM(F7:F18) -> 2255804.831 | G19: =SUM(G7:G18) -> 60004039.01 | H19: =+F19/G19 -> 0.03759421645 | I19: =SUM(I7:I18) -> 3777884.739 | J19: =SUM(J7:J18) -> 63297976.98 | K19: =+I19/J19 -> 0.05968413083 | L19: =SUM(L7:L18) -> 6033689.57 | M19: =SUM(M7:M18) -> 123302016 | N19: =+L19/M19 -> 0.04893423292 | Q19: =SUM(Q7:Q18) -> 5676951.368 | R19: =SUM(R7:R18) -> 0 | S19: =SUM(S7:S18) -> 5676951.368 | T19: =SUM(T7:T18) -> 3421146.537

Sheet Rev3 GA Analysis
F2: Consumption Data Excluding for Loss Factor (Data to agree with RRR as applicable)
F3: Year | H3: =ProcessYear[Process Year] -> 2025
F4: Total Metered excluding WMP | G4: C = A+B | H4: =H5+H6 -> 123302016 | I4: kWh | J4: 1
F5: RPP | G5: A | H5: ='Rev2 GA Purchases'!J19 -> 63297976.98 | I5: kWh | J5: 0.5303752085
F6: Non RPP | G6: B = D+E | H6: =H7+H8 -> 60004039.01 | I6: kWh | J6: 0.4696247915
F7: Non-RPP Class A | G7: D | H7: ='Rev2 GA Purchases'!D19 -> 23842375.09 | I7: kWh | J7: 0.1815554551
F8: Non-RPP Class B* | G8: E | H8: ='Rev2 GA Purchases'!G19-H7 -> 36161663.92 | I8: kWh | J8: 0.2880693364
F9: *Non-RPP Class B consumption reported in this table is not expected to directly agree with the Non-RPP Class B Including Loss Adjusted Billed Consumption in the GA Analysis of Expected Balance table below. The difference should be equal to the loss factor.
A12: Note 4 | B12: Analysis of Expected GA Amount
B13: Year | C13: =ProcessYear[Process Year] -> 2025 | U13: year | Y13: Year | Z13: 2025
B14: Calendar Month | C14: Non-RPP Class B Including Loss Factor Billed Consumption (kWh) | D14: Deduct Previous Month Unbilled Loss Adjusted Consumption (kWh) | E14: Add Current Month Unbilled Loss Adjusted Consumption (kWh) | F14: Non-RPP Class B Including Loss Adjusted Consumption, Adjusted for Unbilled (kWh) | G14: GA Rate Billed ($/kWh) | H14: $ Consumption at GA Rate Billed | I14: GA Actual Rate Paid ($/kWh) | J14: $ Consumption at Actual Rate Paid | K14: Expected GA Variance ($) | M14: Revenue per Continuity Schedule | N14: Difference | P14: Expense per Continuity Schedule | Q14: Difference | U14: 2025
C15: F | D15: G | E15: H | F15: I = F-G+H | G15: J | H15: K = I*J | I15: L | J15: M = I*L | K15: =M-K | N15: =H-M | Q15: =J-P | T15: month | U15: ga_first_estimate | V15: ga_second_estimate | W15: ga_actual | Y15: Row Labels | Z15: kWh | AA15: Amount | AB15: GA Rate
B16: January | C16: ='I1a ER Summary'!AP5 -> 6815343.443 | F16: =C16-D16+E16 -> 6815343.443 | G16: =AB16 -> 0.08365920197 | H16: =F16*G16 -> 570166.1936 | I16: =W16/100 -> 0.04109 | J16: =F16*I16 -> 280042.4621 | K16: =J16-H16 -> -290123.7315 | M16: ='Rec2 1589 Class B'!D8 -> -571866.47 | N16: =H16+M16 -> -1700.276413 | P16: ='Rec2 1589 Class B'!J8 -> 282865.892 | Q16: =J16-P16 -> -2823.42991 | T16: 202501 | U16: 8.392 | V16: 4.578 | W16: 4.109 | Y16: 202501 | Z16: 6816166.026 | AA16: 683238.63 | AB16: 0.08365920197 | AD16: =C16-Z16 -> -822.583378
B17: February | C17: ='I1a ER Summary'!AP6 -> 5986233.535 | F17: =C17-D17+E17 -> 5986233.535 | G17: =AB17 -> 0.003015519632 | H17: =F17*G17 -> 18051.60475 | I17: =W17/100 -> 0.003 | J17: =F17*I17 -> 17958.7006 | K17: =J17-H17 -> -92.90414291 | M17: ='Rec2 1589 Class B'!D9 -> -17966.82548 | N17: =H17+M17 -> 84.7792637 | P17: ='Rec2 1589 Class B'!J9 -> 18066.85644 | Q17: =J17-P17 -> -108.1558401 | T17: 202502 | U17: 8.904 | V17: 0.018 | W17: 0.3 | Y17: 202502 | Z17: 5977011.504 | AA17: 22793.38548 | AB17: 0.003015519632 | AD17: =C17-Z17 -> 9222.0306
B18: March | C18: ='I1a ER Summary'!AP7 -> 6152795.138 | F18: =C18-D18+E18 -> 6152795.138 | G18: 0.06943621816 | H18: =F18*G18 -> 427226.8255 | I18: 0.06948 | J18: =F18*I18 -> 427496.2062 | K18: 269.3807212 | M18: ='Rec2 1589 Class B'!D10 -> -433730.3651 | N18: -6503.539593 | P18: ='Rec2 1589 Class B'!J10 -> 431861.9662 | Q18: -4365.76006 | T18: 202503 | U18: 4.109 | V18: 6.12 | W18: 6.948 | Y18: 202503 | Z18: 6242629.295 | AA18: 602007.6051 | AB18: 0.06943621816 | AD18: -89834.15728
B19: April | C19: ='I1a ER Summary'!AP8 -> 5578652.244 | F19: =C19-D19+E19 -> 5578652.244 | G19: 0.06913572405 | H19: =F19*G19 -> 385684.1621 | I19: 0.06915 | J19: =F19*I19 -> 385763.8027 | K19: 79.64056172 | M19: ='Rec2 1589 Class B'!D11 -> -388864.3082 | N19: -3180.146051 | P19: ='Rec2 1589 Class B'!J11 -> 392269.8309 | Q19: =J19-P19 -> -6506.02827 | T19: 202504 | U19: 0.3 | V19: 5.991 | W19: 6.915 | Y19: 202504 | Z19: 5622847.151 | AA19: 535566.2082 | AB19: 0.06913572405 | AD19: -44194.90677
B20: May | C20: ='I1a ER Summary'!AP9 -> 5637907.295 | F20: 5637907.295 | G20: 0.1349418048 | H20: 760789.3857 | I20: 0.13493 | J20: =F20*I20 -> 760722.8313 | K20: =J20-H20 -> -66.55439114 | M20: ='Rec2 1589 Class B'!D12 -> -753696.0213 | N20: 7093.364394 | P20: ='Rec2 1589 Class B'!J12 -> 773914.1498 | Q20: =J20-P20 -> -13191.31846 | T20: 202505 | U20: 4.005 | V20: 14.37 | W20: 13.493 | Y20: 202505 | Z20: 5586092.226 | AA20: 1039133.271 | AB20: 0.1349418048 | AD20: 51815.06858
B21: June | C21: ='I1a ER Summary'!AP10 -> 5990732.264 | F21: 5990732.264 | G21: 0.05972381688 | H21: 357789.3967 | I21: 0.05972 | J21: 357766.5308 | K21: -22.86593187 | M21: ='Rec2 1589 Class B'!D13 -> -351991.2 | N21: 5798.196738 | P21: ='Rec2 1589 Class B'!J13 -> 356826.1352 | Q21: 940.395638 | T21: 202506 | U21: 8.904 | V21: 8.776 | W21: 5.972 | Y21: 202506 | Z21: 5893966.971 | AA21: 492454.02 | AB21: 0.05972381688 | AD21: 96765.29294
B22: July | C22: ='I1a ER Summary'!AP11 -> 0 | F22: 0 | G22: =AP22 -> 0 | H22: 0 | I22: =AR22 -> 0 | J22: 0 | K22: 0 | M22: ='Rec2 1589 Class B'!D14 -> 0 | N22: 0 | P22: ='Rec2 1589 Class B'!J14 -> 0 | Q22: 0 | T22: 202507 | U22: 11.593 | V22: -0.176 | W22: 1.438 | Y22: 202507 | Z22: 7602364.453 | AA22: 143325.87 | AB22: 0.01437439225
B23: August | C23: ='I1a ER Summary'!AP12 -> 0 | F23: 0 | G23: 0 | H23: 0 | I23: 0 | J23: 0 | K23: 0 | M23: ='Rec2 1589 Class B'!D15 -> 0 | N23: 0 | P23: ='Rec2 1589 Class B'!J15 -> 0 | Q23: 0 | T23: 202508 | U23: 0.3 | V23: 1.746 | W23: 3.01 | Y23: 202508 | Z23: 7381178.727 | AA23: 286462.68 | AB23: 0.03010979318
B24: September | C24: ='I1a ER Summary'!AP13 -> 0 | F24: 0 | G24: 0 | H24: 0 | I24: 0 | J24: 0 | K24: 0 | M24: ='Rec2 1589 Class B'!D16 -> 0 | N24: 0 | P24: ='Rec2 1589 Class B'!J16 -> 0 | Q24: 0
B25: October | C25: ='I1a ER Summary'!AP14 -> 0 | F25: 0 | G25: 0 | H25: 0 | I25: 0 | J25: 0 | K25: 0 | M25: ='Rec2 1589 Class B'!D17 -> 0 | N25: 0 | P25: ='Rec2 1589 Class B'!J17 -> 0 | Q25: 0
B26: November | C26: ='I1a ER Summary'!AP15 -> 0 | F26: 0 | G26: 0 | H26: 0 | I26: 0 | J26: 0 | K26: 0 | M26: ='Rec2 1589 Class B'!D18 -> 0 | N26: 0 | P26: ='Rec2 1589 Class B'!J18 -> 0 | Q26: 0
B27: December | C27: ='I1a ER Summary'!AP16 -> 0 | F27: 0 | G27: 0 | H27: 0 | I27: 0 | J27: 0 | K27: 0 | M27: ='Rec2 1589 Class B'!D19 -> 0 | N27: 0 | P27: ='Rec2 1589 Class B'!J19 -> 0 | Q27: 0
B29: Net Change in Expected GA Balance in the Year (i.e. Transactions in the Year) | C29: =SUM(C16:C27) -> 36161663.92 | D29: 0 | E29: 0 | F29: =SUM(F16:F27) -> 36161663.92 | H29: =SUM(H16:H27) -> 2519707.568 | J29: =SUM(J16:J27) -> 2229750.534 | K29: =SUM(K16:K27) -> -289957.0347 | M29: =SUM(M16:M28) -> -2518115.19 | N29: =SUM(N16:N28) -> 1592.378338 | P29: =SUM(P16:P28) -> 2255804.831 | Q29: =SUM(Q16:Q28) -> -26054.2969
C36: Annual Non-RPP Class B Wholesale kWh * | D36: Annual Non-RPP Class B Retail billed kWh | E36: Annual Unaccounted for Energy Loss kWh | F36: Weighted Average GA Actual Rate Paid ($/kWh)** | G36: Expected GA Volume Variance ($)
C37: O | D37: P | E37: Q=O-P | F37: R | G37: P= Q*R
C38: =(Rev1UFE!C19-H7)*'Rev3 GA Analysis '!H8/(H5+H8) -> 36397344.6 | D38: =F29 -> 36161663.92 | E38: =C38-D38 -> 235680.6848 | F38: =H29/F29 -> 0.06967897202 | G38: =E38*F38 -> 16421.98784 | I38: =D38/C38 -> 0.9935247835
C39: *Equal to (AQEW - Class A + embedded generation kWh)*(Non-RPP Class B retail kwh/Total retail Class B kWh)
C40: **Equal to annual Non-RPP Class B $ GA paid (i.e. non-RPP portion of CT 148 on IESO invoice) divided by Non-RPP Class B Wholesale kWh (as quantified in column O in the table above)
F41: Total Expected GA Variance | G41: =K29+G38 -> -273535.0469
A48: Note 5 | B48: Reconciling Items
B50: Item | C50: Applicability of Reconciling Item (Y/N) | D50: Amount (Quantify if it is a significant reconciling item) | E50: Explanation
A51: Net Change in Principal Balance in the GL (i.e. Transactions in the Year) | D51: =M29+P29 -> -262310.3595
A52: 1a | B52: Remove impacts to GA from prior year RPP Settlement true up process that are booked in current year | C52: N
A53: 1b | B53: Add impacts to GA from current year RPP Settlement true up process that are booked in subsequent year | C53: N
A54: 2a | B54: Remove prior year end unbilled to actual revenue differences | C54: N
A55: 2b | B55: Add current year end unbilled to actual revenue differences | C55: N
A56: 3a | B56: Remove difference between prior year accrual to forecast from long term load transfers | C56: N
A57: 3b | B57: Add difference between current year accrual to forecast from long term load transfers | C57: N
A58: 4 | B58: Remove GA balances pertaining to Class A customers | C58: N
A59: 5 | B59: Significant prior period billing adjustments included in current year GL balance but would not be included in the billing consumption used in the GA Analysis | C59: N
A60: 6 | B60: Differences in GA IESO posted rate and rate charged on IESO invoice | C60: N
A61: 7 | D61: 0
A62: 9
A63: 10
A64: Note 6 | B64: Adjusted Net Change in Principal Balance in the GL | D64: =SUM(D51:D63) -> -262310.3595
B65: Net Change in Expected GA Balance in the Year Per Analysis | D65: =G41 -> -273535.0469
B66: Unresolved Difference | D66: =D64-D65 -> 11224.6874
B67: Unresolved Difference as % of Expected GA Payments to IESO | D67: =IF(ISERROR(D66/J29),0,D66/J29) -> 0.005034055258 | E67: =IF(AND(D67<0.01,D67>-0.01),"","Unresolved differences of greater than + or - 1% should be explained") -> 
A70: Note 7 | B70: Summary of GA (if multiple years requested for disposition)
B72: Year | C72: Annual Net Change in Expected GA Balance from GA Analysis (cell K59) | D72: Net Change in Principal Balance in the GL (cell D65) | E72: Reconciling Items (sum of cells D66 to D78) | F72: Adjusted Net Change in Principal Balance in the GL | G72: Unresolved Difference | H72: Payments to IESO (cell J59) | I72: Unresolved Difference as % of Expected GA Payments to IESO
B73: 2025 | C73: =G41 -> -273535.0469 | D73: =D51 -> -262310.3595 | E73: =SUM(D52:D63) -> 0 | F73: =SUM(D73:E73) -> -262310.3595 | G73: =F73-C73 -> 11224.6874 | H73: =J29 -> 2229750.534 | I73: =IF(ISERROR(G73/H73),0,G73/H73) -> 0.005034055258
F74: =SUM(D74:E74) -> 0 | G74: =F74-C74 -> 0 | I74: =IF(ISERROR(G74/H74),0,G74/H74) -> 0
F75: =SUM(D75:E75) -> 0 | G75: =F75-C75 -> 0 | I75: =IF(ISERROR(G75/H75),0,G75/H75) -> 0
F76: =SUM(D76:E76) -> 0 | G76: =F76-C76 -> 0 | I76: =IF(ISERROR(G76/H76),0,G76/H76) -> 0
B77: Cumulative Balance | C77: =SUM(C73:C76) -> -273535.0469 | D77: -262310.3595 | E77: 0 | F77: -262310.3595 | G77: =SUM(G73:G76) -> 11224.6874 | H77: 2229750.534 | I77: N/A
B80: Additional Notes and Comments
B95: Account 1588 Reasonability Test
C97: Account 1588 - RSVA Power | F97: Account 4705 - Power Purchased | G97: Account 1588 as % of Account 4705
B98: Year | C98: Transactions1 | D98: Principal Adjustments1 | E98: Total Activity in Calendar Year
B99: 2025 | D99: ='Rec1 1588 Commodity'!L20 -> 7095.127801 | E99: =SUM(C99:D99) -> 7095.127801 | F99: ='Rec1 1588 Commodity'!K20 -> 9497187.083 | G99: =IFERROR(E99/F99,0) -> 0.0007470767648
B102: Notes
B103: 1) The transactions should equal the "Transaction" column in the DVA Continuity Schedule. This is also expected to equal the transactions in the general ledger (excluding transactions relating to the removal of approved disposition amounts as that is shown in a separate column in the DVA Continuity Schedule)
B104: 2) Principal adjustments should equal the "Principal Adjustments" column in the DVA Continuity Schedule. Principal adjustments adjust the transactions in the general ledger to the amount that should be requested for disposition.

Sheet UploadToPQ (hidden)
A1: Year | B1: Order | C1: Month | D1: USoA | E1: Allocation | F1: Sub Allocation | G1: Amount
A2: =ProcessYear[Process Year] -> 2025 | B2: 1 | C2: 1 | D2: 1588 | E2: Revenue | F2: GL Revenue | G2: ='Rec1 1588 Commodity'!B8 -> -1207295.28
A3: =A2 -> 2025 | B3: 1 | C3: 2 | D3: 1588 | E3: Revenue | F3: GL Revenue | G3: ='Rec1 1588 Commodity'!B9 -> -1373808.28
A4: =A3 -> 2025 | B4: 1 | C4: 3 | D4: 1588 | E4: Revenue | F4: GL Revenue | G4: ='Rec1 1588 Commodity'!B10 -> -1113004.46
A5: 2025 | B5: 1 | C5: 4 | D5: 1588 | E5: Revenue | F5: GL Revenue | G5: ='Rec1 1588 Commodity'!B11 -> -990491.98
A6: 2025 | B6: 1 | C6: 5 | D6: 1588 | E6: Revenue | F6: GL Revenue | G6: ='Rec1 1588 Commodity'!B12 -> -1238019.74
A7: 2025 | B7: 1 | C7: 6 | D7: 1588 | E7: Revenue | F7: GL Revenue | G7: ='Rec1 1588 Commodity'!B13 -> -774309.37
A8: 2025 | B8: 1 | C8: 7 | D8: 1588 | E8: Revenue | F8: GL Revenue | G8: ='Rec1 1588 Commodity'!B14 -> 0
A9: 2025 | B9: 1 | C9: 8 | D9: 1588 | E9: Revenue | F9: GL Revenue | G9: ='Rec1 1588 Commodity'!B15 -> 0
A10: 2025 | B10: 1 | C10: 9 | D10: 1588 | E10: Revenue | F10: GL Revenue | G10: ='Rec1 1588 Commodity'!B16 -> 0
A11: 2025 | B11: 1 | C11: 10 | D11: 1588 | E11: Revenue | F11: GL Revenue | G11: ='Rec1 1588 Commodity'!B17 -> 0
A12: 2025 | B12: 1 | C12: 11 | D12: 1588 | E12: Revenue | F12: GL Revenue | G12: ='Rec1 1588 Commodity'!B18 -> 0
A13: 2025 | B13: 1 | C13: 12 | D13: 1588 | E13: Revenue | F13: GL Revenue | G13: ='Rec1 1588 Commodity'!B19 -> 0
A14: 2025 | B14: 2 | C14: 1 | D14: 1588 | E14: Revenue | F14: Unbilled | G14: ='Rec1 1588 Commodity'!C8 -> -861940.0588
A15: 2025 | B15: 2 | C15: 2 | D15: 1588 | E15: Revenue | F15: Unbilled | G15: ='Rec1 1588 Commodity'!C9 -> -527945.3713
A16: 2025 | B16: 2 | C16: 3 | D16: 1588 | E16: Revenue | F16: Unbilled | G16: ='Rec1 1588 Commodity'!C10 -> -457704.895
A17: 2025 | B17: 2 | C17: 4 | D17: 1588 | E17: Revenue | F17: Unbilled | G17: ='Rec1 1588 Commodity'!C11 -> -348240.7809
A18: 2025 | B18: 2 | C18: 5 | D18: 1588 | E18: Revenue | F18: Unbilled | G18: ='Rec1 1588 Commodity'!C12 -> 149335.602
A19: 2025 | B19: 2 | C19: 6 | D19: 1588 | E19: Revenue | F19: Unbilled | G19: ='Rec1 1588 Commodity'!C13 -> -746667.3416
A20: 2025 | B20: 2 | C20: 7 | D20: 1588 | E20: Revenue | F20: Unbilled | G20: ='Rec1 1588 Commodity'!C14 -> 0
A21: 2025 | B21: 2 | C21: 8 | D21: 1588 | E21: Revenue | F21: Unbilled | G21: ='Rec1 1588 Commodity'!C15 -> 0
A22: 2025 | B22: 2 | C22: 9 | D22: 1588 | E22: Revenue | F22: Unbilled | G22: ='Rec1 1588 Commodity'!C16 -> 0
A23: 2025 | B23: 2 | C23: 10 | D23: 1588 | E23: Revenue | F23: Unbilled | G23: ='Rec1 1588 Commodity'!C17 -> 0
A24: 2025 | B24: 2 | C24: 11 | D24: 1588 | E24: Revenue | F24: Unbilled | G24: ='Rec1 1588 Commodity'!C18 -> 0
A25: 2025 | B25: 2 | C25: 12 | D25: 1588 | E25: Revenue | F25: Unbilled | G25: ='Rec1 1588 Commodity'!C19 -> 0
A26: 2025 | B26: 3 | C26: 1 | D26: 1588 | E26: Cost of Power | F26: Energy Cost (code 101) | G26: ='Rec1 1588 Commodity'!E8 -> 1635320.1
A27: 2025 | B27: 3 | C27: 2 | D27: 1588 | E27: Cost of Power | F27: Energy Cost (code 101) | G27: ='Rec1 1588 Commodity'!E9 -> 1697767.23
A28: 2025 | B28: 3 | C28: 3 | D28: 1588 | E28: Cost of Power | F28: Energy Cost (code 101) | G28: ='Rec1 1588 Commodity'!E10 -> 1001822.74
A29: 2025 | B29: 3 | C29: 4 | D29: 1588 | E29: Cost of Power | F29: Energy Cost (code 101) | G29: ='Rec1 1588 Commodity'!E11 -> 779391.87
A30: 2025 | B30: 3 | C30: 5 | D30: 1588 | E30: Cost of Power | F30: Energy Cost (code 101) | G30: ='Rec1 1588 Commodity'!E12 -> 429918.47
A31: 2025 | B31: 3 | C31: 6 | D31: 1588 | E31: Cost of Power | F31: Energy Cost (code 101) | G31: ='Rec1 1588 Commodity'!E13 -> 1054412.74
A32: 2025 | B32: 3 | C32: 7 | D32: 1588 | E32: Cost of Power | F32: Energy Cost (code 101) | G32: ='Rec1 1588 Commodity'!E14 -> 0
A33: 2025 | B33: 3 | C33: 8 | D33: 1588 | E33: Cost of Power | F33: Energy Cost (code 101) | G33: ='Rec1 1588 Commodity'!E15 -> 0
A34: 2025 | B34: 3 | C34: 9 | D34: 1588 | E34: Cost of Power | F34: Energy Cost (code 101) | G34: ='Rec1 1588 Commodity'!E16 -> 0
A35: 2025 | B35: 3 | C35: 10 | D35: 1588 | E35: Cost of Power | F35: Energy Cost (code 101) | G35: ='Rec1 1588 Commodity'!E17 -> 0
A36: 2025 | B36: 3 | C36: 11 | D36: 1588 | E36: Cost of Power | F36: Energy Cost (code 101) | G36: ='Rec1 1588 Commodity'!E18 -> 0
A37: 2025 | B37: 3 | C37: 12 | D37: 1588 | E37: Cost of Power | F37: Energy Cost (code 101) | G37: ='Rec1 1588 Commodity'!E19 -> 0
A38: 2025 | B38: 4 | C38: 1 | D38: 1588 | E38: Cost of Power | F38: RPP GA (code 148) | G38: ='Rec1 1588 Commodity'!F8 -> 538123.958
A39: 2025 | B39: 4 | C39: 2 | D39: 1588 | E39: Cost of Power | F39: RPP GA (code 148) | G39: ='Rec1 1588 Commodity'!F9 -> 35161.81356
A40: 2025 | B40: 4 | C40: 3 | D40: 1588 | E40: Cost of Power | F40: RPP GA (code 148) | G40: ='Rec1 1588 Commodity'!F10 -> 774613.8638
A41: 2025 | B41: 4 | C41: 4 | D41: 1588 | E41: Cost of Power | F41: RPP GA (code 148) | G41: ='Rec1 1588 Commodity'!F11 -> 669654.0391
A42: 2025 | B42: 4 | C42: 5 | D42: 1588 | E42: Cost of Power | F42: RPP GA (code 148) | G42: ='Rec1 1588 Commodity'!F12 -> 1172815.92
A43: 2025 | B43: 4 | C43: 6 | D43: 1588 | E43: Cost of Power | F43: RPP GA (code 148) | G43: ='Rec1 1588 Commodity'!F13 -> 587515.1448
A44: 2025 | B44: 4 | C44: 7 | D44: 1588 | E44: Cost of Power | F44: RPP GA (code 148) | G44: ='Rec1 1588 Commodity'!F14 -> 0
A45: 2025 | B45: 4 | C45: 8 | D45: 1588 | E45: Cost of Power | F45: RPP GA (code 148) | G45: ='Rec1 1588 Commodity'!F15 -> 0
A46: 2025 | B46: 4 | C46: 9 | D46: 1588 | E46: Cost of Power | F46: RPP GA (code 148) | G46: ='Rec1 1588 Commodity'!F16 -> 0
A47: 2025 | B47: 4 | C47: 10 | D47: 1588 | E47: Cost of Power | F47: RPP GA (code 148) | G47: ='Rec1 1588 Commodity'!F17 -> 0
A48: 2025 | B48: 4 | C48: 11 | D48: 1588 | E48: Cost of Power | F48: RPP GA (code 148) | G48: ='Rec1 1588 Commodity'!F18 -> 0
A49: 2025 | B49: 4 | C49: 12 | D49: 1588 | E49: Cost of Power | F49: RPP GA (code 148) | G49: ='Rec1 1588 Commodity'!F19 -> 0
A50: 2025 | B50: 5 | C50: 1 | D50: 1588 | E50: Cost of Power | F50: IESO RPP Settlement | G50: ='Rec1 1588 Commodity'!G8 -> -125828.0865
A51: 2025 | B51: 5 | C51: 2 | D51: 1588 | E51: Cost of Power | F51: IESO RPP Settlement | G51: ='Rec1 1588 Commodity'!G9 -> 195098.5328
A52: 2025 | B52: 5 | C52: 3 | D52: 1588 | E52: Cost of Power | F52: IESO RPP Settlement | G52: ='Rec1 1588 Commodity'!G10 -> -263274.6049
A53: 2025 | B53: 5 | C53: 4 | D53: 1588 | E53: Cost of Power | F53: IESO RPP Settlement | G53: ='Rec1 1588 Commodity'!G11 -> -111061.5171
A54: 2025 | B54: 5 | C54: 5 | D54: 1588 | E54: Cost of Power | F54: IESO RPP Settlement | G54: ='Rec1 1588 Commodity'!G12 -> -519075.4823
A55: 2025 | B55: 5 | C55: 6 | D55: 1588 | E55: Cost of Power | F55: IESO RPP Settlement | G55: ='Rec1 1588 Commodity'!G13 -> -174616.938
A56: 2025 | B56: 5 | C56: 7 | D56: 1588 | E56: Cost of Power | F56: IESO RPP Settlement | G56: ='Rec1 1588 Commodity'!G14 -> 0
A57: 2025 | B57: 5 | C57: 8 | D57: 1588 | E57: Cost of Power | F57: IESO RPP Settlement | G57: ='Rec1 1588 Commodity'!G15 -> 0
A58: 2025 | B58: 5 | C58: 9 | D58: 1588 | E58: Cost of Power | F58: IESO RPP Settlement | G58: ='Rec1 1588 Commodity'!G16 -> 0
A59: 2025 | B59: 5 | C59: 10 | D59: 1588 | E59: Cost of Power | F59: IESO RPP Settlement | G59: ='Rec1 1588 Commodity'!G17 -> 0
A60: 2025 | B60: 5 | C60: 11 | D60: 1588 | E60: Cost of Power | F60: IESO RPP Settlement | G60: ='Rec1 1588 Commodity'!G18 -> 0
A61: 2025 | B61: 5 | C61: 12 | D61: 1588 | E61: Cost of Power | F61: IESO RPP Settlement | G61: ='Rec1 1588 Commodity'!G19 -> 0
A62: 2025 | B62: 6 | C62: 1 | D62: 1588 | E62: Cost of Power | F62: FIT/mFIT | G62: ='Rec1 1588 Commodity'!H8 -> 7475.64
A63: 2025 | B63: 6 | C63: 2 | D63: 1588 | E63: Cost of Power | F63: FIT/mFIT | G63: ='Rec1 1588 Commodity'!H9 -> 2410.1
A64: 2025 | B64: 6 | C64: 3 | D64: 1588 | E64: Cost of Power | F64: FIT/mFIT | G64: ='Rec1 1588 Commodity'!H10 -> 20482.51
A65: 2025 | B65: 6 | C65: 4 | D65: 1588 | E65: Cost of Power | F65: FIT/mFIT | G65: ='Rec1 1588 Commodity'!H11 -> 23370.6
A66: 2025 | B66: 6 | C66: 5 | D66: 1588 | E66: Cost of Power | F66: FIT/mFIT | G66: ='Rec1 1588 Commodity'!H12 -> 18935.15
A67: 2025 | B67: 6 | C67: 6 | D67: 1588 | E67: Cost of Power | F67: FIT/mFIT | G67: ='Rec1 1588 Commodity'!H13 -> 46753.29
A68: =A67 -> 2025 | B68: 6 | C68: 7 | D68: 1588 | E68: Cost of Power | F68: FIT/mFIT | G68: ='Rec1 1588 Commodity'!H14 -> 0
A69: 2025 | B69: 6 | C69: 8 | D69: 1588 | E69: Cost of Power | F69: FIT/mFIT | G69: ='Rec1 1588 Commodity'!H15 -> 0
A70: 2025 | B70: 6 | C70: 9 | D70: 1588 | E70: Cost of Power | F70: FIT/mFIT | G70: ='Rec1 1588 Commodity'!H16 -> 0
A71: 2025 | B71: 6 | C71: 10 | D71: 1588 | E71: Cost of Power | F71: FIT/mFIT | G71: ='Rec1 1588 Commodity'!H17 -> 0
A72: 2025 | B72: 6 | C72: 11 | D72: 1588 | E72: Cost of Power | F72: FIT/mFIT | G72: ='Rec1 1588 Commodity'!H18 -> 0
A73: 2025 | B73: 6 | C73: 12 | D73: 1588 | E73: Cost of Power | F73: FIT/mFIT | G73: ='Rec1 1588 Commodity'!H19 -> 0
A74: 2025 | B74: 3 | C74: 1 | D74: 1588 | E74: Variance | F74: Principal Variance | G74: ='Rec1 1588 Commodity'!L8 -> -14143.72734
A75: 2025 | B75: 3 | C75: 2 | D75: 1588 | E75: Variance | F75: Principal Variance | G75: ='Rec1 1588 Commodity'!L9 -> 28684.02497
A76: 2025 | B76: 3 | C76: 3 | D76: 1588 | E76: Variance | F76: Principal Variance | G76: ='Rec1 1588 Commodity'!L10 -> -37064.8461
A77: 2025 | B77: 3 | C77: 4 | D77: 1588 | E77: Variance | F77: Principal Variance | G77: ='Rec1 1588 Commodity'!L11 -> 22622.2311
A78: 2025 | B78: 3 | C78: 5 | D78: 1588 | E78: Variance | F78: Principal Variance | G78: ='Rec1 1588 Commodity'!L12 -> 13909.91992
A79: 2025 | B79: 3 | C79: 6 | D79: 1588 | E79: Variance | F79: Principal Variance | G79: ='Rec1 1588 Commodity'!L13 -> -6912.474737
A80: 2025 | B80: 3 | C80: 7 | D80: 1588 | E80: Variance | F80: Principal Variance | G80: ='Rec1 1588 Commodity'!L14 -> 0
A81: 2025 | B81: 3 | C81: 8 | D81: 1588 | E81: Variance | F81: Principal Variance | G81: ='Rec1 1588 Commodity'!L15 -> 0
A82: 2025 | B82: 3 | C82: 9 | D82: 1588 | E82: Variance | F82: Principal Variance | G82: ='Rec1 1588 Commodity'!L16 -> 0
A83: 2025 | B83: 3 | C83: 10 | D83: 1588 | E83: Variance | F83: Principal Variance | G83: ='Rec1 1588 Commodity'!L17 -> 0
A84: 2025 | B84: 3 | C84: 11 | D84: 1588 | E84: Variance | F84: Principal Variance | G84: ='Rec1 1588 Commodity'!L18 -> 0
A85: 2025 | B85: 3 | C85: 12 | D85: 1588 | E85: Variance | F85: Principal Variance | G85: ='Rec1 1588 Commodity'!L19 -> 0
A86: 2025 | B86: 1 | C86: 1 | D86: 1589 | E86: Revenue | F86: Revenue - Class B only | G86: ='Rec2 1589 Class B'!B8 -> -497044.55
A87: 2025 | B87: 1 | C87: 2 | D87: 1589 | E87: Revenue | F87: Revenue - Class B only | G87: ='Rec2 1589 Class B'!B9 -> -567509.91
A88: 2025 | B88: 1 | C88: 3 | D88: 1589 | E88: Revenue | F88: Revenue - Class B only | G88: ='Rec2 1589 Class B'!B10 -> -18031.8
A89: 2025 | B89: 1 | C89: 4 | D89: 1589 | E89: Revenue | F89: Revenue - Class B only | G89: ='Rec2 1589 Class B'!B11 -> -442041.99
A90: 2025 | B90: 1 | C90: 5 | D90: 1589 | E90: Revenue | F90: Revenue - Class B only | G90: ='Rec2 1589 Class B'!B12 -> -387705.67
A91: 2025 | B91: 1 | C91: 6 | D91: 1589 | E91: Revenue | F91: Revenue - Class B only | G91: ='Rec2 1589 Class B'!B13 -> -755037.66
A92: 2025 | B92: 1 | C92: 7 | D92: 1589 | E92: Revenue | F92: Revenue - Class B only | G92: ='Rec2 1589 Class B'!B14 -> 0
A93: 2025 | B93: 1 | C93: 8 | D93: 1589 | E93: Revenue | F93: Revenue - Class B only | G93: ='Rec2 1589 Class B'!B15 -> 0
A94: 2025 | B94: 1 | C94: 9 | D94: 1589 | E94: Revenue | F94: Revenue - Class B only | G94: ='Rec2 1589 Class B'!B16 -> 0
A95: 2025 | B95: 1 | C95: 10 | D95: 1589 | E95: Revenue | F95: Revenue - Class B only | G95: ='Rec2 1589 Class B'!B17 -> 0
A96: 2025 | B96: 1 | C96: 11 | D96: 1589 | E96: Revenue | F96: Revenue - Class B only | G96: ='Rec2 1589 Class B'!B18 -> 0
A97: 2025 | B97: 1 | C97: 12 | D97: 1589 | E97: Revenue | F97: Revenue - Class B only | G97: ='Rec2 1589 Class B'!B19 -> 0
A98: 2025 | B98: 2 | C98: 1 | D98: 1589 | E98: Revenue | F98: Unbilled | G98: ='Rec2 1589 Class B'!C8 -> -74821.92
A99: 2025 | B99: 2 | C99: 2 | D99: 1589 | E99: Revenue | F99: Unbilled | G99: ='Rec2 1589 Class B'!C9 -> 549543.0845
A100: 2025 | B100: 2 | C100: 3 | D100: 1589 | E100: Revenue | F100: Unbilled | G100: ='Rec2 1589 Class B'!C10 -> -415698.5651
A101: 2025 | B101: 2 | C101: 4 | D101: 1589 | E101: Revenue | F101: Unbilled | G101: ='Rec2 1589 Class B'!C11 -> 53177.68184
A102: 2025 | B102: 2 | C102: 5 | D102: 1589 | E102: Revenue | F102: Unbilled | G102: ='Rec2 1589 Class B'!C12 -> -365990.3513
A103: 2025 | B103: 2 | C103: 6 | D103: 1589 | E103: Revenue | F103: Unbilled | G103: ='Rec2 1589 Class B'!C13 -> 403046.46
A104: 2025 | B104: 2 | C104: 7 | D104: 1589 | E104: Revenue | F104: Unbilled | G104: ='Rec2 1589 Class B'!C14 -> 0
A105: 2025 | B105: 2 | C105: 8 | D105: 1589 | E105: Revenue | F105: Unbilled | G105: ='Rec2 1589 Class B'!C15 -> 0
A106: 2025 | B106: 2 | C106: 9 | D106: 1589 | E106: Revenue | F106: Unbilled | G106: ='Rec2 1589 Class B'!C16 -> 0
A107: 2025 | B107: 2 | C107: 10 | D107: 1589 | E107: Revenue | F107: Unbilled | G107: ='Rec2 1589 Class B'!C17 -> 0
A108: 2025 | B108: 2 | C108: 11 | D108: 1589 | E108: Revenue | F108: Unbilled | G108: ='Rec2 1589 Class B'!C18 -> 0
A109: 2025 | B109: 2 | C109: 12 | D109: 1589 | E109: Revenue | F109: Unbilled | G109: ='Rec2 1589 Class B'!C19 -> 0
A110: 2025 | B110: 3 | C110: 1 | D110: 1589 | E110: Cost of Power | F110: IESO Code 148 | G110: ='Rec2 1589 Class B'!E8 -> 820989.85
A111: 2025 | B111: 3 | C111: 2 | D111: 1589 | E111: Cost of Power | F111: IESO Code 148 | G111: ='Rec2 1589 Class B'!E9 -> 53228.67
A112: 2025 | B112: 3 | C112: 3 | D112: 1589 | E112: Cost of Power | F112: IESO Code 148 | G112: ='Rec2 1589 Class B'!E10 -> 1206475.83
A113: 2025 | B113: 3 | C113: 4 | D113: 1589 | E113: Cost of Power | F113: IESO Code 148 | G113: ='Rec2 1589 Class B'!E11 -> 1061923.87
A114: 2025 | B114: 3 | C114: 5 | D114: 1589 | E114: Cost of Power | F114: IESO Code 148 | G114: ='Rec2 1589 Class B'!E12 -> 1946730.07
A115: 2025 | B115: 3 | C115: 6 | D115: 1589 | E115: Cost of Power | F115: IESO Code 148 | G115: ='Rec2 1589 Class B'!E13 -> 944341.28
A116: 2025 | B116: 3 | C116: 7 | D116: 1589 | E116: Cost of Power | F116: IESO Code 148 | G116: ='Rec2 1589 Class B'!E14 -> 0
A117: 2025 | B117: 3 | C117: 8 | D117: 1589 | E117: Cost of Power | F117: IESO Code 148 | G117: ='Rec2 1589 Class B'!E15 -> 0
A118: 2025 | B118: 3 | C118: 9 | D118: 1589 | E118: Cost of Power | F118: IESO Code 148 | G118: ='Rec2 1589 Class B'!E16 -> 0
A119: 2025 | B119: 3 | C119: 10 | D119: 1589 | E119: Cost of Power | F119: IESO Code 148 | G119: ='Rec2 1589 Class B'!E17 -> 0
A120: 2025 | B120: 3 | C120: 11 | D120: 1589 | E120: Cost of Power | F120: IESO Code 148 | G120: ='Rec2 1589 Class B'!E18 -> 0
A121: 2025 | B121: 3 | C121: 12 | D121: 1589 | E121: Cost of Power | F121: IESO Code 148 | G121: ='Rec2 1589 Class B'!E19 -> 0
A122: 2025 | B122: 4 | C122: 1 | D122: 1589 | E122: Cost of Power | F122: RPP GA (code 148) | G122: ='Rec2 1589 Class B'!F8 -> -538123.958
A123: 2025 | B123: 4 | C123: 2 | D123: 1589 | E123: Cost of Power | F123: RPP GA (code 148) | G123: ='Rec2 1589 Class B'!F9 -> -35161.81356
A124: 2025 | B124: 4 | C124: 3 | D124: 1589 | E124: Cost of Power | F124: RPP GA (code 148) | G124: ='Rec2 1589 Class B'!F10 -> -774613.8638
A125: 2025 | B125: 4 | C125: 4 | D125: 1589 | E125: Cost of Power | F125: RPP GA (code 148) | G125: ='Rec2 1589 Class B'!F11 -> -669654.0391
A126: 2025 | B126: 4 | C126: 5 | D126: 1589 | E126: Cost of Power | F126: RPP GA (code 148) | G126: ='Rec2 1589 Class B'!F12 -> -1172815.92
A127: 2025 | B127: 4 | C127: 6 | D127: 1589 | E127: Cost of Power | F127: RPP GA (code 148) | G127: ='Rec2 1589 Class B'!F13 -> -587515.1448
A128: 2025 | B128: 4 | C128: 7 | D128: 1589 | E128: Cost of Power | F128: RPP GA (code 148) | G128: ='Rec2 1589 Class B'!F14 -> 0
A129: 2025 | B129: 4 | C129: 8 | D129: 1589 | E129: Cost of Power | F129: RPP GA (code 148) | G129: ='Rec2 1589 Class B'!F15 -> 0
A130: 2025 | B130: 4 | C130: 9 | D130: 1589 | E130: Cost of Power | F130: RPP GA (code 148) | G130: ='Rec2 1589 Class B'!F16 -> 0
A131: 2025 | B131: 4 | C131: 10 | D131: 1589 | E131: Cost of Power | F131: RPP GA (code 148) | G131: ='Rec2 1589 Class B'!F17 -> 0
A132: =A131 -> 2025 | B132: 4 | C132: 11 | D132: 1589 | E132: Cost of Power | F132: RPP GA (code 148) | G132: ='Rec2 1589 Class B'!F18 -> 0
A133: 2025 | B133: 4 | C133: 12 | D133: 1589 | E133: Cost of Power | F133: RPP GA (code 148) | G133: ='Rec2 1589 Class B'!F19 -> 0
A134: 2025 | B134: 5 | C134: 1 | D134: 1589 | E134: Cost of Power | F134: Class B Deferral | G134: ='Rec2 1589 Class B'!H8 -> 0
A135: 2025 | B135: 5 | C135: 2 | D135: 1589 | E135: Cost of Power | F135: Class B Deferral | G135: ='Rec2 1589 Class B'!H9 -> 0
A136: 2025 | B136: 5 | C136: 3 | D136: 1589 | E136: Cost of Power | F136: Class B Deferral | G136: ='Rec2 1589 Class B'!H10 -> 0
A137: 2025 | B137: 5 | C137: 4 | D137: 1589 | E137: Cost of Power | F137: Class B Deferral | G137: ='Rec2 1589 Class B'!H11 -> 0
A138: 2025 | B138: 5 | C138: 5 | D138: 1589 | E138: Cost of Power | F138: Class B Deferral | G138: ='Rec2 1589 Class B'!H12 -> 0
A139: 2025 | B139: 5 | C139: 6 | D139: 1589 | E139: Cost of Power | F139: Class B Deferral | G139: ='Rec2 1589 Class B'!H13 -> 0
A140: 2025 | B140: 5 | C140: 7 | D140: 1589 | E140: Cost of Power | F140: Class B Deferral | G140: ='Rec2 1589 Class B'!H14 -> 0
A141: 2025 | B141: 5 | C141: 8 | D141: 1589 | E141: Cost of Power | F141: Class B Deferral | G141: ='Rec2 1589 Class B'!H15 -> 0
A142: 2025 | B142: 5 | C142: 9 | D142: 1589 | E142: Cost of Power | F142: Class B Deferral | G142: ='Rec2 1589 Class B'!H16 -> 0
A143: 2025 | B143: 5 | C143: 10 | D143: 1589 | E143: Cost of Power | F143: Class B Deferral | G143: ='Rec2 1589 Class B'!H17 -> 0
A144: 2025 | B144: 5 | C144: 11 | D144: 1589 | E144: Cost of Power | F144: Class B Deferral | G144: ='Rec2 1589 Class B'!H18 -> 0
A145: 2025 | B145: 5 | C145: 12 | D145: 1589 | E145: Cost of Power | F145: Class B Deferral | G145: ='Rec2 1589 Class B'!H19 -> 0
A146: 2025 | B146: 6 | C146: 1 | D146: 1589 | E146: Cost of Power | F146: Misc | G146: ='Rec2 1589 Class B'!I8 -> 0
A147: 2025 | B147: 6 | C147: 2 | D147: 1589 | E147: Cost of Power | F147: Misc | G147: ='Rec2 1589 Class B'!I9 -> 0
A148: 2025 | B148: 6 | C148: 3 | D148: 1589 | E148: Cost of Power | F148: Misc | G148: ='Rec2 1589 Class B'!I10 -> 0
A149: 2025 | B149: 6 | C149: 4 | D149: 1589 | E149: Cost of Power | F149: Misc | G149: ='Rec2 1589 Class B'!I11 -> 0
A150: 2025 | B150: 6 | C150: 5 | D150: 1589 | E150: Cost of Power | F150: Misc | G150: ='Rec2 1589 Class B'!I12 -> 0
A151: 2025 | B151: 6 | C151: 6 | D151: 1589 | E151: Cost of Power | F151: Misc | G151: ='Rec2 1589 Class B'!I13 -> 0
A152: 2025 | B152: 6 | C152: 7 | D152: 1589 | E152: Cost of Power | F152: Misc | G152: ='Rec2 1589 Class B'!I14 -> 0
A153: 2025 | B153: 6 | C153: 8 | D153: 1589 | E153: Cost of Power | F153: Misc | G153: ='Rec2 1589 Class B'!I15 -> 0
A154: 2025 | B154: 6 | C154: 9 | D154: 1589 | E154: Cost of Power | F154: Misc | G154: ='Rec2 1589 Class B'!I16 -> 0
A155: 2025 | B155: 6 | C155: 10 | D155: 1589 | E155: Cost of Power | F155: Misc | G155: ='Rec2 1589 Class B'!I17 -> 0
A156: 2025 | B156: 6 | C156: 11 | D156: 1589 | E156: Cost of Power | F156: Misc | G156: ='Rec2 1589 Class B'!I18 -> 0
A157: 2025 | B157: 6 | C157: 12 | D157: 1589 | E157: Cost of Power | F157: Misc | G157: ='Rec2 1589 Class B'!I19 -> 0
A158: 2025 | B158: 3 | C158: 1 | D158: 1589 | E158: Variance | F158: Principal Variance | G158: ='Rec2 1589 Class B'!K8 -> -289000.578
A159: 2025 | B159: 3 | C159: 2 | D159: 1589 | E159: Variance | F159: Principal Variance | G159: ='Rec2 1589 Class B'!K9 -> 100.0309609
A160: 2025 | B160: 3 | C160: 3 | D160: 1589 | E160: Variance | F160: Principal Variance | G160: ='Rec2 1589 Class B'!K10 -> -1868.398812
A161: 2025 | B161: 3 | C161: 4 | D161: 1589 | E161: Variance | F161: Principal Variance | G161: ='Rec2 1589 Class B'!K11 -> 3405.522781
A162: 2025 | B162: 3 | C162: 5 | D162: 1589 | E162: Variance | F162: Principal Variance | G162: ='Rec2 1589 Class B'!K12 -> 20218.12846
A163: 2025 | B163: 3 | C163: 6 | D163: 1589 | E163: Variance | F163: Principal Variance | G163: ='Rec2 1589 Class B'!K13 -> 4834.935168
A164: 2025 | B164: 3 | C164: 7 | D164: 1589 | E164: Variance | F164: Principal Variance | G164: ='Rec2 1589 Class B'!K14 -> 0
A165: 2025 | B165: 3 | C165: 8 | D165: 1589 | E165: Variance | F165: Principal Variance | G165: ='Rec2 1589 Class B'!K15 -> 0
A166: 2025 | B166: 3 | C166: 9 | D166: 1589 | E166: Variance | F166: Principal Variance | G166: ='Rec2 1589 Class B'!K16 -> 0
A167: 2025 | B167: 3 | C167: 10 | D167: 1589 | E167: Variance | F167: Principal Variance | G167: ='Rec2 1589 Class B'!K17 -> 0
A168: 2025 | B168: 3 | C168: 11 | D168: 1589 | E168: Variance | F168: Principal Variance | G168: ='Rec2 1589 Class B'!K18 -> 0
A169: 2025 | B169: 3 | C169: 12 | D169: 1589 | E169: Variance | F169: Principal Variance | G169: ='Rec2 1589 Class B'!K19 -> 0

Sheet UploadToPQ2 (hidden)
A1: Year | B1: Month | C1: Order | D1: CalcDescription | E1: Attribute | F1: Amount
A2: =ProcessYear[Process Year] -> 2025 | B2: 1 | C2: 1 | D2: Analysis of Expected GA Amount | E2: NonRppkWh | F2: ='Rev3 GA Analysis '!F16 -> 6815343.443
A3: =A2 -> 2025 | B3: 2 | C3: 1 | D3: Analysis of Expected GA Amount | E3: NonRppkWh | F3: ='Rev3 GA Analysis '!F17 -> 5986233.535
A4: =A3 -> 2025 | B4: 3 | C4: 1 | D4: Analysis of Expected GA Amount | E4: NonRppkWh | F4: ='Rev3 GA Analysis '!F18 -> 6152795.138
A5: 2025 | B5: 4 | C5: 1 | D5: Analysis of Expected GA Amount | E5: NonRppkWh | F5: ='Rev3 GA Analysis '!F19 -> 5578652.244
A6: 2025 | B6: 5 | C6: 1 | D6: Analysis of Expected GA Amount | E6: NonRppkWh | F6: ='Rev3 GA Analysis '!F20 -> 5637907.295
A7: 2025 | B7: 6 | C7: 1 | D7: Analysis of Expected GA Amount | E7: NonRppkWh | F7: ='Rev3 GA Analysis '!F21 -> 5990732.264
A8: 2025 | B8: 7 | C8: 1 | D8: Analysis of Expected GA Amount | E8: NonRppkWh | F8: ='Rev3 GA Analysis '!F22 -> 0
A9: 2025 | B9: 8 | C9: 1 | D9: Analysis of Expected GA Amount | E9: NonRppkWh | F9: ='Rev3 GA Analysis '!F23 -> 0
A10: 2025 | B10: 9 | C10: 1 | D10: Analysis of Expected GA Amount | E10: NonRppkWh | F10: ='Rev3 GA Analysis '!F24 -> 0
A11: 2025 | B11: 10 | C11: 1 | D11: Analysis of Expected GA Amount | E11: NonRppkWh | F11: ='Rev3 GA Analysis '!F25 -> 0
A12: 2025 | B12: 11 | C12: 1 | D12: Analysis of Expected GA Amount | E12: NonRppkWh | F12: ='Rev3 GA Analysis '!F26 -> 0
A13: 2025 | B13: 12 | C13: 1 | D13: Analysis of Expected GA Amount | E13: NonRppkWh | F13: ='Rev3 GA Analysis '!F27 -> 0
A14: 2025 | B14: 1 | C14: 2 | D14: Analysis of Expected GA Amount | E14: GABilled | F14: ='Rev3 GA Analysis '!G16 -> 0.08365920197
A15: 2025 | B15: 2 | C15: 2 | D15: Analysis of Expected GA Amount | E15: GABilled | F15: ='Rev3 GA Analysis '!G17 -> 0.003015519632
A16: 2025 | B16: 3 | C16: 2 | D16: Analysis of Expected GA Amount | E16: GABilled | F16: ='Rev3 GA Analysis '!G18 -> 0.06943621816
A17: 2025 | B17: 4 | C17: 2 | D17: Analysis of Expected GA Amount | E17: GABilled | F17: ='Rev3 GA Analysis '!G19 -> 0.06913572405
A18: 2025 | B18: 5 | C18: 2 | D18: Analysis of Expected GA Amount | E18: GABilled | F18: ='Rev3 GA Analysis '!G20 -> 0.1349418048
A19: 2025 | B19: 6 | C19: 2 | D19: Analysis of Expected GA Amount | E19: GABilled | F19: ='Rev3 GA Analysis '!G21 -> 0.05972381688
A20: 2025 | B20: 7 | C20: 2 | D20: Analysis of Expected GA Amount | E20: GABilled | F20: ='Rev3 GA Analysis '!G22 -> 0
A21: 2025 | B21: 8 | C21: 2 | D21: Analysis of Expected GA Amount | E21: GABilled | F21: ='Rev3 GA Analysis '!G23 -> 0
A22: 2025 | B22: 9 | C22: 2 | D22: Analysis of Expected GA Amount | E22: GABilled | F22: ='Rev3 GA Analysis '!G24 -> 0
A23: 2025 | B23: 10 | C23: 2 | D23: Analysis of Expected GA Amount | E23: GABilled | F23: ='Rev3 GA Analysis '!G25 -> 0
A24: 2025 | B24: 11 | C24: 2 | D24: Analysis of Expected GA Amount | E24: GABilled | F24: ='Rev3 GA Analysis '!G26 -> 0
A25: 2025 | B25: 12 | C25: 2 | D25: Analysis of Expected GA Amount | E25: GABilled | F25: ='Rev3 GA Analysis '!G27 -> 0
A26: 2025 | B26: 1 | C26: 3 | D26: Analysis of Expected GA Amount | E26: ConsAtGABilled | F26: ='Rev3 GA Analysis '!H16 -> 570166.1936
A27: 2025 | B27: 2 | C27: 3 | D27: Analysis of Expected GA Amount | E27: ConsAtGABilled | F27: ='Rev3 GA Analysis '!H17 -> 18051.60475
A28: 2025 | B28: 3 | C28: 3 | D28: Analysis of Expected GA Amount | E28: ConsAtGABilled | F28: ='Rev3 GA Analysis '!H18 -> 427226.8255
A29: 2025 | B29: 4 | C29: 3 | D29: Analysis of Expected GA Amount | E29: ConsAtGABilled | F29: ='Rev3 GA Analysis '!H19 -> 385684.1621
A30: 2025 | B30: 5 | C30: 3 | D30: Analysis of Expected GA Amount | E30: ConsAtGABilled | F30: ='Rev3 GA Analysis '!H20 -> 760789.3857
A31: 2025 | B31: 6 | C31: 3 | D31: Analysis of Expected GA Amount | E31: ConsAtGABilled | F31: ='Rev3 GA Analysis '!H21 -> 357789.3967
A32: 2025 | B32: 7 | C32: 3 | D32: Analysis of Expected GA Amount | E32: ConsAtGABilled | F32: ='Rev3 GA Analysis '!H22 -> 0
A33: 2025 | B33: 8 | C33: 3 | D33: Analysis of Expected GA Amount | E33: ConsAtGABilled | F33: ='Rev3 GA Analysis '!H23 -> 0
A34: 2025 | B34: 9 | C34: 3 | D34: Analysis of Expected GA Amount | E34: ConsAtGABilled | F34: ='Rev3 GA Analysis '!H24 -> 0
A35: 2025 | B35: 10 | C35: 3 | D35: Analysis of Expected GA Amount | E35: ConsAtGABilled | F35: ='Rev3 GA Analysis '!H25 -> 0
A36: 2025 | B36: 11 | C36: 3 | D36: Analysis of Expected GA Amount | E36: ConsAtGABilled | F36: ='Rev3 GA Analysis '!H26 -> 0
A37: 2025 | B37: 12 | C37: 3 | D37: Analysis of Expected GA Amount | E37: ConsAtGABilled | F37: ='Rev3 GA Analysis '!H27 -> 0
A38: 2025 | B38: 1 | C38: 4 | D38: Analysis of Expected GA Amount | E38: GAActual | F38: ='Rev3 GA Analysis '!I16 -> 0.04109
A39: 2025 | B39: 2 | C39: 4 | D39: Analysis of Expected GA Amount | E39: GAActual | F39: ='Rev3 GA Analysis '!I17 -> 0.003
A40: 2025 | B40: 3 | C40: 4 | D40: Analysis of Expected GA Amount | E40: GAActual | F40: ='Rev3 GA Analysis '!I18 -> 0.06948
A41: 2025 | B41: 4 | C41: 4 | D41: Analysis of Expected GA Amount | E41: GAActual | F41: ='Rev3 GA Analysis '!I19 -> 0.06915
A42: 2025 | B42: 5 | C42: 4 | D42: Analysis of Expected GA Amount | E42: GAActual | F42: ='Rev3 GA Analysis '!I20 -> 0.13493
A43: 2025 | B43: 6 | C43: 4 | D43: Analysis of Expected GA Amount | E43: GAActual | F43: ='Rev3 GA Analysis '!I21 -> 0.05972
A44: 2025 | B44: 7 | C44: 4 | D44: Analysis of Expected GA Amount | E44: GAActual | F44: ='Rev3 GA Analysis '!I22 -> 0
A45: 2025 | B45: 8 | C45: 4 | D45: Analysis of Expected GA Amount | E45: GAActual | F45: ='Rev3 GA Analysis '!I23 -> 0
A46: 2025 | B46: 9 | C46: 4 | D46: Analysis of Expected GA Amount | E46: GAActual | F46: ='Rev3 GA Analysis '!I24 -> 0
A47: 2025 | B47: 10 | C47: 4 | D47: Analysis of Expected GA Amount | E47: GAActual | F47: ='Rev3 GA Analysis '!I25 -> 0
A48: 2025 | B48: 11 | C48: 4 | D48: Analysis of Expected GA Amount | E48: GAActual | F48: ='Rev3 GA Analysis '!I26 -> 0
A49: 2025 | B49: 12 | C49: 4 | D49: Analysis of Expected GA Amount | E49: GAActual | F49: ='Rev3 GA Analysis '!I27 -> 0
A50: 2025 | B50: 1 | C50: 5 | D50: Analysis of Expected GA Amount | E50: ConsAtGAActual | F50: ='Rev3 GA Analysis '!J16 -> 280042.4621
A51: 2025 | B51: 2 | C51: 5 | D51: Analysis of Expected GA Amount | E51: ConsAtGAActual | F51: ='Rev3 GA Analysis '!J17 -> 17958.7006
A52: 2025 | B52: 3 | C52: 5 | D52: Analysis of Expected GA Amount | E52: ConsAtGAActual | F52: ='Rev3 GA Analysis '!J18 -> 427496.2062
A53: 2025 | B53: 4 | C53: 5 | D53: Analysis of Expected GA Amount | E53: ConsAtGAActual | F53: ='Rev3 GA Analysis '!J19 -> 385763.8027
A54: 2025 | B54: 5 | C54: 5 | D54: Analysis of Expected GA Amount | E54: ConsAtGAActual | F54: ='Rev3 GA Analysis '!J20 -> 760722.8313
A55: 2025 | B55: 6 | C55: 5 | D55: Analysis of Expected GA Amount | E55: ConsAtGAActual | F55: ='Rev3 GA Analysis '!J21 -> 357766.5308
A56: 2025 | B56: 7 | C56: 5 | D56: Analysis of Expected GA Amount | E56: ConsAtGAActual | F56: ='Rev3 GA Analysis '!J22 -> 0
A57: 2025 | B57: 8 | C57: 5 | D57: Analysis of Expected GA Amount | E57: ConsAtGAActual | F57: ='Rev3 GA Analysis '!J23 -> 0
A58: 2025 | B58: 9 | C58: 5 | D58: Analysis of Expected GA Amount | E58: ConsAtGAActual | F58: ='Rev3 GA Analysis '!J24 -> 0
A59: 2025 | B59: 10 | C59: 5 | D59: Analysis of Expected GA Amount | E59: ConsAtGAActual | F59: ='Rev3 GA Analysis '!J25 -> 0
A60: 2025 | B60: 11 | C60: 5 | D60: Analysis of Expected GA Amount | E60: ConsAtGAActual | F60: ='Rev3 GA Analysis '!J26 -> 0
A61: 2025 | B61: 12 | C61: 5 | D61: Analysis of Expected GA Amount | E61: ConsAtGAActual | F61: ='Rev3 GA Analysis '!J27 -> 0
A62: 2025 | B62: 1 | C62: 6 | D62: Analysis of Expected GA Amount | E62: ExpectedGAVar | F62: ='Rev3 GA Analysis '!K16 -> -290123.7315
A63: 2025 | B63: 2 | C63: 6 | D63: Analysis of Expected GA Amount | E63: ExpectedGAVar | F63: ='Rev3 GA Analysis '!K17 -> -92.90414291
A64: 2025 | B64: 3 | C64: 6 | D64: Analysis of Expected GA Amount | E64: ExpectedGAVar | F64: ='Rev3 GA Analysis '!K18 -> 269.3807212
A65: 2025 | B65: 4 | C65: 6 | D65: Analysis of Expected GA Amount | E65: ExpectedGAVar | F65: ='Rev3 GA Analysis '!K19 -> 79.64056172
A66: 2025 | B66: 5 | C66: 6 | D66: Analysis of Expected GA Amount | E66: ExpectedGAVar | F66: ='Rev3 GA Analysis '!K20 -> -66.55439114
A67: 2025 | B67: 6 | C67: 6 | D67: Analysis of Expected GA Amount | E67: ExpectedGAVar | F67: ='Rev3 GA Analysis '!K21 -> -22.86593187
A68: =A67 -> 2025 | B68: 7 | C68: 6 | D68: Analysis of Expected GA Amount | E68: ExpectedGAVar | F68: ='Rev3 GA Analysis '!K22 -> 0
A69: 2025 | B69: 8 | C69: 6 | D69: Analysis of Expected GA Amount | E69: ExpectedGAVar | F69: ='Rev3 GA Analysis '!K23 -> 0
A70: 2025 | B70: 9 | C70: 6 | D70: Analysis of Expected GA Amount | E70: ExpectedGAVar | F70: ='Rev3 GA Analysis '!K24 -> 0
A71: 2025 | B71: 10 | C71: 6 | D71: Analysis of Expected GA Amount | E71: ExpectedGAVar | F71: ='Rev3 GA Analysis '!K25 -> 0
A72: 2025 | B72: 11 | C72: 6 | D72: Analysis of Expected GA Amount | E72: ExpectedGAVar | F72: ='Rev3 GA Analysis '!K26 -> 0
A73: 2025 | B73: 12 | C73: 6 | D73: Analysis of Expected GA Amount | E73: ExpectedGAVar | F73: ='Rev3 GA Analysis '!K27 -> 0
A74: 2025 | B74: 1 | C74: 7 | D74: Analysis of Expected GA Amount | E74: RevPerContSch | F74: ='Rev3 GA Analysis '!M16 -> -571866.47
A75: 2025 | B75: 2 | C75: 7 | D75: Analysis of Expected GA Amount | E75: RevPerContSch | F75: ='Rev3 GA Analysis '!M17 -> -17966.82548
A76: 2025 | B76: 3 | C76: 7 | D76: Analysis of Expected GA Amount | E76: RevPerContSch | F76: ='Rev3 GA Analysis '!M18 -> -433730.3651
A77: 2025 | B77: 4 | C77: 7 | D77: Analysis of Expected GA Amount | E77: RevPerContSch | F77: ='Rev3 GA Analysis '!M19 -> -388864.3082
A78: 2025 | B78: 5 | C78: 7 | D78: Analysis of Expected GA Amount | E78: RevPerContSch | F78: ='Rev3 GA Analysis '!M20 -> -753696.0213
A79: 2025 | B79: 6 | C79: 7 | D79: Analysis of Expected GA Amount | E79: RevPerContSch | F79: ='Rev3 GA Analysis '!M21 -> -351991.2
A80: 2025 | B80: 7 | C80: 7 | D80: Analysis of Expected GA Amount | E80: RevPerContSch | F80: ='Rev3 GA Analysis '!M22 -> 0
A81: 2025 | B81: 8 | C81: 7 | D81: Analysis of Expected GA Amount | E81: RevPerContSch | F81: ='Rev3 GA Analysis '!M23 -> 0
A82: 2025 | B82: 9 | C82: 7 | D82: Analysis of Expected GA Amount | E82: RevPerContSch | F82: ='Rev3 GA Analysis '!M24 -> 0
A83: 2025 | B83: 10 | C83: 7 | D83: Analysis of Expected GA Amount | E83: RevPerContSch | F83: ='Rev3 GA Analysis '!M25 -> 0
A84: 2025 | B84: 11 | C84: 7 | D84: Analysis of Expected GA Amount | E84: RevPerContSch | F84: ='Rev3 GA Analysis '!M26 -> 0
A85: 2025 | B85: 12 | C85: 7 | D85: Analysis of Expected GA Amount | E85: RevPerContSch | F85: ='Rev3 GA Analysis '!M27 -> 0
A86: 2025 | B86: 1 | C86: 8 | D86: Analysis of Expected GA Amount | E86: RevDiff | F86: ='Rev3 GA Analysis '!M16 -> -571866.47
A87: 2025 | B87: 2 | C87: 8 | D87: Analysis of Expected GA Amount | E87: RevDiff | F87: ='Rev3 GA Analysis '!M17 -> -17966.82548
A88: 2025 | B88: 3 | C88: 8 | D88: Analysis of Expected GA Amount | E88: RevDiff | F88: ='Rev3 GA Analysis '!M18 -> -433730.3651
A89: 2025 | B89: 4 | C89: 8 | D89: Analysis of Expected GA Amount | E89: RevDiff | F89: ='Rev3 GA Analysis '!M19 -> -388864.3082
A90: 2025 | B90: 5 | C90: 8 | D90: Analysis of Expected GA Amount | E90: RevDiff | F90: ='Rev3 GA Analysis '!M20 -> -753696.0213
A91: 2025 | B91: 6 | C91: 8 | D91: Analysis of Expected GA Amount | E91: RevDiff | F91: ='Rev3 GA Analysis '!M21 -> -351991.2
A92: 2025 | B92: 7 | C92: 8 | D92: Analysis of Expected GA Amount | E92: RevDiff | F92: ='Rev3 GA Analysis '!M22 -> 0
A93: 2025 | B93: 8 | C93: 8 | D93: Analysis of Expected GA Amount | E93: RevDiff | F93: ='Rev3 GA Analysis '!M23 -> 0
A94: 2025 | B94: 9 | C94: 8 | D94: Analysis of Expected GA Amount | E94: RevDiff | F94: ='Rev3 GA Analysis '!M24 -> 0
A95: 2025 | B95: 10 | C95: 8 | D95: Analysis of Expected GA Amount | E95: RevDiff | F95: ='Rev3 GA Analysis '!M25 -> 0
A96: 2025 | B96: 11 | C96: 8 | D96: Analysis of Expected GA Amount | E96: RevDiff | F96: ='Rev3 GA Analysis '!M26 -> 0
A97: 2025 | B97: 12 | C97: 8 | D97: Analysis of Expected GA Amount | E97: RevDiff | F97: ='Rev3 GA Analysis '!M27 -> 0
A98: 2025 | B98: 1 | C98: 9 | D98: Analysis of Expected GA Amount | E98: ExpPerContSch | F98: ='Rev3 GA Analysis '!P16 -> 282865.892
A99: 2025 | B99: 2 | C99: 9 | D99: Analysis of Expected GA Amount | E99: ExpPerContSch | F99: ='Rev3 GA Analysis '!P17 -> 18066.85644
A100: 2025 | B100: 3 | C100: 9 | D100: Analysis of Expected GA Amount | E100: ExpPerContSch | F100: ='Rev3 GA Analysis '!P18 -> 431861.9662
A101: 2025 | B101: 4 | C101: 9 | D101: Analysis of Expected GA Amount | E101: ExpPerContSch | F101: ='Rev3 GA Analysis '!P19 -> 392269.8309
A102: 2025 | B102: 5 | C102: 9 | D102: Analysis of Expected GA Amount | E102: ExpPerContSch | F102: ='Rev3 GA Analysis '!P20 -> 773914.1498
A103: 2025 | B103: 6 | C103: 9 | D103: Analysis of Expected GA Amount | E103: ExpPerContSch | F103: ='Rev3 GA Analysis '!P21 -> 356826.1352
A104: 2025 | B104: 7 | C104: 9 | D104: Analysis of Expected GA Amount | E104: ExpPerContSch | F104: ='Rev3 GA Analysis '!P22 -> 0
A105: 2025 | B105: 8 | C105: 9 | D105: Analysis of Expected GA Amount | E105: ExpPerContSch | F105: ='Rev3 GA Analysis '!P23 -> 0
A106: 2025 | B106: 9 | C106: 9 | D106: Analysis of Expected GA Amount | E106: ExpPerContSch | F106: ='Rev3 GA Analysis '!P24 -> 0
A107: 2025 | B107: 10 | C107: 9 | D107: Analysis of Expected GA Amount | E107: ExpPerContSch | F107: ='Rev3 GA Analysis '!P25 -> 0
A108: 2025 | B108: 11 | C108: 9 | D108: Analysis of Expected GA Amount | E108: ExpPerContSch | F108: ='Rev3 GA Analysis '!P26 -> 0
A109: 2025 | B109: 12 | C109: 9 | D109: Analysis of Expected GA Amount | E109: ExpPerContSch | F109: ='Rev3 GA Analysis '!P27 -> 0
A110: 2025 | B110: 1 | C110: 10 | D110: Analysis of Expected GA Amount | E110: ExpDiff | F110: ='Rev3 GA Analysis '!Q16 -> -2823.42991
A111: 2025 | B111: 2 | C111: 10 | D111: Analysis of Expected GA Amount | E111: ExpDiff | F111: ='Rev3 GA Analysis '!Q17 -> -108.1558401
A112: 2025 | B112: 3 | C112: 10 | D112: Analysis of Expected GA Amount | E112: ExpDiff | F112: ='Rev3 GA Analysis '!Q18 -> -4365.76006
A113: 2025 | B113: 4 | C113: 10 | D113: Analysis of Expected GA Amount | E113: ExpDiff | F113: ='Rev3 GA Analysis '!Q19 -> -6506.02827
A114: 2025 | B114: 5 | C114: 10 | D114: Analysis of Expected GA Amount | E114: ExpDiff | F114: ='Rev3 GA Analysis '!Q20 -> -13191.31846
A115: 2025 | B115: 6 | C115: 10 | D115: Analysis of Expected GA Amount | E115: ExpDiff | F115: ='Rev3 GA Analysis '!Q21 -> 940.395638
A116: 2025 | B116: 7 | C116: 10 | D116: Analysis of Expected GA Amount | E116: ExpDiff | F116: ='Rev3 GA Analysis '!Q22 -> 0
A117: 2025 | B117: 8 | C117: 10 | D117: Analysis of Expected GA Amount | E117: ExpDiff | F117: ='Rev3 GA Analysis '!Q23 -> 0
A118: 2025 | B118: 9 | C118: 10 | D118: Analysis of Expected GA Amount | E118: ExpDiff | F118: ='Rev3 GA Analysis '!Q24 -> 0
A119: 2025 | B119: 10 | C119: 10 | D119: Analysis of Expected GA Amount | E119: ExpDiff | F119: ='Rev3 GA Analysis '!Q25 -> 0
A120: 2025 | B120: 11 | C120: 10 | D120: Analysis of Expected GA Amount | E120: ExpDiff | F120: ='Rev3 GA Analysis '!Q26 -> 0
A121: 2025 | B121: 12 | C121: 10 | D121: Analysis of Expected GA Amount | E121: ExpDiff | F121: ='Rev3 GA Analysis '!Q27 -> 0
A122: 2025 | B122: 0 | C122: 11 | D122: Analysis of Expected GA Amount | E122: Total Metered excluding WMP | F122: ='Rev3 GA Analysis '!H4 -> 123302016
A123: 2025 | B123: 0 | C123: 12 | D123: Analysis of Expected GA Amount | E123: RPP | F123: ='Rev3 GA Analysis '!H5 -> 63297976.98
A124: 2025 | B124: 0 | C124: 13 | D124: Analysis of Expected GA Amount | E124: Non RPP | F124: ='Rev3 GA Analysis '!H6 -> 60004039.01
A125: 2025 | B125: 0 | C125: 14 | D125: Analysis of Expected GA Amount | E125: Non-RPP Class A | F125: ='Rev3 GA Analysis '!H7 -> 23842375.09
A126: 2025 | B126: 0 | C126: 15 | D126: Analysis of Expected GA Amount | E126: Non-RPP Class B | F126: ='Rev3 GA Analysis '!H8 -> 36161663.92
A127: 2025 | B127: 0 | C127: 16 | D127: Analysis of Expected GA Amount | E127: NonRppkWh | F127: ='Rev3 GA Analysis '!F29 -> 36161663.92
A128: 2025 | B128: 0 | C128: 17 | D128: Analysis of Expected GA Amount | E128: WtAvgGABilled | F128: ='Rev3 GA Analysis '!G29 -> 0
A129: 2025 | B129: 0 | C129: 18 | D129: Analysis of Expected GA Amount | E129: ConsAtGABilled | F129: ='Rev3 GA Analysis '!H29 -> 2519707.568
A130: 2025 | B130: 0 | C130: 19 | D130: Analysis of Expected GA Amount | E130: WtAvgGAActual | F130: ='Rev3 GA Analysis '!I29 -> 0
A131: 2025 | B131: 0 | C131: 20 | D131: Analysis of Expected GA Amount | E131: ConsAtGAActual | F131: ='Rev3 GA Analysis '!J29 -> 2229750.534
A132: =A131 -> 2025 | B132: 0 | C132: 21 | D132: Analysis of Expected GA Amount | E132: ExpectedGAVar | F132: ='Rev3 GA Analysis '!K29 -> -289957.0347
A133: 2025 | B133: 0 | C133: 22 | D133: Analysis of Expected GA Amount | E133: RevPerContSch | F133: ='Rev3 GA Analysis '!M29 -> -2518115.19
A134: 2025 | B134: 0 | C134: 23 | D134: Analysis of Expected GA Amount | E134: RevDiff | F134: ='Rev3 GA Analysis '!N29 -> 1592.378338
A135: 2025 | B135: 0 | C135: 24 | D135: Analysis of Expected GA Amount | E135: ExpPerContSch | F135: ='Rev3 GA Analysis '!P29 -> 2255804.831
A136: 2025 | B136: 0 | C136: 25 | D136: Analysis of Expected GA Amount | E136: ExpDiff | F136: ='Rev3 GA Analysis '!Q29 -> -26054.2969
A137: 2025 | B137: 0 | C137: 26 | D137: Analysis of Expected GA Amount | E137: NonRPPWhslkWh | F137: ='Rev3 GA Analysis '!C38 -> 36397344.6
A138: 2025 | B138: 0 | C138: 27 | D138: Analysis of Expected GA Amount | E138: NonRPPRevkWh | F138: ='Rev3 GA Analysis '!D38 -> 36161663.92
A139: 2025 | B139: 0 | C139: 28 | D139: Analysis of Expected GA Amount | E139: NonRPPUFE | F139: ='Rev3 GA Analysis '!E38 -> 235680.6848
A140: 2025 | B140: 0 | C140: 29 | D140: Analysis of Expected GA Amount | E140: WtAvgGABilled | F140: ='Rev3 GA Analysis '!F38 -> 0.06967897202
A141: 2025 | B141: 0 | C141: 30 | D141: Analysis of Expected GA Amount | E141: UFEExpectedGAVar | F141: ='Rev3 GA Analysis '!G38 -> 16421.98784
A142: 2025 | B142: 0 | C142: 31 | D142: Analysis of Expected GA Amount | E142: TotExpectedGAVar | F142: ='Rev3 GA Analysis '!G41 -> -273535.0469
A143: 2025 | B143: 0 | C143: 32 | D143: Analysis of Expected GA Amount | E143: Chg1589PrinBal | F143: ='Rev3 GA Analysis '!D64 -> -262310.3595
A144: 2025 | B144: 0 | C144: 33 | D144: Analysis of Expected GA Amount | E144: NetChgExpectedGAVar | F144: ='Rev3 GA Analysis '!D65 -> -273535.0469
A145: 2025 | B145: 0 | C145: 34 | D145: Analysis of Expected GA Amount | E145: UnresolvedDiff$ | F145: ='Rev3 GA Analysis '!D66 -> 11224.6874
A146: 2025 | B146: 0 | C146: 35 | D146: Analysis of Expected GA Amount | E146: ConsAtGAActual | F146: =F131 -> 2229750.534
A147: 2025 | B147: 0 | C147: 36 | D147: Analysis of Expected GA Amount | E147: UnresolvedDiff% | F147: ='Rev3 GA Analysis '!D67 -> 0.005034055258
A148: 2025 | B148: 0 | C148: 37 | D148: Account 1588 Reasonability Test | E148: 1588Principle | F148: ='Rev3 GA Analysis '!D99 -> 7095.127801
A149: 2025 | B149: 0 | C149: 38 | D149: Account 1588 Reasonability Test | E149: 4705PowerPurchased | F149: ='Rev3 GA Analysis '!F99 -> 9497187.083
A150: 2025 | B150: 0 | C150: 39 | D150: Account 1588 Reasonability Test | E150: 1588%4705 | F150: ='Rev3 GA Analysis '!G99 -> 0.0007470767648
